Workbook

Sheet Données Patient (hidden)
O5: Date | P5: =TODAY() -> 2016-05-30
H6: Poids | J6: =Pat!G3& " kg" -> 80 kg
H7: Poids idéal | J7: =Pat!O19&" kg" -> 41 kg
H8: Taille | J8: =Pat!G4&" cm" -> 170 cm | L8: Tabac | M8: =IF(ISNUMBER(Pat!K15),Pat!K16&" cig/j","non fumeur") -> non fumeur | O8: (kcal) | P8: DEB | Q8: DET
D9: Prénom | E9: =Pat!O2& Pat!P4 -> Prénom (F) | H9: IMC classique (kg/m²) | J9: =Pat!$K$2 -> 27.6816609 | L9: NAP | M9: =Pat!A5 -> 1.5 | O9: Black et al. | P9: =Pat!S11 -> 1576.632599 | Q9: =Pat!T11 -> 2364.948898
D10: NOM | E10: =Pat!O3 -> NOM | H10: IMC corrigé | J10: =Pat!$K$3 -> 27.60012417 | L10: Adiposité | M10: =Pat!W6&" %" -> 35,8 % | O10: Harris et B. | P10: =Pat!S9 -> 1572.4912 | Q10: =Pat!T9 -> 2358.7368
D11: Âge (an) | E11: =Pat!O5 -> 35.4 | H11: Surface corporelle | J11: =Pat!O14&" m²" -> 1,97 m² | L11: M. maigre | M11: =Pat!S16&" kg" -> 52,8 kg | O11: Moyenne | P11: =Pat!S12 -> 1574.561899 | Q11: =Pat!T12 -> 2361.842849

Sheet Pat (hidden)
H2: poids en g | J2: IMC | K2: =IF(ISBLANK(F4),"",G3/J9^2) -> 27.6816609 | N2: Prénom | O2: Prénom
A3: NAP estimé | C3: Féminin | E3: poids | F3: 80 | G3: =IF(ISBLANK(F3),"",VALUE(F3)) -> 80 | H3: =IF(ISBLANK(F3),"",G3*1000) -> 80000 | J3: IMC2 corrigé trefethen | K3: =IF(ISBLANK(F4),"",1.3*G3/J9^2.5) -> 27.60012417 | N3: Nom | O3: NOM
A4: 1,5 | C4: Masculin | E4: taille | F4: 170 | G4: =IF(ISBLANK(F4),"",VALUE(F4)) -> 170 | N4: Sexe | O4: Féminin | P4: =IF(O4="Masculin"," (H)",IF(O4="Féminin"," (F)"," ")) -> (F)
A5: =IF(ISBLANK(A4),"",VALUE(A4)) -> 1.5 | N5: Age | O5: =M10 -> 35.4 | S5: DEB | V5: MG | W5: =IF(O4="Masculin",1.2*K3+0.23*O5-10.8-5.4,1.2*K3+0.23*O5-5.4) -> 35.862149
W6: =IF(ISNUMBER(W5),ROUNDDOWN(W5,1),"") -> 35.8
A7: 1 | Q7: DEb clope | S7: =IF(ISNUMBER(K16),K16*0.005," ") -> 0 | T7: DET
A8: 1.1 | J8: taille mètre | L8: age | M8: 01/01/1981 | Q8: DEb HB | S8: =IF(Pat!O4="Masculin",(13.707*G3)+(492.3*J9)-(6.673*Pat!M10)+77.607,(9.74*G3)+(172.9*J9)-(4.737*Pat!M10)+667.051) -> 1572.4912 | T8: =S8*Nap_2 -> 2358.7368
A9: 1.2 | J9: =G4/100 -> 1.7 | L9: =TODAY() -> 2016-05-30 | M9: =IF(ISNUMBER(L10),L10/365,"") -> 35.43287671 | Q9: Deb corrigé | R9: HB | S9: =IF(ISBLANK(F4),"",IF(fumeur=1,S8+S7*S8,S8)) -> 1572.4912 | T9: =IF(ISBLANK(F4),"",S9*Nap_2) -> 2358.7368
A10: 1.3 | L10: =IF(ISBLANK(M8)," ",L9-M8) -> 12933 | M10: =IF(ISNUMBER(M9),ROUNDDOWN(M9,1),"") -> 35.4 | R10: Black al | S10: =IF(Pat!O4="Masculin",((((1.083*G3)^0.48)*(J9^0.5)*(M10^(-0.13)))*(1000/4.1855)),((((0.963*G3)^0.48)*(J9^0.5)*(M10^(-0.13)))*(1000/4.1855))) -> 1576.632599 | T10: =S10*Nap_2 -> 2364.948898
A11: 1.4 | R11: Bl corrigé | S11: =IF(ISBLANK(F4),"",IF(fumeur=1,S10+S7*S10,S10)) -> 1576.632599 | T11: =IF(ISBLANK(F4),"",S11*Nap_2) -> 2364.948898 | V11: La première formule de Deurenberg :
A12: 1.5 | K12: SC = 0,0001 x (3,207) x (P 0,7285-0,0188logP) x (T 0,3) | R12: MOYENNE | S12: =IF(ISBLANK(F4),"",(S9+S11)/2) -> 1574.561899 | T12: =IF(ISBLANK(F4),"",(T9+T11)/2) -> 2361.842849
A13: 1.6 | J13: Fumeur | K13: 0 | M13: surface corporelle (boyd) | O13: =0.0001*(3.207)*(H3^(0.7285-0.0188*LOG(H3)))*G4^0.3 -> 1.973227744 | V13: IMG(%)=(1.20∗IMC)+(0.23∗Age)−(10.8∗Sexe)−5.4
A14: 1.7 | B14: HB | C14: Homme = 13,707 x Poids(kg) + 492,3 x Taille(m) - 6,673 x Age(an) + 77, 607 | O14: =IF(ISNUMBER(O13),ROUNDDOWN(O13,2),"") -> 1.97
A15: 1.8 | C15: Femme = 9,740 x Poids(kg) + 172,9 x Taille(m) - 4,737 x Age(an) + 667, 051 | J15: nbr | M15: poids ideal | N15: Lorentz | O15: =IF(O4="Masculin",G4-100-((G4-150)/4),G4-100-((G4-150)/2.5)) -> 62 | Q15: MM | R15: James | S15: =IF(O4="Masculin",1.1*poids_1-128*(poids_1^2/taille_1^2),1.07*poids_1-148*(poids_1^2/taille_1^2)) -> 52.82491349 | U15: =poids_1-S15 -> 27.17508651
A16: 1.9 | B16: Bl | C16: Femme : Kcal = [0,963 x Poids(kg)0,48 x Taille(m)0,50 x Age(an)-0,13] x (1000/4,1855) | J16: nbr (nb) | K16: =VALUE(K15) -> 0 | N16: Devine | O16: =IF(O4="Masculin",50+2.3*(J9/0.0254-60),45.5+2.3*(J9/0.0254-60)) -> 61.43700787 | S16: =IF(ISNUMBER(S15),ROUNDDOWN(S15,1),"") -> 52.8
A17: 2 | C17: Homme : Kcal = [1,083 x Poids(kg)0,48 x Taille(m)0,50 x Age(an)-0,13] x (1000/4,1855) | N17: Pecks | O17: =IF(O4="Masculin",((-130.736+(4.064*0.393701*G4))*0.453592),(-111.621+(3.636*0.393701*G4)*0.453592)) -> -1.237362818 | Q17: eau | R17: hume | S17: =IF(O4="Masculin",-14.012934+(0.296785*poids_1)+(0.194786*taille_1),-35.270121+(0.183809*poids_1)+(0.34454*taille_1)) -> 38.006399 | V17: Poids maigre (homme) en kg = 1.10 x Poids(kg) - 128 [Poids(kg)2/Taille(cm)2]
A18: 2.1 | O18: =AVERAGE(O15:O17) -> 40.73321502 | Q18: Eau | S18: =IF(ISNUMBER(S17),ROUNDDOWN(S17,1),"") -> 38 | V18: Poids maigre (femme) en kg = 1.07 x Poids(kg) - 148 [Poids(kg)2/Taille(cm)2]
A19: 2.2 | D19: <20 | E19: 20 à 29 | F19: 30 à 39 | G19: 40 à 49 | H19: >50 | J19: 0 | K19: 2 | O19: =IF(ISNUMBER(O18),ROUNDUP(O18,0),"") -> 41 | Q19: Tour de taille
A20: 2.3 | D20: 20 | E20: 30 | F20: 40 | G20: 50 | J20: 20 | K20: 3 | M20: DC | Q20: Tour de hanche | V20: Homme = - 14,012934 + 0,296785 x Poids(kg) + 0,194786 x Taille(cm)
A21: 2.4 | D21: n | E21: n | F21: n | G21: n | H21: n | J21: 30 | K21: 4 | M21: MG | Q21: rapport T/H | V21: Femme = - 35,270121 + 0,183809 x Poids(kg) + 0,34454 x Taille(cm)
A22: 2.5 | C22: Homme | D22: 1.162 | E22: 1.1631 | F22: 1.1422 | G22: 1.162 | H22: 1.1715 | J22: 40 | K22: 5
A23: 2.6 | C23: Femme | D23: 1.1549 | E23: 1.1599 | F23: 1.1423 | G23: 1.1333 | H23: 1.1339 | J23: 50 | K23: 6 | M23: MG | Q23: SBSI | R23: surface body shaped index
M24: N
D25: m | E25: m | F25: m | G25: m | H25: m | M25: M
C26: Homme | D26: 0.063 | E26: 0.0632 | F26: 0.0544 | G26: 0.07 | H26: 0.0779
C27: Femme | D27: 0.0678 | E27: 0.0717 | F27: 0.0632 | G27: 0.0612 | H27: 0.0645 | J27: lorentz | L27: Poids idéal Masculin (en Kg) = Taille (en cm) - 100 - ((Taille (en cm) - 150) /4 ).
L29: Poids idéal Féminin (en Kg) = Taille (en cm) - 100 - ((Taille (en cm) - 150) /2,5 ).
D31: CMB = CB - (0,314 x PCT)
J32: devine | L32: Poids idéal pour les femmes = 45,5 + 2,3 x (Taille(en centimètres) / 0,0254 - 60)
D33: CMB | L33: Poids idéal pour les hommes = 50 + 2,3 x (Taille(en centimètres) / 0,0254 - 60)
J35: PECKS | L35: Poids idéal (homme) = -130.736 + (4.064 x T)
L37: Poids idéal (femme) = -111.621 + (3.636 x T)

Sheet PANDA_Saisie des rations
D5: FFFFF
F12: 4 | G12: 5 | H12: 6 | I12: 7 | J12: 8 | K12: 9 | L12: 10 | M12: 11 | N12: 12 | O12: 13 | P12: 14 | Q12: 15 | R12: 16 | S12: 17 | T12: 18 | U12: 19 | V12: 20 | W12: 21 | X12: 22 | Y12: 23 | Z12: 24 | AA12: 25 | AB12: 26 | AC12: 27 | AD12: 28 | AE12: 29 | AF12: 30 | AG12: 31 | AH12: 32 | AI12: 33 | AJ12: 34 | AK12: 35 | AL12: 36 | AM12: 37 | AN12: 38 | AO12: 39 | AP12: 40 | AQ12: 41 | AR12: 42 | AS12: 43 | AT12: 44 | AU12: 45 | AV12: 46 | AW12: 47 | AX12: 48 | AY12: 49 | AZ12: 50 | BA12: 51 | BB12: 52 | BC12: 53
B13: Code | C13: Famille | D13: Dénomination | E13: Quantité g/ml | F13: Energie kcal | G13: Protéines g | H13: Lipides g | I13: Glucides g | J13: Sucres | K13: Amidon | L13: Fibres | M13: AGS | N13: AG 4:0, butyrique | O13: AG 6:0, caproïque | P13: AG 8:0, caprylique | Q13: AG 10:0, caprique | R13: AG 12:0, laurique | S13: AG 14:0, myristique | T13: AG 16:0, palmitique | U13: AG 18:0, stéarique | V13: AGM | W13: AG 18:1 9c (n-9), oléique (g/100g) | X13: AGP | Y13: AG 18:3 c9,c12,c15 (n-3), alpha-linolénique | Z13: AG 20:5 5c,8c,11c,14c,17c (n-3) EPA | AA13: AG 22:6 4c,7c,10c,13c,16c,19c (n-3) DHA | AB13: AG 20:4 5c,8c,11c,14c (n-6), arachidonique | AC13: AG 18:2 9c,12c (n-6), linoléique | AD13: Cholestérol (mg/100g) | AE13: Sodium | AF13: Calcium | AG13: Potassium | AH13: Magnésium | AI13: Phosphore | AJ13: Fer | AK13: Iode | AL13: Cuivre | AM13: Zinc | AN13: Sélénium | AO13: Vitamine A (µg/100 ER) | AP13: Vitamine D (µg/100g) | AQ13: Vitamine E (mg/100g) | AR13: Vitamine K1 (µg/100g) | AS13: Vitamine K2 (µg/100g) | AT13: Vitamine C (mg/100g) | AU13: Vitamine B1 (mg/100g) | AV13: Vitamine B2 (mg/100g) | AW13: Vitamine B3 (mg/100g) | AX13: Vitamine B5 (mg/100g) | AY13: Vitamine B6 (mg/100g) | AZ13: Vitamine B12 (µg/100g) | BA13: Vitamine B9 (µg/100g) | BB13: Alcool (g/100g) | BC13: Eau
J14: mg/jour | K14: mg/j
B16: PETIT DEJEUNER
B17: =IF(ISBLANK($D17),"",VLOOKUP($D17,table_totale,3,1)) -> 2070 | C17: =IF(ISBLANK($D17),"",MID((VLOOKUP($D17,table_totale,2,1)),1,22)) -> Jus et nectars | D17: Orange, pur jus | E17: 330 | F17: =IF(ISBLANK($E17),"",VLOOKUP($D17,table_totale,F$12,1)*$E17/100) -> 144.21 | G17: 2.3364 | H17: 0.31482 | I17: 30.987 | J17: 28.677 | K17: 0 | L17: 1.5741 | M17: 0 | N17: 0 | O17: 0 | P17: =IF(ISBLANK($E17),"",VLOOKUP($D17,table_totale,P$12,1)*$E17/100) -> 0 | Q17: 0 | R17: 0 | S17: 0 | T17: 0 | U17: 0 | V17: 0.1023 | W17: 0.1023 | X17: 0.1254 | Y17: 0.03564 | Z17: =IF(ISBLANK($E17),"",VLOOKUP($D17,table_totale,Z$12,1)*$E17/100) -> 0 | AA17: 0 | AB17: 0 | AC17: 0.08976 | AD17: 0 | AE17: 2.079 | AF17: 14.685 | AG17: 564.3 | AH17: 32.406 | AI17: 52.14 | AJ17: =IF(ISBLANK($E17),"",VLOOKUP($D17,table_totale,AJ$12,1)*$E17/100) -> 0.19239 | AK17: 2.31 | AL17: 0.0924 | AM17: 0.2145 | AN17: 0 | AO17: 16.5 | AP17: 0 | AQ17: 0.7095 | AR17: 0.33 | AS17: 0 | AT17: =IF(ISBLANK($E17),"",VLOOKUP($D17,table_totale,AT$12,1)*$E17/100) -> 126.39 | AU17: 0.20724 | AV17: 0.0759 | AW17: 1.287 | AX17: 0.6369 | AY17: 0.19404 | AZ17: 0 | BA17: 109.56 | BB17: 0 | BC17: 291.06
B18: 7710 | C18: Viennoiseries et brioc | D18: Pain au lait, artisanal | E18: 150 | F18: 580.5 | G18: 15.3 | H18: 27.9 | I18: 64.35 | J18: 4.14 | K18: 60.3 | L18: 7.95 | M18: 16.5 | N18: 0.6765 | O18: 0.39 | P18: 0.261 | Q18: 0.537 | R18: 0.744 | S18: 2.025 | T18: 6.525 | U18: 2.145 | V18: 8.505 | W18: 2.91 | X18: 1.71 | Y18: 0.1605 | Z18: 0.0168 | AA18: 0 | AB18: 0 | AC18: 0.792 | AD18: 87 | AE18: 732 | AF18: 78.9 | AG18: 319.5 | AH18: 28.5 | AI18: 171 | AJ18: 1.65 | AK18: 15 | AL18: 0.1605 | AM18: 1.1925 | AN18: 3.3 | AO18: 78.5 | AP18: 0.3 | AQ18: 1.335 | AR18: 0 | AS18: 0 | AT18: 0 | AU18: 0.105 | AV18: 0.195 | AW18: 0.69 | AX18: 0.855 | AY18: 0.255 | AZ18: 1.23 | BA18: 69 | BB18: 0 | BC18: 33.15
B20: COLLATION MATIN
B21: DEJEUNER
B22: =IF(ISBLANK($D22),"",VLOOKUP($D22,table_totale,3,1)) -> 18044 | C22: =IF(ISBLANK($D22),"",MID((VLOOKUP($D22,table_totale,2,1)),1,22)) -> Aliments "moyens" pour | D22: Eau minérale (aliment moyen) | E22: 500 | F22: =IF(ISBLANK($E22),"",VLOOKUP($D22,table_totale,F$12,1)*$E22/100) -> 0 | G22: 0 | H22: 0 | I22: 0 | J22: 0 | K22: 0 | L22: 0 | M22: 0 | N22: 0 | O22: 0 | P22: =IF(ISBLANK($E22),"",VLOOKUP($D22,table_totale,P$12,1)*$E22/100) -> 0 | Q22: 0 | R22: 0 | S22: 0 | T22: 0 | U22: 0 | V22: 0 | W22: 0 | X22: 0 | Y22: 0 | Z22: =IF(ISBLANK($E22),"",VLOOKUP($D22,table_totale,Z$12,1)*$E22/100) -> 0 | AA22: 0 | AB22: 0 | AC22: 0 | AD22: 0 | AE22: 39.4 | AF22: 122 | AG22: 3.95 | AH22: 27.9 | AI22: 0.0181 | AJ22: =IF(ISBLANK($E22),"",VLOOKUP($D22,table_totale,AJ$12,1)*$E22/100) -> 0.00255 | AK22: 0 | AL22: 0.004095 | AM22: 0.0196 | AN22: 2.325 | AO22: 0 | AP22: 0 | AQ22: 0 | AR22: 0 | AS22: 0 | AT22: =IF(ISBLANK($E22),"",VLOOKUP($D22,table_totale,AT$12,1)*$E22/100) -> 0 | AU22: 0 | AV22: 0 | AW22: 0 | AX22: 0 | AY22: 0 | AZ22: 0 | BA22: 0 | BB22: 0 | BC22: 499.5
B25: =IF(ISBLANK($D25),"",VLOOKUP($D25,table_totale,3,1)) ->  | C25: =IF(ISBLANK($D25),"",MID((VLOOKUP($D25,table_totale,2,1)),1,22)) -> 
B26: COLLATION APRES-MIDI
B27: DÎNER
B28: =IF(ISBLANK($D28),"",VLOOKUP($D28,table_totale,3,1)) ->  | C28: =IF(ISBLANK($D28),"",MID((VLOOKUP($D28,table_totale,2,1)),1,22)) ->  | F28: =IF(ISBLANK($E28),"",VLOOKUP($D28,table_totale,F$12,1)*$E28/100) ->  | P28: =IF(ISBLANK($E28),"",VLOOKUP($D28,table_totale,P$12,1)*$E28/100) ->  | Z28: =IF(ISBLANK($E28),"",VLOOKUP($D28,table_totale,Z$12,1)*$E28/100) ->  | AJ28: =IF(ISBLANK($E28),"",VLOOKUP($D28,table_totale,AJ$12,1)*$E28/100) ->  | AT28: =IF(ISBLANK($E28),"",VLOOKUP($D28,table_totale,AT$12,1)*$E28/100) -> 
B31: COLLATION SOIR

Sheet Feuil3 (hidden)
M1: =PANDA_Synthèse!I3 -> 705.82698 | O1: =PANDA_Synthèse!C18*100 -> 9.994744038 | P1: =PANDA_Synthèse!D18*100 -> 35.97671769 | Q1: =100*PANDA_Synthèse!E18 -> 54.02853827 | S1: =Annexe!B12 -> A | T1: =Annexe!C12 -> D | U1: =Annexe!D12 -> E | V1: =Annexe!E12 -> K | W1: =Annexe!F12 -> C | X1: =Annexe!G12 -> B1 | Y1: =Annexe!H12 -> B2 | Z1: =Annexe!I12 -> B3 | AA1: =Annexe!J12 -> B5 | AB1: =Annexe!K12 -> B6 | AC1: =Annexe!L12 -> B12 | AD1: =Annexe!M12 -> B9
M2: =Pat!T12 -> 2361.842849 | O2: 12.5 | P2: 37.5 | Q2: 50 | S2: =Annexe!B13 -> 95 | T2: =Annexe!C13 -> 0.3 | U2: =Annexe!D13 -> 2.0445 | V2: =Annexe!E13 -> 0.33 | W2: =Annexe!F13 -> 126.39 | X2: =Annexe!G13 -> 0.31224 | Y2: =Annexe!H13 -> 0.2709 | Z2: =Annexe!I13 -> 1.977 | AA2: =Annexe!J13 -> 1.4919 | AB2: =Annexe!K13 -> 0.44904 | AC2: =Annexe!L13 -> 1.23 | AD2: =Annexe!M13 -> 178.56
C3: Sub RAZ() | M3: NRJ | O3: P | P3: L | Q3: G | S3: =Annexe!B15 -> 600 | T3: =Annexe!C15 -> 5 | U3: =Annexe!D15 -> 12 | V3: =Annexe!E15 -> 50 | W3: =Annexe!F15 -> 110 | X3: =Annexe!G15 -> 1.1 | Y3: =Annexe!H15 -> 1.5 | Z3: =Annexe!I15 -> 11 | AA3: =Annexe!J15 -> 5 | AB3: =Annexe!K15 -> 1.5 | AC3: =Annexe!L15 -> 2.4 | AD3: =Annexe!M15 -> 300
C4: Sheets("Feuil1").Range("A1:G20").ClearContents | M4: =IF(M2<M1,(M2-(M1-M2))/M2,M1/M2)*10 -> 2.988458695 | O4: =IF(O2<O1,(O2-(O1-O2))/O2,O1/O2)*10 -> 7.99579523 | P4: =IF(P2<P1,(P2-(P1-P2))/P2,P1/P2)*10 -> 9.593791385 | Q4: =IF(Q2<Q1,(Q2-(Q1-Q2))/Q2,Q1/Q2)*10 -> 9.194292346 | S4: =Annexe!B16 -> 0.1583333333 | T4: =Annexe!C16 -> 0.06 | U4: =Annexe!D16 -> 0.170375 | V4: =Annexe!E16 -> 0.0066 | W4: =Annexe!F16 -> 1.149 | X4: =Annexe!G16 -> 0.2838545455 | Y4: =Annexe!H16 -> 0.1806 | Z4: =Annexe!I16 -> 0.1797272727 | AA4: =Annexe!J16 -> 0.29838 | AB4: =Annexe!K16 -> 0.29936 | AC4: =Annexe!L16 -> 0.5125 | AD4: =Annexe!M16 -> 0.5952
C5: End Sub | P5: =AVERAGE(O4:Q4) -> 8.927959654 | S5: =IF(S3<S2,(S3-(S2-S3))/S3,S2/S3)*10 -> 1.583333333 | T5: =IF(T3<T2,(T3-(T2-T3))/T3,T2/T3)*10 -> 0.6 | U5: =IF(U3<U2,(U3-(U2-U3))/U3,U2/U3)*10 -> 1.70375 | V5: 0.066 | W5: =IF(W3<W2,(W3-(W2-W3))/W3,W2/W3)*20 -> 17.02 | X5: 2.838545455 | Y5: 1.806 | Z5: 1.797272727 | AA5: 2.9838 | AB5: 2.9936 | AC5: 5.125 | AD5: 5.952
U6: =AVERAGE(S5:AD5) -> 3.705775126
C7: Sub Impr()
C8: With Worksheets("feuil1").PageSetup | S8: =Annexe!U12 -> Na | T8: =Annexe!V12 -> Ca | U8: =Annexe!W12 -> K | V8: =Annexe!X12 -> Mg | W8: =Annexe!Y12 -> P | X8: =Annexe!Z12 -> Fe | Y8: =Annexe!AA12 -> I | Z8: =Annexe!AB12 -> Cu | AA8: =Annexe!AC12 -> Zn | AB8: =Annexe!AD12 -> Se | AD8: EAU
C9: .PrintArea = "a1:g20" | O9: GLU | P9: FIBRES | S9: =Annexe!U13 -> 773.479 | T9: =Annexe!V13 -> 215.585 | U9: =Annexe!W13 -> 887.75 | V9: =Annexe!X13 -> 88.806 | W9: =Annexe!Y13 -> 223.1581 | X9: =Annexe!Z13 -> 1.84494 | Y9: =Annexe!AA13 -> 17.31 | Z9: =Annexe!AB13 -> 0.256995 | AA9: =Annexe!AC13 -> 1.4266 | AB9: =Annexe!AD13 -> 5.625 | AD9: ='Annexe 2'!BD4 -> 2.361842849
C10: End With | K10: vide | L10: test | O10: 0.75 | P10: 30 | S10: =Annexe!U15 -> 2400 | T10: =Annexe!V15 -> 900 | U10: =Annexe!W15 -> 4700 | V10: =Annexe!X15 -> 360 | W10: =Annexe!Y15 -> 750 | X10: =Annexe!Z15 -> 16 | Y10: =Annexe!AA15 -> 150 | Z10: =Annexe!AB15 -> 1.5 | AA10: =Annexe!AC15 -> 10 | AB10: =Annexe!AD15 -> 50 | AD10: ='Annexe 2'!BD5/ 'Annexe 2'!$AE$26 -> 1.538132849
C11: Worksheets("feuil1").PrintOut | J11: Apport énergétique | K11: 1 | L11: =IF(ISBLANK(Pat!F3),"",IF($M$4<0,1,IF($M$4>10,10,$M$4))) -> 2.988458695 | O11: ='Annexe 2'!I38 -> 0.6324931559 | P11: ='Annexe 2'!K4 -> 9.5241 | S11: =Annexe!U16 -> 0.3222829167 | T11: =Annexe!V16 -> 0.2395388889 | U11: =Annexe!W16 -> 0.1888829787 | V11: =Annexe!X16 -> 0.2466833333 | W11: =Annexe!Y16 -> 0.2975441333 | X11: =Annexe!Z16 -> 0.11530875 | Y11: =Annexe!AA16 -> 0.1154 | Z11: =Annexe!AB16 -> 0.17133 | AA11: =Annexe!AC16 -> 0.14266 | AB11: =Annexe!AD16 -> 0.1125
C12: End Sub | J12: Equilibre macronutritionnel | K12: 3 | L12: =IF($P$5<0,1,IF($P$5>10,10,$P$5)) -> 8.927959654 | S12: =IF(S10<S9,(S10-(S9-S10))/S10,S9/S10)*10 -> 3.222829167 | T12: =IF(T10<T9,(T10-(T9-T10))/T10,T9/T10)*10 -> 2.395388889 | U12: =IF(U10<U9,(U10-(U9-U10))/U10,U9/U10)*20 -> 3.777659574 | V12: 2.466833333 | W12: 2.975441333 | X12: 1.1530875 | Y12: 1.154 | Z12: 1.7133 | AA12: 1.4266 | AB12: 1.125 | AD12: =IF(AD9>AD10,AD10/AD9*10,10) -> 6.512426725
J13: Statut micronutritionnel | K13: 4 | L13: =IF($T$14<0,1,IF($T$14>10,10,$T$14)) -> 2.923394553 | O13: =IF(O10>O11,O11/O10*10,10) -> 8.433242078 | P13: =IF(P10>P11,P11/P10*10,10) -> 3.1747 | U13: =AVERAGE(S12:AB12) -> 2.14101398
J14: Blian lipidique | K14: 9 | L14: =IF($T$21<0,1,IF($T$21>10,10,$T$21)) -> 5.106321448 | O14: =AVERAGE(O13:P13) -> 5.803971039 | T14: =AVERAGE(U6,U13) -> 2.923394553
J15: Apport hydrique | K15: 6 | L15: =IF(ISBLANK(Pat!F3),"",IF($AD$12<0,1,IF($AD$12>10,10,$AD$12))) -> 6.512426725
J16: Rapport glucidique | K16: 3 | L16: =IF($O$14<0,1,IF($O$14>10,10,$O$14)) -> 5.803971039 | T16: AGS | U16: LMP | V16: AGM | W16: AGO | X16: omega3 | Y16: EPADHA | Z16: ALA | AA16: rap63 | AB16: chol
L17: =AVERAGE(L11:L16) -> 5.377088686 | T17: 12 | U17: 8 | W17: 15 | X17: 1 | Y17: 0.5 | Z17: 0.5 | AA17: 5 | AB17: 300
L18: =IF(ISNUMBER(notenut),ROUNDUP(notenut,1)," ") -> 5.4 | N18: =Annexe!P23 -> 0 | O18: =Annexe!Q23 -> g./j. | P18: =Annexe!R23 -> 0 | Q18: =Annexe!S23 -> %AEA | R18: =Annexe!T23 -> ANC | T18: =Q19*100 -> 21.03915042 | U18: =Q20*100 -> 11.85077963 | W18: =Q23*100 -> 0 | X18: =O26 -> 0.21294 | Y18: =O27 -> 0.0168 | Z18: =Q28*100 -> 0.2500981189 | AA18: =O31 -> 4.140884756 | AB18: =O33 -> 87
N19: =Annexe!P24 -> AGS | O19: =Annexe!Q24 -> 16.5 | P19: =Annexe!R24 -> 0.6124107829 | Q19: =Annexe!S24 -> 0.2103915042 | R19: =Annexe!T24 -> < 12%
N20: =Annexe!P25 -> dont Lau/Myr/Pal | O20: =Annexe!Q25 -> 9.294 | P20: =Annexe!R25 -> 0 | Q20: =Annexe!S25 -> 0.1185077963 | R20: =Annexe!T25 -> < 8% | T20: =IF(T18<T17,10,IF(T18>2*T17,0,5)) -> 5 | U20: =IF(U18<U17,10,IF(U18>(2*U17),0,5)) -> 5 | W20: =IF(W18>W17,10,IF(W18>(W17/2),5,0)) -> 0 | X20: =IF(X18>X17,10,IF(X18>(X17/2),5,0)) -> 0 | Y20: =IF(Y18>Y17,10,IF(Y18>(Y17/2),5,0)) -> 0 | Z20: =IF(Z18>Z17,10,IF(Z18>(Z17/2),5,0)) -> 5 | AA20: =IF(AA18<AA17,(AA18-(AA17-AA18))/AA18,AA17/AA18)*20 -> 15.85057158 | AB20: =IF(AB18<AB17,(AB17-(AB17-AB18))/AB18,AB17/AB18)*10 -> 10
N21: =Annexe!P26 -> 0 | O21: =Annexe!Q26 -> 0 | P21: =Annexe!R26 -> 0 | Q21: =Annexe!S26 -> 0 | R21: =Annexe!T26 -> 0 | T21: =AVERAGE(T20:AB20) -> 5.106321448
N22: =Annexe!P27 -> AGM | O22: =Annexe!Q27 -> 8.6073 | P22: =Annexe!R27 -> 0.3194668686 | Q22: =Annexe!S27 -> 0 | R22: =Annexe!T27 -> 0
N23: =Annexe!P28 -> dont AG Oléique | O23: =Annexe!Q28 -> 3.0123 | P23: =Annexe!R28 -> 0 | Q23: =Annexe!S28 -> 0 | R23: =Annexe!T28 -> > 15%
N24: =Annexe!P29 -> 0 | O24: =Annexe!Q29 -> 0 | P24: =Annexe!R29 -> 0 | Q24: =Annexe!S29 -> 0 | R24: =Annexe!T29 -> 0
N25: =Annexe!P30 -> AGP | O25: =Annexe!Q30 -> 1.8354 | P25: =Annexe!R30 -> 0.06812234854 | Q25: =Annexe!S30 -> 0 | R25: =Annexe!T30 -> 0
N26: =Annexe!P31 -> dont Omega 3 | O26: =Annexe!Q31 -> 0.21294 | P26: =Annexe!R31 -> 0 | Q26: =Annexe!S31 -> 0 | R26: =Annexe!T31 -> > 1 à 2 g
N27: =Annexe!P32 -> EPA + DHA | O27: =Annexe!Q32 -> 0.0168 | P27: =Annexe!R32 -> 0 | Q27: =Annexe!S32 -> 0 | R27: =Annexe!T32 -> > 0,5 g
N28: =Annexe!P33 -> ALA | O28: =Annexe!Q33 -> 0.19614 | P28: =Annexe!R33 -> 0 | Q28: =Annexe!S33 -> 0.002500981189 | R28: =Annexe!T33 -> > 0,5 à 1%
N29: =Annexe!P34 -> 0 | O29: =Annexe!Q34 -> 0 | P29: =Annexe!R34 -> 0 | Q29: =Annexe!S34 -> 0 | R29: =Annexe!T34 -> 0
N30: =Annexe!P35 -> dont Omega 6 | O30: =Annexe!Q35 -> 0.88176 | P30: =Annexe!R35 -> 0 | Q30: =Annexe!S35 -> 0.01124332198 | R30: =Annexe!T35 -> < 4%
N31: =Annexe!P36 -> Rapport Ω6/Ω3 | O31: =Annexe!Q36 -> 4.140884756 | P31: =Annexe!R36 -> 0 | Q31: =Annexe!S36 -> 0 | R31: =Annexe!T36 -> < 5
N32: =Annexe!P37 -> 0 | O32: =Annexe!Q37 -> 0 | P32: =Annexe!R37 -> 0 | Q32: =Annexe!S37 -> 0 | R32: =Annexe!T37 -> 0
N33: =Annexe!P38 -> Cholestérol (mg) | O33: =Annexe!Q38 -> 87 | P33: =Annexe!R38 -> 0 | Q33: =Annexe!S38 -> 0 | R33: =Annexe!T38 -> 300 mg

Sheet Compositions (hidden)
A1: Dénomination | B1: Famille | C1: Code | D1: Energie (kcal) | E1: Protéines | F1: Lipides | G1: Glucides | H1: Sucres | I1: Amidon | J1: Fibres | K1: AGS | L1: AG 4:0, butyrique | M1: AG 6:0, caproïque | N1: AG 8:0, caprylique | O1: AG 10:0, caprique | P1: AG 12:0, laurique | Q1: AG 14:0, myristique | R1: AG 16:0, palmitique | S1: AG 18:0, stéarique | T1: AGM | U1: AG 18:1 9c (n-9), oléique (g/100g) | V1: AGP | W1: AG 18:3 c9,c12,c15 (n-3), alpha-linolénique | X1: AG 20:5 5c,8c,11c,14c,17c (n-3) EPA | Y1: AG 22:6 4c,7c,10c,13c,16c,19c (n-3) DHA | Z1: AG 20:4 5c,8c,11c,14c (n-6), arachidonique | AA1: AG 18:2 9c,12c (n-6), linoléique | AB1: Cholestérol (mg/100g) | AC1: Sodium | AD1: Calcium | AE1: Potassium | AF1: Magnésium | AG1: Phosphore | AH1: Fer | AI1: Iode | AJ1: Cuivre | AK1: Zinc | AL1: Sélénium | AM1: Vitamine A (µg/100 ER) | AN1: Vitamine D (µg/100g) | AO1: Vitamine E (mg/100g) | AP1: Vitamine K1 (µg/100g) | AQ1: Vitamine K2 (µg/100g) | AR1: Vitamine C (mg/100g) | AS1: Vitamine B1 (mg/100g) | AT1: Vitamine B2 (mg/100g) | AU1: Vitamine B3 (mg/100g) | AV1: Vitamine B5 (mg/100g) | AW1: Vitamine B6 (mg/100g) | AX1: Vitamine B12 (µg/100g) | AY1: Vitamine B9 (µg/100g) | AZ1: Alcool (g/100g) | BA1: Eau
A2: 1 | B2: 2 | C2: 3 | D2: 4 | E2: 5 | F2: 6 | G2: 7 | H2: 8 | I2: 9 | J2: 10 | K2: 11 | L2: 12 | M2: 13 | N2: 14 | O2: 15 | P2: 16 | Q2: 17 | R2: 18 | S2: 19 | T2: 20 | U2: 21 | V2: 22 | W2: 23 | X2: 24 | Y2: 25 | Z2: 26 | AA2: 27 | AB2: 28 | AC2: 29 | AD2: 30 | AE2: 31 | AF2: 32 | AG2: 33 | AH2: 34 | AI2: 35 | AJ2: 36 | AK2: 37 | AL2: 38 | AM2: 39 | AN2: 40 | AO2: 41 | AP2: 42 | AQ2: 43 | AR2: 44 | AS2: 45 | AT2: 46 | AU2: 47 | AV2: 48 | AW2: 49 | AX2: 50 | AY2: 51 | AZ2: 52 | BA2: 53
A3: ABALONE,MIXED SPECIES,RAW | C3: 15155 | D3: 105 | E3: 17.1 | F3: 0.76 | G3: 6.01 | H3: 0 | J3: 0 | K3: 0.149 | T3: 0.107 | V3: 0.104 | AB3: 85 | AC3: 301 | AD3: 31 | AE3: 250 | AF3: 48 | AG3: 190 | AH3: 3.19 | AJ3: 0.196 | AK3: 0.82 | AL3: 44.8 | AM3: 2 | AN3: 0 | AO3: 4 | AP3: 23 | AR3: 2 | AS3: 0.19 | AT3: 0.1 | AU3: 1.5 | AV3: 3 | AW3: 0.15 | AX3: 0.73 | AY3: 5 | BA3: 74.56
A4: ABALONE,MXD SP,CKD,FRIED | C4: 15156 | D4: 189 | E4: 19.63 | F4: 6.78 | G4: 11.05 | J4: 0 | K4: 1.646 | T4: 2.741 | V4: 1.676 | AB4: 94 | AC4: 591 | AD4: 37 | AE4: 284 | AF4: 56 | AG4: 217 | AH4: 3.8 | AJ4: 0.228 | AK4: 0.95 | AL4: 51.8 | AM4: 2 | AR4: 1.8 | AS4: 0.22 | AT4: 0.13 | AU4: 1.9 | AV4: 2.87 | AW4: 0.15 | AX4: 0.69 | AY4: 14 | BA4: 60.1
A5: ABIYUCH,RAW | C5: 9427 | D5: 69 | E5: 1.5 | F5: 0.1 | G5: 17.6 | H5: 8.55 | J5: 5.3 | K5: 0.014 | AC5: 20 | AD5: 8 | AE5: 304 | AF5: 24 | AG5: 47 | AH5: 1.61 | AJ5: 0.057 | AK5: 0.31 | AM5: 5 | AR5: 54.1 | BA5: 79.9
A6: Abricot au sirop léger, appertisé | B6: Fruits au sirop/au jus, compotes | C6: 13096 | D6: 67.7 | E6: 0.5 | F6: 0.1 | G6: 15.4 | H6: 15.4 | I6: 0 | J6: 0.8 | K6: 0.003 | L6: 0 | M6: 0 | N6: 0 | O6: 0 | P6: 0 | Q6: 0 | R6: 0.003 | S6: 0 | T6: 0.022 | U6: 0.022 | V6: 0.01 | W6: 0 | X6: 0 | Y6: 0 | Z6: 0 | AA6: 0.01 | AB6: 0 | AC6: 5.7 | AD6: 13.7 | AE6: 153 | AF6: 5.8 | AG6: 10.5 | AH6: 0.295 | AI6: 0.4 | AJ6: 0.079 | AK6: 0.1 | AL6: 0.2 | AM6: 0 | AN6: 0 | AO6: 0.89 | AP6: 0 | AQ6: 0 | AR6: 2.81 | AS6: 0.013 | AT6: 0.015 | AU6: 0.302 | AV6: 0.076 | AW6: 0.057 | AX6: 0 | AY6: 2 | AZ6: 0 | BA6: 82.3
A7: Abricot, frais | B7: Fruits frais | C7: 13000 | D7: 49.1 | E7: 0.9 | F7: 0.207 | G7: 9.01 | H7: 8.02 | I7: 0 | J7: 1.7 | K7: 0.0193 | L7: 0 | M7: 0 | N7: 0 | O7: 0 | P7: 0 | Q7: 0 | R7: 0.0173 | S7: 0.00206 | T7: 0.113 | U7: 0.113 | V7: 0.052 | W7: 0 | X7: 0 | Y7: 0 | Z7: 0 | AA7: 0.052 | AB7: 0.1 | AC7: 2.2 | AD7: 15.6 | AE7: 237 | AF7: 8.67 | AG7: 16.6 | AH7: 0.32 | AI7: 0.29 | AJ7: 0.066 | AK7: 0.139 | AL7: 0.01 | AM7: 271.6666667 | AN7: 0 | AO7: 0.61 | AP7: 3.3 | AQ7: 0 | AR7: 5.45 | AS7: 0.0267 | AT7: 0.0367 | AU7: 0.5 | AV7: 0.24 | AW7: 0.0627 | AX7: 0 | AY7: 6.2 | AZ7: 0 | BA7: 86.1
A8: Abricot, nectar | B8: Jus et nectars | C8: 2043 | D8: 57.6 | E8: 0.41 | F8: 0.085 | G8: 12.9 | H8: 12.9 | I8: 0 | J8: 0.6 | K8: 0.004 | L8: 0 | M8: 0 | N8: 0 | O8: 0 | P8: 0 | Q8: 0 | R8: 0.00333 | S8: 0.000667 | T8: 0.038 | U8: 0 | V8: 0.026 | W8: 0 | X8: 0 | Y8: 0 | Z8: 0 | AA8: 0 | AB8: 0 | AC8: 4.77 | AD8: 13.8 | AE8: 262 | AF8: 7.18 | AG8: 9 | AH8: 0.38 | AI8: 0.2 | AJ8: 0.0388 | AK8: 0.0504 | AL8: 2.2 | AM8: 131 | AN8: 0 | AO8: 0 | AP8: 1.2 | AQ8: 0 | AR8: 44.7 | AS8: 0.0145 | AT8: 0.017 | AU8: 0.26 | AV8: 0.096 | AW8: 0.026 | AX8: 0 | AY8: 1 | AZ8: 0 | BA8: 84.9
A9: Abricot, séché, dénoyauté | B9: Fruits séchés ou lyophilisés | C9: 13001 | D9: 271 | E9: 3.14 | F9: 0.8 | G9: 53 | H9: 40.5 | I9: 2.66 | J9: 5.7 | K9: 0.0785 | L9: 0 | M9: 0 | N9: 0 | O9: 0 | P9: 0 | Q9: 0 | R9: 0.0785 | S9: 0 | T9: 0.342 | U9: 0.342 | V9: 0.342 | W9: 0 | X9: 0 | Y9: 0 | Z9: 0 | AA9: 0.342 | AB9: 0.195 | AC9: 39 | AD9: 61.2 | AE9: 1090 | AF9: 36.5 | AG9: 68.3 | AH9: 4.33 | AI9: 3.2 | AJ9: 0.306 | AK9: 0.295 | AL9: 2.2 | AM9: 360 | AN9: 0 | AO9: 4 | AP9: 3.1 | AQ9: 0 | AR9: 1 | AS9: 0.0075 | AT9: 0.067 | AU9: 2.69 | AV9: 0.608 | AW9: 0.157 | AX9: 0 | AY9: 22 | AZ9: 0 | BA9: 29.4
A10: Accra de morue | B10: Plats à base de poisson ou produits aquatiques | C10: 25433 | D10: 259 | E10: 10 | F10: 16.1 | G10: 17.7 | H10: 1.57 | I10: 16.1 | J10: 1.5 | K10: 1.28 | L10: 0.0001 | M10: 0.0001 | N10: 0.0001 | O10: 0.0001 | P10: 0.0001 | Q10: 0.0115 | R10: 0.677 | S10: 0.515 | T10: 4.46 | U10: 4.4 | V10: 3.58 | W10: 0.0229 | X10: 0.0229 | Y10: 0.0459 | Z10: 0.037 | AA10: 2.35 | AB10: 93.9 | AC10: 826 | AD10: 52 | AE10: 199 | AF10: 17.8 | AG10: 110 | AH10: 1.1 | AI10: 72.1 | AJ10: 0.1 | AK10: 0.8 | AL10: 18 | AM10: 7.5 | AN10: 0.27 | AO10: 4.84 | AP10: 0 | AQ10: 0 | AR10: 4.75 | AS10: 0.064 | AT10: 0.1 | AU10: 2.08 | AV10: 0.35 | AW10: 0.233 | AX10: 65.2 | AY10: 28.3 | AZ10: 0 | BA10: 52.4
A11: ACEROLA JUICE,RAW | C11: 9002 | D11: 23 | E11: 0.4 | F11: 0.3 | G11: 4.8 | H11: 4.5 | J11: 0.3 | K11: 0.068 | T11: 0.082 | V11: 0.09 | AB11: 0 | AC11: 3 | AD11: 10 | AE11: 97 | AF11: 12 | AG11: 9 | AH11: 0.5 | AJ11: 0.086 | AK11: 0.1 | AL11: 0.1 | AM11: 25 | AO11: 0.18 | AP11: 1.4 | AR11: 1600 | AS11: 0.02 | AT11: 0.06 | AU11: 0.4 | AV11: 0.205 | AW11: 0.004 | AX11: 0 | AY11: 14 | BA11: 94.3
A12: ACEROLA,(WEST INDIAN CHERRY),RAW | C12: 9001 | D12: 32 | E12: 0.4 | F12: 0.3 | G12: 7.69 | J12: 1.1 | K12: 0.068 | T12: 0.082 | V12: 0.09 | AB12: 0 | AC12: 7 | AD12: 12 | AE12: 146 | AF12: 18 | AG12: 11 | AH12: 0.2 | AJ12: 0.086 | AK12: 0.1 | AL12: 0.6 | AM12: 38 | AR12: 1677.6 | AS12: 0.02 | AT12: 0.06 | AU12: 0.4 | AV12: 0.309 | AW12: 0.009 | AX12: 0 | AY12: 14 | BA12: 91.41
A13: ACORN FLOUR,FULL FAT | C13: 12060 | D13: 501 | E13: 7.49 | F13: 30.17 | G13: 54.65 | K13: 3.923 | T13: 19.11 | V13: 5.813 | AB13: 0 | AC13: 0 | AD13: 43 | AE13: 712 | AF13: 110 | AG13: 103 | AH13: 1.21 | AJ13: 0.611 | AK13: 0.64 | AM13: 3 | AR13: 0 | AS13: 0.146 | AT13: 0.154 | AU13: 2.382 | AV13: 0.931 | AW13: 0.688 | AX13: 0 | AY13: 114 | BA13: 6
A14: ACORN STEW (APACHE) | C14: 35182 | D14: 95 | E14: 6.81 | F14: 3.47 | G14: 9.22 | H14: 0.34 | J14: 0.7 | K14: 1.28 | T14: 1.68 | V14: 0.297 | AB14: 20 | AC14: 130 | AD14: 14 | AE14: 110 | AF14: 12 | AG14: 62 | AH14: 1 | AJ14: 0.03 | AK14: 1.6 | AL14: 8.3 | AM14: 0 | AO14: 0.3 | AP14: 0 | AR14: 0 | AS14: 0.175 | AT14: 0.125 | AU14: 2.14 | AV14: 0.212 | AW14: 0.055 | AX14: 0.68 | AY14: 33 | BA14: 79.78
A15: ACORNS,DRIED | C15: 12059 | D15: 509 | E15: 8.1 | F15: 31.41 | G15: 53.66 | K15: 4.084 | T15: 19.896 | V15: 6.052 | AB15: 0 | AC15: 0 | AD15: 54 | AE15: 709 | AF15: 82 | AG15: 103 | AH15: 1.04 | AJ15: 0.818 | AK15: 0.67 | AM15: 0 | AR15: 0 | AS15: 0.149 | AT15: 0.154 | AU15: 2.406 | AV15: 0.94 | AW15: 0.695 | AX15: 0 | AY15: 115 | BA15: 5.06
A16: ACORNS,RAW | C16: 12058 | D16: 387 | E16: 6.15 | F16: 23.86 | G16: 40.75 | K16: 3.102 | T16: 15.109 | V16: 4.596 | AB16: 0 | AC16: 0 | AD16: 41 | AE16: 539 | AF16: 62 | AG16: 79 | AH16: 0.79 | AJ16: 0.621 | AK16: 0.51 | AM16: 2 | AR16: 0 | AS16: 0.112 | AT16: 0.118 | AU16: 1.827 | AV16: 0.715 | AW16: 0.528 | AX16: 0 | AY16: 87 | BA16: 27.9
A17: AGAVE,CKD (SOUTHWEST) | C17: 35193 | D17: 135 | E17: 0.99 | F17: 0.29 | G17: 32 | H17: 20.87 | J17: 10.6 | AB17: 0 | AC17: 13 | AD17: 460 | AE17: 59 | AF17: 39 | AG17: 9 | AH17: 3.55 | AJ17: 0.112 | AK17: 0.25 | AL17: 0.2 | AM17: 6 | AN17: 0 | AO17: 0.36 | AP17: 4.9 | AR17: 0.3 | AS17: 0.012 | AT17: 0.099 | AU17: 0.162 | AV17: 0.041 | AW17: 0.087 | AX17: 0 | AY17: 3 | BA17: 65.4
A18: AGAVE,DRIED (SOUTHWEST) | C18: 35194 | D18: 341 | E18: 1.71 | F18: 0.69 | G18: 81.98 | H18: 50.7 | J18: 15.6 | AB18: 0 | AC18: 14 | AD18: 770 | AE18: 767 | AF18: 207 | AG18: 37 | AH18: 3.64 | AJ18: 0.189 | AK18: 12.1 | AL18: 0.6 | AM18: 1 | AN18: 0 | AO18: 0.76 | AP18: 0.5 | AR18: 0.3 | AS18: 0.021 | AT18: 0.644 | AU18: 0.87 | AV18: 0.15 | AW18: 0.216 | AX18: 0 | AY18: 7 | BA18: 11.64
A19: AGAVE,RAW (SOUTHWEST) | C19: 35192 | D19: 68 | E19: 0.52 | F19: 0.15 | G19: 16.23 | H19: 2.58 | J19: 6.6 | AB19: 0 | AC19: 14 | AD19: 417 | AE19: 127 | AF19: 55 | AG19: 7 | AH19: 1.8 | AJ19: 0.138 | AK19: 0.15 | AL19: 0.4 | AM19: 2 | AN19: 0 | AO19: 0.23 | AP19: 5.3 | AR19: 4 | AS19: 0.029 | AT19: 0.039 | AU19: 0.162 | AV19: 0.041 | AW19: 0.055 | AX19: 0 | AY19: 7 | BA19: 81.83
A20: Agneau, collier, cru | B20: Viandes | C20: 21514 | D20: 184 | E20: 16.4 | F20: 13.2 | G20: 0 | H20: 0 | I20: 0 | J20: 0 | K20: 5.8 | L20: 0 | M20: 0 | N20: 0 | O20: 0 | P20: 0.0891 | Q20: 0.761 | R20: 2.77 | S20: 1.61 | T20: 4.93 | U20: 4.69 | V20: 0.763 | W20: 0.129 | X20: 0 | Y20: 0 | Z20: 0 | AA20: 0.38 | AB20: 0 | AC20: 0 | AD20: 0 | AE20: 0 | AF20: 0 | AG20: 0 | AH20: 1.27 | AI20: 0 | AJ20: 0 | AK20: 3.83 | AL20: 4.61 | AM20: 0 | AN20: 0 | AO20: 0 | AP20: 0 | AQ20: 0 | AR20: 0 | AS20: 0 | AT20: 0 | AU20: 4.28 | AV20: 0 | AW20: 0.153 | AX20: 2.06 | AY20: 0 | AZ20: 0 | BA20: 68
A21: Agneau, côte filet, crue | B21: Viandes | C21: 21516 | D21: 232 | E21: 16.3 | F21: 18.5 | G21: 0 | H21: 0 | I21: 0 | J21: 0 | K21: 8.33 | L21: 0 | M21: 0 | N21: 0 | O21: 0 | P21: 0.14 | Q21: 1.15 | R21: 3.96 | S21: 2.23 | T21: 6.96 | U21: 6.59 | V21: 1.04 | W21: 0.187 | X21: 0 | Y21: 0 | Z21: 0 | AA21: 0.521 | AB21: 0 | AC21: 0 | AD21: 0 | AE21: 0 | AF21: 0 | AG21: 0 | AH21: 1.26 | AI21: 0 | AJ21: 0 | AK21: 2.08 | AL21: 3.51 | AM21: 0 | AN21: 0 | AO21: 0 | AP21: 0 | AQ21: 0 | AR21: 0 | AS21: 0 | AT21: 0 | AU21: 5.61 | AV21: 0 | AW21: 0.242 | AX21: 1.22 | AY21: 0 | AZ21: 0 | BA21: 62.5
A22: Agneau, côte première, crue | B22: Viandes | C22: 21517 | D22: 271 | E22: 15.5 | F22: 23.2 | G22: 0 | H22: 0 | I22: 0 | J22: 0 | K22: 10.5 | L22: 0 | M22: 0 | N22: 0 | O22: 0 | P22: 0.176 | Q22: 1.45 | R22: 5 | S22: 2.79 | T22: 8.77 | U22: 8.27 | V22: 1.27 | W22: 0.234 | X22: 0 | Y22: 0 | Z22: 0 | AA22: 0.641 | AB22: 0 | AC22: 0 | AD22: 0 | AE22: 0 | AF22: 0 | AG22: 0 | AH22: 1.21 | AI22: 0 | AJ22: 0 | AK22: 1.86 | AL22: 3.1 | AM22: 0 | AN22: 0 | AO22: 0 | AP22: 0 | AQ22: 0 | AR22: 0 | AS22: 0 | AT22: 0 | AU22: 5.23 | AV22: 0 | AW22: 0.212 | AX22: 1.39 | AY22: 0 | AZ22: 0 | BA22: 58.9
A23: Agneau, côtelette, grillée | B23: Viandes | C23: 21501 | D23: 234 | E23: 25.7 | F23: 14.6 | G23: 0 | H23: 0 | I23: 0 | J23: 0 | K23: 6.6 | L23: 0 | M23: 0 | N23: 0.08 | O23: 0.0636 | P23: 0.0936 | Q23: 0.832 | R23: 3.07 | S23: 2.3 | T23: 3.95 | U23: 3.95 | V23: 0.817 | W23: 0.114 | X23: 0.013 | Y23: 0.00736 | Z23: 0.0594 | AA23: 0.368 | AB23: 48.9 | AC23: 120 | AD23: 19.7 | AE23: 0 | AF23: 20.1 | AG23: 184 | AH23: 0 | AI23: 5 | AJ23: 0.0767 | AK23: 3.09 | AL23: 16 | AM23: 5.5 | AN23: 0 | AO23: 0 | AP23: 0 | AQ23: 0 | AR23: 0 | AS23: 0 | AT23: 0 | AU23: 7.45 | AV23: 0 | AW23: 0 | AX23: 2.8 | AY23: 0 | AZ23: 0 | BA23: 60.6
A24: Agneau, épaule, maigre, rôtie | B24: Viandes | C24: 21507 | D24: 187 | E24: 22.3 | F24: 10.9 | G24: 0 | H24: 0 | I24: 0 | J24: 0 | K24: 6.39 | L24: 0 | M24: 0 | N24: 0 | O24: 0 | P24: 0 | Q24: 0.55 | R24: 2.47 | S24: 2.13 | T24: 3.51 | U24: 3.51 | V24: 0.597 | W24: 0.254 | X24: 0 | Y24: 0 | Z24: 0 | AA24: 0.254 | AB24: 72 | AC24: 70 | AD24: 11 | AE24: 278 | AF24: 22 | AG24: 188 | AH24: 1.87 | AI24: 5 | AJ24: 0 | AK24: 0 | AL24: 6 | AM24: 0 | AN24: 0 | AO24: 0.1 | AP24: 0 | AQ24: 0 | AR24: 0 | AS24: 0.13 | AT24: 0.24 | AU24: 6 | AV24: 0.66 | AW24: 0.19 | AX24: 2.59 | AY24: 4 | AZ24: 0 | BA24: 65
A25: Agneau, épaule, rôtie | B25: Viandes | C25: 21506 | D25: 287 | E25: 30.5 | F25: 18.3 | G25: 0 | H25: 0 | I25: 0 | J25: 0 | K25: 9.43 | L25: 0 | M25: 0 | N25: 0 | O25: 0 | P25: 0.0843 | Q25: 0.969 | R25: 4.41 | S25: 3.56 | T25: 6.53 | U25: 6.53 | V25: 1.59 | W25: 0.236 | X25: 0 | Y25: 0 | Z25: 0 | AA25: 0.464 | AB25: 99.8 | AC25: 95.5 | AD25: 8.8 | AE25: 376 | AF25: 25.4 | AG25: 231 | AH25: 2.2 | AI25: 8.6 | AJ25: 0.2 | AK25: 4.7 | AL25: 5 | AM25: 7.5 | AN25: 0.5 | AO25: 0.09 | AP25: 0 | AQ25: 0 | AR25: 6.9 | AS25: 0.064 | AT25: 0.301 | AU25: 7.2 | AV25: 0.295 | AW25: 0.214 | AX25: 2.72 | AY25: 24.2 | AZ25: 0 | BA25: 53.7
A26: Agneau, gigot, cru | B26: Viandes | C26: 21502 | D26: 128 | E26: 17.8 | F26: 6.29 | G26: 0 | H26: 0 | I26: 0 | J26: 0 | K26: 2.58 | L26: 0 | M26: 0 | N26: 0 | O26: 0.012 | P26: 0.0448 | Q26: 0.378 | R26: 1.38 | S26: 0.766 | T26: 2.32 | U26: 2.32 | V26: 0.457 | W26: 0.0483 | X26: 0.0374 | Y26: 0.00962 | Z26: 0.192 | AA26: 0.17 | AB26: 73.3 | AC26: 71.3 | AD26: 10 | AE26: 279 | AF26: 21.9 | AG26: 195 | AH26: 1.45 | AI26: 1.28 | AJ26: 0.122 | AK26: 2.94 | AL26: 4.7 | AM26: 45 | AN26: 0.4 | AO26: 0.7 | AP26: 0 | AQ26: 0 | AR26: 0.25 | AS26: 0.18 | AT26: 0.307 | AU26: 6.44 | AV26: 0.55 | AW26: 0.255 | AX26: 1.88 | AY26: 1.6 | AZ26: 0 | BA26: 73.5
A27: Agneau, gigot, rôti | B27: Viandes | C27: 21503 | D27: 193 | E27: 23.8 | F27: 10.9 | G27: 0 | H27: 0 | I27: 0 | J27: 0 | K27: 5.54 | L27: 0 | M27: 0 | N27: 0 | O27: 0.042 | P27: 0.073 | Q27: 0.654 | R27: 2.82 | S27: 1.95 | T27: 4 | U27: 4 | V27: 0.956 | W27: 0.129 | X27: 0.00764 | Y27: 0.00608 | Z27: 0.0425 | AA27: 0.366 | AB27: 97.6 | AC27: 159 | AD27: 21.8 | AE27: 0 | AF27: 30.7 | AG27: 0 | AH27: 2.1 | AI27: 5 | AJ27: 0.115 | AK27: 3.17 | AL27: 6.9 | AM27: 0 | AN27: 0 | AO27: 0.18 | AP27: 0 | AQ27: 0 | AR27: 0 | AS27: 0.1 | AT27: 0 | AU27: 8.02 | AV27: 0.83 | AW27: 0.372 | AX27: 3.05 | AY27: 0 | AZ27: 0 | BA27: 67.1
A28: Agneau, selle, crue | B28: Viandes | C28: 21515 | D28: 215 | E28: 16.2 | F28: 16.7 | G28: 0 | H28: 0 | I28: 0 | J28: 0 | K28: 7.44 | L28: 0 | M28: 0 | N28: 0 | O28: 0 | P28: 0.118 | Q28: 0.988 | R28: 3.55 | S28: 2 | T28: 6.25 | U28: 5.94 | V28: 0.987 | W28: 0.16 | X28: 0 | Y28: 0 | Z28: 0 | AA28: 0.502 | AB28: 0 | AC28: 0 | AD28: 0 | AE28: 0 | AF28: 0 | AG28: 0 | AH28: 1.23 | AI28: 0 | AJ28: 0 | AK28: 2.41 | AL28: 3.56 | AM28: 0 | AN28: 0 | AO28: 0 | AP28: 0 | AQ28: 0 | AR28: 0 | AS28: 0 | AT28: 0 | AU28: 5.59 | AV28: 0 | AW28: 0.229 | AX28: 1.53 | AY28: 0 | AZ28: 0 | BA28: 64.7
A29: AGUTUK,FISH W/ SHORTENING (ALASKAN ICE CREAM) (ALASKA NATIVE | C29: 35225 | D29: 470 | E29: 9 | F29: 43.5 | G29: 10.5 | K29: 8.6 | T29: 15.6 | V29: 17.3 | AB29: 26 | AC29: 24 | AE29: 206 | AF29: 16 | AG29: 134 | AH29: 0.2 | AJ29: 0.03 | AK29: 0.47 | AM29: 34 | AO29: 4 | AS29: 0.06 | AT29: 0.06 | AU29: 1.43 | BA29: 34
A30: AGUTUK,FISH/BERRY W/ SEAL OIL (ICE CREAM) (ALASKA NATIVE) | C30: 35001 | D30: 353 | E30: 3.4 | F30: 31.8 | G30: 13.4 | J30: 0.5 | K30: 7.7 | T30: 14.4 | V30: 8.4 | AB30: 10 | AC30: 21 | AD30: 8 | AE30: 70 | AF30: 7 | AG30: 46 | AH30: 0.3 | AJ30: 0.03 | AK30: 0.18 | AO30: 2.36 | AR30: 2.9 | AS30: 0.04 | AT30: 0.05 | AU30: 0.55 | AV30: 0.02 | AW30: 0.01 | AY30: 3 | BA30: 47.3
A31: AGUTUK,MEAT-CARIBOU (ALASKAN ICE CREAM) (ALASKA NATIVE) | C31: 35003 | D31: 258 | E31: 21.7 | F31: 18.6 | G31: 0.9 | K31: 5.1 | T31: 8.7 | V31: 3.6 | AB31: 89 | AC31: 95 | AD31: 16 | AE31: 228 | AF31: 20 | AG31: 170 | AH31: 4.55 | AJ31: 0.19 | AK31: 3.83 | AR31: 2.2 | AS31: 0.18 | AT31: 0.66 | AU31: 4.26 | AV31: 1.95 | AW31: 0.23 | AX31: 4.83 | AY31: 4 | BA31: 55.2
A32: Ail frais | B32: Herbes, épices et assaisonnements | C32: 11000 | D32: 131 | E32: 7.9 | F32: 0.47 | G32: 21.5 | H32: 1.57 | I32: 13.4 | J32: 4.7 | K32: 0.096 | L32: 0 | M32: 0 | N32: 0 | O32: 0.002 | P32: 0 | Q32: 0.000667 | R32: 0.087 | S32: 0 | T32: 0.0107 | U32: 0.0107 | V32: 0.266 | W32: 0.02 | X32: 0 | Y32: 0 | Z32: 0 | AA32: 0.23 | AB32: 0 | AC32: 17.6 | AD32: 17.7 | AE32: 555 | AF32: 20.7 | AG32: 161 | AH32: 1.32 | AI32: 3 | AJ32: 0.085 | AK32: 0.78 | AL32: 5.1 | AM32: 2.916666667 | AN32: 0 | AO32: 0.01 | AP32: 1.7 | AQ32: 0 | AR32: 17 | AS32: 0.13 | AT32: 0.03 | AU32: 0.3 | AV32: 0.596 | AW32: 1.18 | AX32: 0 | AY32: 5 | AZ32: 0 | BA32: 64
A33: ALCOHOLIC BEV DISTILLED,ALL (GIN,RUM,VODKA,WHISKEY) 100PROOF | C33: 14533 | D33: 295 | E33: 0 | F33: 0 | G33: 0 | J33: 0 | K33: 0 | T33: 0 | V33: 0 | AB33: 0 | AC33: 1 | AD33: 0 | AE33: 2 | AF33: 0 | AG33: 4 | AH33: 0.04 | AJ33: 0.021 | AK33: 0.04 | AL33: 0 | AR33: 0 | AS33: 0.006 | AT33: 0.004 | AU33: 0.013 | AV33: 0 | AW33: 0.001 | AX33: 0 | AY33: 0 | BA33: 57.5
A34: ALCOHOLIC BEV,BEER,LT | C34: 14006 | D34: 29 | E34: 0.24 | F34: 0 | G34: 1.64 | H34: 0.09 | J34: 0 | K34: 0 | T34: 0 | V34: 0 | AB34: 0 | AC34: 4 | AD34: 4 | AE34: 21 | AF34: 5 | AG34: 12 | AH34: 0.03 | AJ34: 0.006 | AK34: 0.01 | AL34: 0.4 | AM34: 0 | AN34: 0 | AO34: 0 | AP34: 0 | AR34: 0 | AS34: 0.005 | AT34: 0.015 | AU34: 0.391 | AV34: 0.03 | AW34: 0.034 | AX34: 0.02 | AY34: 6 | BA34: 94.88
A35: ALCOHOLIC BEV,BEER,LT,BUD LT | C35: 14007 | D35: 29 | E35: 0.25 | F35: 0 | G35: 1.3 | J35: 0 | AB35: 0 | AC35: 3 | AD35: 3 | AE35: 26 | AF35: 7 | AG35: 11 | AH35: 0 | AJ35: 0.002 | AK35: 0 | BA35: 95
A36: ALCOHOLIC BEV,BEER,LT,BUDWEISER SEL | C36: 14005 | D36: 28 | E36: 0.2 | F36: 0 | G36: 0.87 | J36: 0 | AB36: 0 | AC36: 3 | AD36: 4 | AE36: 26 | AF36: 6 | AH36: 0 | AJ36: 0.001 | AK36: 0.01 | BA36: 95.3
A37: ALCOHOLIC BEV,BEER,LT,HIGHER ALCOHOL | C37: 14248 | D37: 46 | E37: 0.25 | F37: 0 | G37: 0.77 | H37: 0.09 | J37: 0 | K37: 0 | T37: 0 | V37: 0 | AB37: 0 | AC37: 4 | AD37: 4 | AE37: 21 | AF37: 5 | AG37: 12 | AH37: 0.03 | AJ37: 0.006 | AK37: 0.01 | AL37: 0.4 | AM37: 0 | AN37: 0 | AO37: 0 | AP37: 0 | AR37: 0 | AS37: 0.005 | AT37: 0.015 | AU37: 0.391 | AW37: 0.034 | AX37: 0.02 | AY37: 6 | BA37: 92.88
A38: ALCOHOLIC BEV,BEER,LT,LO CARB | C38: 14013 | D38: 27 | E38: 0.17 | F38: 0 | G38: 0.73 | H38: 0 | J38: 0 | K38: 0 | T38: 0 | V38: 0 | AB38: 0 | AC38: 3 | AD38: 4 | AE38: 17 | AF38: 4 | AG38: 8 | AH38: 0 | AJ38: 0.002 | AK38: 0.01 | AL38: 0 | AM38: 0 | AN38: 0 | AO38: 0 | AP38: 0 | AR38: 0 | AS38: 0 | AT38: 0 | AU38: 0 | AW38: 0 | AX38: 0 | AY38: 0 | BA38: 95.4
A39: ALCOHOLIC BEV,BEER,REG,ALL | C39: 14003 | D39: 43 | E39: 0.46 | F39: 0 | G39: 3.55 | H39: 0 | J39: 0 | K39: 0 | T39: 0 | V39: 0 | AB39: 0 | AC39: 4 | AD39: 4 | AE39: 27 | AF39: 6 | AG39: 14 | AH39: 0.02 | AJ39: 0.005 | AK39: 0.01 | AL39: 0.6 | AM39: 0 | AN39: 0 | AO39: 0 | AP39: 0 | AR39: 0 | AS39: 0.005 | AT39: 0.025 | AU39: 0.513 | AV39: 0.041 | AW39: 0.046 | AX39: 0.02 | AY39: 6 | BA39: 91.96
A40: ALCOHOLIC BEV,BEER,REG,BUDWEISER | C40: 14004 | D40: 41 | E40: 0.36 | F40: 0 | G40: 2.97 | J40: 0 | AB40: 0 | AC40: 3 | AD40: 4 | AE40: 33 | AF40: 7 | AG40: 13 | AH40: 0 | AJ40: 0.003 | AK40: 0 | BA40: 92.77
A41: ALCOHOLIC BEV,CREME DE MENTHE,72 PROOF | C41: 14034 | D41: 371 | E41: 0 | F41: 0.3 | G41: 41.6 | H41: 41.6 | J41: 0 | K41: 0.014 | T41: 0.015 | V41: 0.167 | AB41: 0 | AC41: 5 | AD41: 0 | AE41: 0 | AF41: 0 | AG41: 0 | AH41: 0.07 | AJ41: 0.08 | AK41: 0.04 | AL41: 0.4 | AM41: 0 | AN41: 0 | AO41: 0 | AP41: 0 | AR41: 0 | AS41: 0 | AT41: 0 | AU41: 0.003 | AV41: 0 | AW41: 0 | AX41: 0 | AY41: 0 | BA41: 28.3
A42: ALCOHOLIC BEV,DAIQUIRI,CND | C42: 14009 | D42: 125 | E42: 0 | F42: 0 | G42: 15.7 | J42: 0 | K42: 0 | AB42: 0 | AC42: 40 | AD42: 0 | AE42: 11 | AF42: 1 | AG42: 2 | AH42: 0.01 | AJ42: 0.016 | AK42: 0.03 | AL42: 0.1 | AM42: 0 | AR42: 1.3 | AS42: 0.001 | AT42: 0.001 | AU42: 0.014 | AV42: 0.007 | AW42: 0.003 | AX42: 0 | AY42: 1 | BA42: 74.6
A43: ALCOHOLIC BEV,DAIQUIRI,PREPARED-FROM-RECIPE | C43: 14010 | D43: 186 | E43: 0.06 | F43: 0.06 | G43: 6.94 | H43: 5.58 | J43: 0.1 | K43: 0.006 | T43: 0.006 | V43: 0.016 | AB43: 0 | AC43: 5 | AD43: 3 | AE43: 21 | AF43: 2 | AG43: 5 | AH43: 0.09 | AJ43: 0.022 | AK43: 0.04 | AL43: 0.1 | AM43: 0 | AO43: 0.03 | AP43: 0.1 | AR43: 1.6 | AS43: 0.013 | AT43: 0.005 | AU43: 0.051 | AV43: 0.017 | AW43: 0.008 | AX43: 0 | AY43: 2 | BA43: 69.74
A44: ALCOHOLIC BEV,DISTILLED,ALL (GIN,RUM,VODKA,WHISKEY) 80 PROOF | C44: 14037 | D44: 231 | E44: 0 | F44: 0 | G44: 0 | H44: 0 | J44: 0 | K44: 0 | T44: 0 | V44: 0 | AB44: 0 | AC44: 1 | AD44: 0 | AE44: 2 | AF44: 0 | AG44: 4 | AH44: 0.04 | AJ44: 0.021 | AK44: 0.04 | AL44: 0 | AM44: 0 | AN44: 0 | AO44: 0 | AP44: 0 | AR44: 0 | AS44: 0.006 | AT44: 0.004 | AU44: 0.013 | AV44: 0 | AW44: 0.001 | AX44: 0 | AY44: 0 | BA44: 66.6
A45: ALCOHOLIC BEV,DISTILLED,ALL (GIN,RUM,VODKA,WHISKEY) 86 PROOF | C45: 14550 | D45: 250 | E45: 0 | F45: 0 | G45: 0.1 | H45: 0 | J45: 0 | K45: 0 | T45: 0 | V45: 0 | AB45: 0 | AC45: 1 | AD45: 0 | AE45: 2 | AF45: 0 | AG45: 4 | AH45: 0.04 | AJ45: 0.021 | AK45: 0.04 | AL45: 0 | AM45: 0 | AN45: 0 | AO45: 0 | AP45: 0 | AR45: 0 | AS45: 0.006 | AT45: 0.004 | AU45: 0.013 | AV45: 0 | AW45: 0.001 | AX45: 0 | AY45: 0 | BA45: 63.9
A46: ALCOHOLIC BEV,DISTILLED,ALL (GIN,RUM,VODKA,WHISKEY) 90 PROOF | C46: 14551 | D46: 263 | E46: 0 | F46: 0 | G46: 0 | H46: 0 | J46: 0 | K46: 0 | T46: 0 | V46: 0 | AB46: 0 | AC46: 1 | AD46: 0 | AE46: 2 | AF46: 0 | AG46: 4 | AH46: 0.04 | AJ46: 0.021 | AK46: 0.04 | AL46: 0 | AM46: 0 | AN46: 0 | AO46: 0 | AP46: 0 | AR46: 0 | AS46: 0.006 | AT46: 0.004 | AU46: 0.013 | AV46: 0 | AW46: 0.001 | AX46: 0 | AY46: 0 | BA46: 62.1
A47: ALCOHOLIC BEV,DISTILLED,ALL (GIN,RUM,VODKA,WHISKEY) 94 PROOF | C47: 14532 | D47: 275 | E47: 0 | F47: 0 | G47: 0 | J47: 0 | K47: 0 | T47: 0 | V47: 0 | AB47: 0 | AC47: 1 | AD47: 0 | AE47: 2 | AF47: 0 | AG47: 4 | AH47: 0.04 | AJ47: 0.021 | AK47: 0.04 | AL47: 0 | AM47: 0 | AR47: 0 | AS47: 0.006 | AT47: 0.004 | AU47: 0.013 | AV47: 0 | AW47: 0.001 | AX47: 0 | AY47: 0 | BA47: 60.3
A48: ALCOHOLIC BEV,DISTILLED,GIN,90 PROOF | C48: 14049 | D48: 263 | E48: 0 | F48: 0 | G48: 0 | H48: 0 | J48: 0 | K48: 0 | T48: 0 | V48: 0 | AB48: 0 | AC48: 2 | AD48: 0 | AE48: 0 | AF48: 0 | AG48: 0 | AH48: 0 | AJ48: 0.004 | AK48: 0 | AL48: 0 | AM48: 0 | AN48: 0 | AO48: 0 | AP48: 0 | AR48: 0 | AS48: 0 | AT48: 0 | AU48: 0 | AV48: 0 | AW48: 0 | AX48: 0 | AY48: 0 | BA48: 62.1
A49: ALCOHOLIC BEV,DISTILLED,RUM,80 PROOF | C49: 14050 | D49: 231 | E49: 0 | F49: 0 | G49: 0 | H49: 0 | J49: 0 | K49: 0 | T49: 0 | V49: 0 | AB49: 0 | AC49: 1 | AD49: 0 | AE49: 2 | AF49: 0 | AG49: 5 | AH49: 0.12 | AJ49: 0.05 | AK49: 0.07 | AL49: 0 | AM49: 0 | AN49: 0 | AO49: 0 | AP49: 0 | AR49: 0 | AS49: 0.008 | AT49: 0 | AU49: 0 | AV49: 0 | AW49: 0 | AX49: 0 | AY49: 0 | BA49: 66.6
A50: ALCOHOLIC BEV,DISTILLED,VODKA,80 PROOF | C50: 14051 | D50: 231 | E50: 0 | F50: 0 | G50: 0 | H50: 0 | J50: 0 | K50: 0 | T50: 0 | V50: 0 | AB50: 0 | AC50: 1 | AD50: 0 | AE50: 1 | AF50: 0 | AG50: 5 | AH50: 0.01 | AJ50: 0.01 | AK50: 0 | AL50: 0 | AR50: 0 | AS50: 0.005 | AT50: 0.007 | AU50: 0 | AV50: 0 | AW50: 0 | AX50: 0 | AY50: 0 | BA50: 66.6
A51: ALCOHOLIC BEV,DISTILLED,WHISKEY,86 PROOF | C51: 14052 | D51: 250 | E51: 0 | F51: 0 | G51: 0.1 | H51: 0.1 | J51: 0 | K51: 0 | T51: 0 | V51: 0 | AB51: 0 | AC51: 0 | AD51: 0 | AE51: 1 | AF51: 0 | AG51: 3 | AH51: 0.02 | AJ51: 0.014 | AK51: 0.02 | AL51: 0 | AM51: 0 | AR51: 0 | AS51: 0.008 | AT51: 0.001 | AU51: 0.05 | AV51: 0 | AW51: 0 | AX51: 0 | AY51: 0 | BA51: 63.9
A52: ALCOHOLIC BEV,LIQUEUR,COFFEE W/ CRM,34 PROOF | C52: 14415 | D52: 327 | E52: 2.8 | F52: 15.7 | G52: 20.9 | H52: 19.76 | J52: 0 | K52: 9.664 | T52: 4.458 | V52: 0.669 | AB52: 58 | AC52: 92 | AD52: 16 | AE52: 32 | AF52: 2 | AG52: 50 | AH52: 0.13 | AJ52: 0.04 | AK52: 0.16 | AL52: 0.4 | AM52: 173 | AN52: 0 | AO52: 0.45 | AP52: 1.3 | AR52: 0.2 | AS52: 0.011 | AT52: 0.057 | AU52: 0.078 | AV52: 0.087 | AW52: 0.011 | AX52: 0.08 | AY52: 2 | BA52: 46.5
A53: ALCOHOLIC BEV,LIQUEUR,COFFEE,53 PROOF | C53: 14414 | D53: 336 | E53: 0.1 | F53: 0.3 | G53: 46.8 | H53: 38.3 | J53: 0 | K53: 0.106 | T53: 0.022 | V53: 0.105 | AB53: 0 | AC53: 8 | AD53: 1 | AE53: 30 | AF53: 3 | AG53: 6 | AH53: 0.06 | AJ53: 0.04 | AK53: 0.03 | AL53: 0.4 | AM53: 0 | AN53: 0 | AO53: 0 | AP53: 0 | AR53: 0 | AS53: 0.004 | AT53: 0.012 | AU53: 0.144 | AV53: 0 | AW53: 0 | AX53: 0 | AY53: 0 | BA53: 31
A54: ALCOHOLIC BEV,LIQUEUR,COFFEE,63 PROOF | C54: 14534 | D54: 308 | E54: 0.1 | F54: 0.3 | G54: 32.2 | H54: 32.2 | J54: 0 | K54: 0.106 | T54: 0.022 | V54: 0.105 | AB54: 0 | AC54: 8 | AD54: 1 | AE54: 30 | AF54: 3 | AG54: 6 | AH54: 0.06 | AJ54: 0.04 | AK54: 0.03 | AL54: 0.3 | AM54: 0 | AR54: 0 | AS54: 0.004 | AT54: 0.012 | AU54: 0.144 | AV54: 0 | AW54: 0 | AX54: 0 | AY54: 0 | BA54: 41.4
A55: ALCOHOLIC BEV,MALT BEER,HARD LEMONADE | C55: 14239 | D55: 68 | E55: 0 | F55: 0 | G55: 10.07 | H55: 9.77 | J55: 0 | K55: 0 | T55: 0 | V55: 0 | AB55: 0 | AC55: 5 | AD55: 4 | AE55: 27 | AF55: 4 | AG55: 7 | AH55: 0.03 | AJ55: 0.008 | AK55: 0.01 | AL55: 0.3 | AM55: 0 | AN55: 0 | AO55: 0.02 | AP55: 0 | AR55: 2.8 | AS55: 0.006 | AT55: 0.01 | AU55: 0.225 | AV55: 0.041 | AW55: 0.022 | AX55: 0.01 | AY55: 4 | BA55: 85.74
A56: ALCOHOLIC BEV,PINA COLADA,CND | C56: 14015 | D56: 237 | E56: 0.6 | F56: 7.6 | G56: 27.6 | J56: 0.1 | K56: 6.571 | T56: 0.442 | V56: 0.137 | AB56: 0 | AC56: 71 | AD56: 1 | AE56: 83 | AF56: 6 | AG56: 36 | AH56: 0.03 | AJ56: 0.087 | AK56: 0.2 | AL56: 0.7 | AM56: 1 | AR56: 1.5 | AS56: 0.017 | AT56: 0.005 | AU56: 0.104 | AV56: 0.054 | AW56: 0.017 | AX56: 0 | AY56: 6 | BA56: 54.9
A57: ALCOHOLIC BEV,PINA COLADA,PREPARED-FROM-RECIPE | C57: 14017 | D57: 174 | E57: 0.42 | F57: 1.88 | G57: 22.66 | H57: 22.33 | J57: 0.3 | K57: 1.636 | T57: 0.082 | V57: 0.033 | AB57: 0 | AC57: 6 | AD57: 8 | AE57: 71 | AF57: 8 | AG57: 7 | AH57: 0.21 | AJ57: 0.079 | AK57: 0.13 | AL57: 0.7 | AM57: 0 | AO57: 0.02 | AP57: 0.1 | AR57: 4.9 | AS57: 0.029 | AT57: 0.017 | AU57: 0.118 | AV57: 0.061 | AW57: 0.045 | AX57: 0 | AY57: 12 | BA57: 64.99
A58: ALCOHOLIC BEV,RICE (SAKE) | C58: 43479 | D58: 134 | E58: 0.5 | F58: 0 | G58: 5 | H58: 0 | J58: 0 | K58: 0 | T58: 0 | V58: 0 | AB58: 0 | AC58: 2 | AD58: 5 | AE58: 25 | AF58: 6 | AG58: 6 | AH58: 0.1 | AJ58: 0.009 | AK58: 0.02 | AL58: 1.4 | AM58: 0 | AN58: 0 | AO58: 0 | AP58: 0 | AR58: 0 | AS58: 0 | AT58: 0 | AU58: 0 | AW58: 0 | AX58: 0 | AY58: 0 | BA58: 78.4
A59: ALCOHOLIC BEV,TEQUILA SUNRISE,CND | C59: 14019 | D59: 110 | E59: 0.3 | F59: 0.1 | G59: 11.3 | J59: 0 | AB59: 0 | AC59: 57 | AD59: 0 | AE59: 10 | AF59: 7 | AG59: 10 | AH59: 0.02 | AJ59: 0.042 | AK59: 0.6 | AL59: 0 | AM59: 5 | AR59: 19.3 | AS59: 0.038 | AT59: 0.016 | AU59: 0.19 | AV59: 0.088 | AW59: 0.05 | AX59: 0 | AY59: 11 | BA59: 78.8
A60: ALCOHOLIC BEV,WHISKEY SOUR | C60: 14531 | D60: 149 | E60: 0 | F60: 0.03 | G60: 13.17 | J60: 0 | K60: 0.005 | T60: 0.001 | V60: 0.012 | AB60: 0 | AC60: 20 | AD60: 1 | AE60: 5 | AF60: 1 | AG60: 6 | AH60: 0.08 | AJ60: 0.009 | AK60: 0.06 | AL60: 0.1 | AR60: 1.6 | AS60: 0.011 | AT60: 0.006 | AU60: 0.02 | AV60: 0.008 | AW60: 0 | AX60: 0 | AY60: 0 | BA60: 72.6
A61: ALCOHOLIC BEV,WHISKEY SOUR,CND | C61: 14027 | D61: 119 | E61: 0 | F61: 0 | G61: 13.4 | J61: 0.1 | AB61: 0 | AC61: 44 | AD61: 0 | AE61: 11 | AF61: 1 | AG61: 6 | AH61: 0.01 | AJ61: 0.009 | AK61: 0.06 | AL61: 0.1 | AM61: 1 | AR61: 1.6 | AS61: 0.011 | AT61: 0.006 | AU61: 0.02 | AV61: 0.008 | AW61: 0 | AX61: 0 | AY61: 0 | BA61: 76.9
A62: ALCOHOLIC BEV,WHISKEY SOUR,PREP FROM ITEM 14028 | C62: 14029 | D62: 153 | E62: 0.06 | F62: 0.06 | G62: 12.82 | H62: 12.78 | J62: 0 | K62: 0.005 | T62: 0.001 | V62: 0.011 | AB62: 0 | AC62: 61 | AD62: 1 | AE62: 18 | AF62: 1 | AG62: 5 | AH62: 0.08 | AJ62: 0.008 | AK62: 0.06 | AL62: 0.2 | AM62: 0 | AO62: 0 | AP62: 0 | AR62: 1.6 | AS62: 0.01 | AT62: 0.008 | AU62: 0.005 | AV62: 0.008 | AW62: 0 | AX62: 0 | AY62: 0 | BA62: 72.44
A63: ALCOHOLIC BEV,WHISKEY SOUR,PREP W/ H2O,WHISKEY & PDR MIX | C63: 14025 | D63: 164 | E63: 0.1 | F63: 0.02 | G63: 15.85 | H63: 15.81 | J63: 0 | K63: 0.003 | T63: 0.001 | V63: 0.006 | AB63: 0 | AC63: 47 | AD63: 46 | AE63: 4 | AF63: 3 | AG63: 4 | AH63: 0.08 | AJ63: 0.034 | AK63: 0.04 | AL63: 0.1 | AM63: 0 | AO63: 0 | AP63: 0 | AR63: 0.4 | AS63: 0.003 | AT63: 0.002 | AU63: 0.005 | AV63: 0.01 | AW63: 0 | AX63: 0 | AY63: 0 | BA63: 69.15
A64: ALCOHOLIC BEV,WINE,COOKING | C64: 43154 | D64: 50 | E64: 0.5 | F64: 0 | G64: 6.3 | H64: 1.55 | J64: 0 | K64: 0 | T64: 0 | V64: 0 | AB64: 0 | AC64: 626 | AD64: 9 | AE64: 88 | AF64: 10 | AG64: 15 | AH64: 0.4 | AJ64: 0.011 | AK64: 0.08 | AL64: 0.2 | AM64: 0 | AN64: 0 | AO64: 0 | AP64: 0 | AR64: 0 | AS64: 0 | AT64: 0.01 | AU64: 0.1 | AW64: 0.02 | AX64: 0 | AY64: 1 | BA64: 88.9
A65: ALCOHOLIC BEV,WINE,DSSRT,DRY | C65: 14536 | D65: 152 | E65: 0.2 | F65: 0 | G65: 11.67 | H65: 1.09 | J65: 0 | K65: 0 | T65: 0 | V65: 0 | AB65: 0 | AC65: 9 | AD65: 8 | AE65: 92 | AF65: 9 | AG65: 9 | AH65: 0.24 | AJ65: 0.045 | AK65: 0.07 | AL65: 0.5 | AM65: 0 | AO65: 0 | AP65: 0 | AR65: 0 | AS65: 0.018 | AT65: 0.018 | AU65: 0.213 | AV65: 0.032 | AW65: 0 | AX65: 0 | AY65: 0 | BA65: 72.53
A66: ALCOHOLIC BEV,WINE,DSSRT,SWT | C66: 14057 | D66: 160 | E66: 0.2 | F66: 0 | G66: 13.69 | H66: 7.78 | J66: 0 | K66: 0 | T66: 0 | V66: 0 | AB66: 0 | AC66: 9 | AD66: 8 | AE66: 92 | AF66: 9 | AG66: 9 | AH66: 0.24 | AJ66: 0.045 | AK66: 0.07 | AL66: 0.5 | AM66: 0 | AN66: 0 | AO66: 0 | AP66: 0 | AR66: 0 | AS66: 0.018 | AT66: 0.018 | AU66: 0.213 | AV66: 0.032 | AW66: 0 | AX66: 0 | AY66: 0 | BA66: 70.51
A67: ALCOHOLIC BEV,WINE,LT | C67: 43155 | D67: 49 | E67: 0.07 | F67: 0 | G67: 1.17 | H67: 1.15 | J67: 0 | K67: 0 | T67: 0 | V67: 0 | AB67: 0 | AC67: 7 | AD67: 9 | AE67: 88 | AF67: 10 | AG67: 15 | AH67: 0.4 | AJ67: 0.011 | AK67: 0.08 | AL67: 0.2 | AM67: 0 | AN67: 0 | AO67: 0 | AP67: 0 | AR67: 0 | AS67: 0 | AT67: 0.01 | AU67: 0.1 | AW67: 0.02 | AX67: 0 | AY67: 1 | BA67: 92.23
A68: ALCOHOLIC BEV,WINE,TABLE,ALL | C68: 14084 | D68: 83 | E68: 0.07 | F68: 0 | G68: 2.72 | H68: 0.79 | J68: 0 | K68: 0 | T68: 0 | V68: 0 | AB68: 0 | AC68: 5 | AD68: 8 | AE68: 99 | AF68: 11 | AG68: 20 | AH68: 0.37 | AJ68: 0.007 | AK68: 0.13 | AL68: 0.2 | AM68: 0 | AN68: 0 | AO68: 0 | AP68: 0 | AR68: 0 | AS68: 0.005 | AT68: 0.023 | AU68: 0.166 | AV68: 0.037 | AW68: 0.054 | AX68: 0 | AY68: 1 | BA68: 86.58
A69: ALCOHOLIC BEV,WINE,TABLE,RED | C69: 14096 | D69: 85 | E69: 0.07 | F69: 0 | G69: 2.61 | H69: 0.62 | J69: 0 | K69: 0 | T69: 0 | V69: 0 | AB69: 0 | AC69: 4 | AD69: 8 | AE69: 127 | AF69: 12 | AG69: 23 | AH69: 0.46 | AJ69: 0.011 | AK69: 0.14 | AL69: 0.2 | AM69: 0 | AN69: 0 | AO69: 0 | AP69: 0.4 | AR69: 0 | AS69: 0.005 | AT69: 0.031 | AU69: 0.224 | AV69: 0.03 | AW69: 0.057 | AX69: 0 | AY69: 1 | BA69: 86.49
A70: ALCOHOLIC BEV,WINE,TABLE,RED,BARBERA | C70: 14101 | D70: 85 | E70: 0.07 | F70: 0 | G70: 2.79 | BA70: 86.29
A71: ALCOHOLIC BEV,WINE,TABLE,RED,BURGUNDY | C71: 14152 | D71: 86 | E71: 0.07 | F71: 0 | G71: 3.69 | BA71: 85.62
A72: ALCOHOLIC BEV,WINE,TABLE,RED,CABERNET FRANC | C72: 14098 | D72: 83 | E72: 0.07 | F72: 0 | G72: 2.45 | BA72: 86.59
A73: ALCOHOLIC BEV,WINE,TABLE,RED,CABERNET SAUVIGNON | C73: 14097 | D73: 83 | E73: 0.07 | F73: 0 | G73: 2.6 | BA73: 86.56
A74: ALCOHOLIC BEV,WINE,TABLE,RED,CARIGNANE | C74: 14109 | D74: 74 | E74: 0.07 | F74: 0 | G74: 2.4 | BA74: 87.88
A75: ALCOHOLIC BEV,WINE,TABLE,RED,CLARET | C75: 14105 | D75: 83 | E75: 0.07 | F75: 0 | G75: 3.01 | BA75: 86.38
A76: ALCOHOLIC BEV,WINE,TABLE,RED,GAMAY | C76: 14158 | D76: 78 | E76: 0.07 | F76: 0 | G76: 2.38 | BA76: 87.49
A77: ALCOHOLIC BEV,WINE,TABLE,RED,LEMBERGER | C77: 14107 | D77: 80 | E77: 0.07 | F77: 0 | G77: 2.46 | BA77: 87.02
A78: ALCOHOLIC BEV,WINE,TABLE,RED,MERLOT | C78: 14602 | D78: 83 | E78: 0.07 | F78: 0 | G78: 2.51 | H78: 0.62 | J78: 0 | AC78: 4 | AD78: 8 | AE78: 127 | AF78: 12 | AG78: 23 | AH78: 0.46 | AJ78: 0.011 | AK78: 0.14 | AL78: 0.2 | AR78: 0 | AS78: 0.005 | AT78: 0.031 | AU78: 0.224 | AV78: 0.03 | AW78: 0.057 | AX78: 0 | AY78: 1 | BA78: 86.59
A79: ALCOHOLIC BEV,WINE,TABLE,RED,MOUVEDRE | C79: 14159 | D79: 88 | E79: 0.07 | F79: 0 | G79: 2.64 | BA79: 85.81
A80: ALCOHOLIC BEV,WINE,TABLE,RED,PETITE SIRAH | C80: 14103 | D80: 85 | E80: 0.07 | F80: 0 | G80: 2.68 | BA80: 86.22
A81: ALCOHOLIC BEV,WINE,TABLE,RED,PINOT NOIR | C81: 14099 | D81: 82 | E81: 0.07 | F81: 0 | G81: 2.31 | BA81: 86.94
A82: ALCOHOLIC BEV,WINE,TABLE,RED,SANGIOVESE | C82: 14108 | D82: 86 | E82: 0.07 | F82: 0 | G82: 2.62 | BA82: 86.17
A83: ALCOHOLIC BEV,WINE,TABLE,RED,SYRAH | C83: 14100 | D83: 83 | E83: 0.07 | F83: 0 | G83: 2.58 | BA83: 86.53
A84: ALCOHOLIC BEV,WINE,TABLE,RED,ZINFANDEL | C84: 14102 | D84: 88 | E84: 0.07 | F84: 0 | G84: 2.86 | BA84: 85.71
A85: ALCOHOLIC BEV,WINE,TABLE,WHITE | C85: 14106 | D85: 82 | E85: 0.07 | F85: 0 | G85: 2.6 | H85: 0.96 | J85: 0 | K85: 0 | T85: 0 | V85: 0 | AB85: 0 | AC85: 5 | AD85: 9 | AE85: 71 | AF85: 10 | AG85: 18 | AH85: 0.27 | AJ85: 0.004 | AK85: 0.12 | AL85: 0.1 | AM85: 0 | AN85: 0 | AO85: 0 | AP85: 0.4 | AR85: 0 | AS85: 0.005 | AT85: 0.015 | AU85: 0.108 | AV85: 0.045 | AW85: 0.05 | AX85: 0 | AY85: 1 | BA85: 86.86
A86: ALCOHOLIC BEV,WINE,TABLE,WHITE,CHARDONNAY | C86: 14160 | D86: 84 | E86: 0.07 | F86: 0 | G86: 2.16 | H86: 0.96 | J86: 0 | AC86: 5 | AD86: 9 | AE86: 71 | AF86: 10 | AG86: 18 | AH86: 0.27 | AJ86: 0.004 | AK86: 0.12 | AL86: 0.1 | AR86: 0 | AS86: 0.005 | AT86: 0.015 | AU86: 0.108 | AV86: 0.045 | AW86: 0.05 | AX86: 0 | AY86: 1 | BA86: 86.85
A87: ALCOHOLIC BEV,WINE,TABLE,WHITE,CHENIN BLANC | C87: 14116 | D87: 80 | E87: 0.07 | F87: 0 | G87: 3.31 | BA87: 86.78
A88: ALCOHOLIC BEV,WINE,TABLE,WHITE,FUME BLANC | C88: 14117 | D88: 82 | E88: 0.07 | F88: 0 | G88: 2.27 | BA88: 86.98
A89: ALCOHOLIC BEV,WINE,TABLE,WHITE,GEWURZTRAMINER | C89: 14124 | D89: 81 | E89: 0.07 | F89: 0 | G89: 2.6 | BA89: 87.03
A90: ALCOHOLIC BEV,WINE,TABLE,WHITE,LATE HARVEST | C90: 14135 | D90: 112 | E90: 0.07 | F90: 0 | G90: 13.39 | BA90: 77.76
A91: ALCOHOLIC BEV,WINE,TABLE,WHITE,LATE HARVEST,GEWURZTRAMINER | C91: 14125 | D91: 108 | E91: 0.07 | F91: 0 | G91: 11.39 | BA91: 79.4
A92: ALCOHOLIC BEV,WINE,TABLE,WHITE,MULLER THURGAU | C92: 14120 | D92: 76 | E92: 0.07 | F92: 0 | G92: 3.48 | BA92: 87.28
A93: ALCOHOLIC BEV,WINE,TABLE,WHITE,MUSCAT | C93: 14140 | D93: 82 | E93: 0.07 | F93: 0 | G93: 5.23 | BA93: 85.69
A94: ALCOHOLIC BEV,WINE,TABLE,WHITE,PINOT BLANC | C94: 14138 | D94: 81 | E94: 0.07 | F94: 0 | G94: 1.94 | BA94: 87.14
A95: ALCOHOLIC BEV,WINE,TABLE,WHITE,PINOT GRIS (GRIGIO) | C95: 14113 | D95: 83 | E95: 0.07 | F95: 0 | G95: 2.06 | BA95: 86.98
A96: ALCOHOLIC BEV,WINE,TABLE,WHITE,RIESLING | C96: 14132 | D96: 80 | E96: 0.07 | F96: 0 | G96: 3.74 | BA96: 86.56
A97: ALCOHOLIC BEV,WINE,TABLE,WHITE,SAUVIGNON BLANC | C97: 14134 | D97: 81 | E97: 0.07 | F97: 0 | G97: 2.05 | BA97: 87.16
A98: ALCOHOLIC BEV,WINE,TABLE,WHITE,SEMILLON | C98: 14126 | D98: 82 | E98: 0.07 | F98: 0 | G98: 3.12 | BA98: 86.54
A99: ALCOHOLIC BEVERAGES,BEER,HIGHER ALCOHOL | C99: 14251 | D99: 58 | E99: 0.9 | F99: 0 | G99: 0.27 | H99: 0 | J99: 0 | K99: 0 | T99: 0 | V99: 0 | AB99: 0 | AC99: 4 | AD99: 8 | AE99: 62 | AF99: 12 | AG99: 32 | AH99: 0.03 | AJ99: 0.008 | AK99: 0.01 | AL99: 0.6 | AM99: 0 | AN99: 0 | AO99: 0 | AP99: 0 | AR99: 0 | AS99: 0.03 | AT99: 0.09 | AU99: 1.1 | AV99: 0.21 | AW99: 0.09 | AX99: 0.02 | AY99: 18 | BA99: 91
A100: ALCOHOLIC BEVERAGES,WINE,ROSE | C100: 14253 | D100: 83 | E100: 0.36 | F100: 0 | G100: 3.8 | H100: 3.8 | J100: 0 | K100: 0 | T100: 0 | V100: 0 | AB100: 0 | AC100: 5 | AD100: 10 | AE100: 59 | AF100: 10 | AG100: 18 | AH100: 0.2 | AJ100: 0.005 | AK100: 0.11 | AL100: 0.2 | AM100: 0 | AN100: 0 | AO100: 0 | AP100: 0 | AR100: 0 | AS100: 0.02 | AT100: 0.015 | AU100: 0.09 | AV100: 0.148 | AW100: 0.037 | AX100: 0.01 | AY100: 1 | BA100: 86.4
A101: ALFALFA SEEDS,SPROUTED,RAW | C101: 11001 | D101: 23 | E101: 3.99 | F101: 0.69 | G101: 2.1 | H101: 0.2 | J101: 1.9 | K101: 0.069 | T101: 0.056 | V101: 0.409 | AB101: 0 | AC101: 6 | AD101: 32 | AE101: 79 | AF101: 27 | AG101: 70 | AH101: 0.96 | AJ101: 0.157 | AK101: 0.92 | AL101: 0.6 | AM101: 8 | AN101: 0 | AO101: 0.02 | AP101: 30.5 | AR101: 8.2 | AS101: 0.076 | AT101: 0.126 | AU101: 0.481 | AV101: 0.563 | AW101: 0.034 | AX101: 0 | AY101: 36 | BA101: 92.82
A102: ALLSPICE,GROUND | C102: 2001 | D102: 263 | E102: 6.09 | F102: 8.69 | G102: 72.12 | J102: 21.6 | K102: 2.55 | T102: 0.66 | V102: 2.36 | AB102: 0 | AC102: 77 | AD102: 661 | AE102: 1044 | AF102: 135 | AG102: 113 | AH102: 7.06 | AJ102: 0.553 | AK102: 1.01 | AL102: 2.7 | AM102: 27 | AN102: 0 | AR102: 39.2 | AS102: 0.101 | AT102: 0.063 | AU102: 2.86 | AW102: 0.21 | AX102: 0 | AY102: 36 | BA102: 8.46
A103: ALMOND BUTTER,PLN,W/SALT | C103: 12695 | D103: 614 | E103: 20.96 | F103: 55.5 | G103: 18.82 | H103: 6.27 | J103: 10.3 | K103: 6.55 | T103: 32.445 | V103: 13.613 | AB103: 0 | AC103: 227 | AD103: 347 | AE103: 748 | AF103: 279 | AG103: 508 | AH103: 3.49 | AJ103: 0.934 | AK103: 3.29 | AL103: 2.4 | AM103: 0 | AN103: 0 | AO103: 24.21 | AP103: 0 | AR103: 0 | AS103: 0.041 | AT103: 0.939 | AU103: 3.155 | AV103: 0.318 | AW103: 0.103 | AX103: 0 | AY103: 53 | BA103: 1.64
A104: ALMOND BUTTER,PLN,WO/SALT | C104: 12195 | D104: 614 | E104: 20.96 | F104: 55.5 | G104: 18.82 | H104: 4.43 | J104: 10.3 | K104: 4.152 | T104: 32.445 | V104: 13.613 | AB104: 0 | AC104: 7 | AD104: 347 | AE104: 748 | AF104: 279 | AG104: 508 | AH104: 3.49 | AJ104: 0.934 | AK104: 3.29 | AL104: 2.4 | AM104: 0 | AN104: 0 | AO104: 24.21 | AP104: 0 | AR104: 0 | AS104: 0.041 | AT104: 0.939 | AU104: 3.155 | AV104: 0.318 | AW104: 0.103 | AX104: 0 | AY104: 53 | BA104: 1.64
A105: ALMOND PASTE | C105: 12071 | D105: 458 | E105: 9 | F105: 27.74 | G105: 47.81 | H105: 36.25 | J105: 4.8 | K105: 2.629 | T105: 18.012 | V105: 5.821 | AB105: 0 | AC105: 9 | AD105: 172 | AE105: 314 | AF105: 130 | AG105: 258 | AH105: 1.6 | AJ105: 0.454 | AK105: 1.48 | AL105: 4.2 | AM105: 0 | AN105: 0 | AO105: 13.54 | AP105: 0 | AR105: 0.1 | AS105: 0.082 | AT105: 0.414 | AU105: 1.422 | AV105: 0.113 | AW105: 0.036 | AX105: 0 | AY105: 73 | BA105: 14.08
A106: ALMONDS | C106: 12061 | D106: 579 | E106: 21.15 | F106: 49.93 | G106: 21.55 | H106: 4.35 | J106: 12.5 | K106: 3.802 | T106: 31.551 | V106: 12.329 | AB106: 0 | AC106: 1 | AD106: 269 | AE106: 733 | AF106: 270 | AG106: 481 | AH106: 3.71 | AJ106: 1.031 | AK106: 3.12 | AL106: 4.1 | AM106: 0 | AN106: 0 | AO106: 25.63 | AP106: 0 | AR106: 0 | AS106: 0.205 | AT106: 1.138 | AU106: 3.618 | AV106: 0.471 | AW106: 0.137 | AX106: 0 | AY106: 44 | BA106: 4.41
A107: ALMONDS,BLANCHED | C107: 12062 | D107: 590 | E107: 21.4 | F107: 52.52 | G107: 18.67 | H107: 4.63 | J107: 9.9 | K107: 3.953 | T107: 33.415 | V107: 12.368 | AB107: 0 | AC107: 19 | AD107: 236 | AE107: 659 | AF107: 268 | AG107: 481 | AH107: 3.28 | AJ107: 1.027 | AK107: 2.97 | AL107: 3.2 | AM107: 0 | AN107: 0 | AO107: 23.75 | AP107: 0 | AR107: 0 | AS107: 0.191 | AT107: 0.711 | AU107: 3.5 | AV107: 0.314 | AW107: 0.115 | AX107: 0 | AY107: 49 | BA107: 4.51
A108: ALMONDS,DRY RSTD,W/SALT | C108: 12563 | D108: 598 | E108: 20.96 | F108: 52.54 | G108: 21.01 | H108: 4.86 | J108: 10.9 | K108: 4.092 | T108: 33.076 | V108: 12.955 | AB108: 0 | AC108: 498 | AD108: 268 | AE108: 713 | AF108: 279 | AG108: 471 | AH108: 3.73 | AJ108: 1.099 | AK108: 3.31 | AL108: 2 | AM108: 0 | AN108: 0 | AO108: 23.9 | AP108: 0 | AR108: 0 | AS108: 0.077 | AT108: 1.197 | AU108: 3.637 | AV108: 0.321 | AW108: 0.136 | AX108: 0 | AY108: 55 | BA108: 2.41
A109: ALMONDS,DRY RSTD,WO/SALT | C109: 12063 | D109: 598 | E109: 20.96 | F109: 52.54 | G109: 21.01 | H109: 4.86 | J109: 10.9 | K109: 4.092 | T109: 33.076 | V109: 12.955 | AB109: 0 | AC109: 3 | AD109: 268 | AE109: 713 | AF109: 279 | AG109: 471 | AH109: 3.73 | AJ109: 1.099 | AK109: 3.31 | AL109: 2 | AM109: 0 | AN109: 0 | AO109: 23.9 | AP109: 0 | AR109: 0 | AS109: 0.077 | AT109: 1.197 | AU109: 3.637 | AV109: 0.321 | AW109: 0.136 | AX109: 0 | AY109: 55 | BA109: 2.41
A110: ALMONDS,HONEY RSTD,UNBLANCHED | C110: 12206 | D110: 594 | E110: 18.17 | F110: 49.9 | G110: 27.9 | J110: 13.7 | K110: 4.73 | T110: 32.402 | V110: 10.472 | AB110: 0 | AC110: 130 | AD110: 263 | AE110: 560 | AF110: 240 | AG110: 400 | AH110: 2.83 | AJ110: 0.97 | AK110: 2.6 | AM110: 0 | AN110: 0 | AR110: 0.7 | AS110: 0.114 | AT110: 0.953 | AU110: 2.819 | AV110: 0.258 | AW110: 0.085 | AX110: 0 | AY110: 32 | BA110: 1.7
A111: ALMONDS,OIL RSTD,W/SALT | C111: 12565 | D111: 607 | E111: 21.23 | F111: 55.17 | G111: 17.68 | H111: 4.55 | J111: 10.5 | K111: 4.208 | T111: 34.793 | V111: 13.519 | AB111: 0 | AC111: 339 | AD111: 291 | AE111: 699 | AF111: 274 | AG111: 466 | AH111: 3.68 | AJ111: 0.955 | AK111: 3.07 | AL111: 4.1 | AM111: 0 | AN111: 0 | AO111: 25.97 | AP111: 0 | AR111: 0 | AS111: 0.092 | AT111: 0.781 | AU111: 3.665 | AV111: 0.229 | AW111: 0.118 | AX111: 0 | AY111: 27 | BA111: 2.8
A112: ALMONDS,OIL RSTD,WO/SALT | C112: 12065 | D112: 607 | E112: 21.23 | F112: 55.17 | G112: 17.68 | H112: 4.55 | J112: 10.5 | K112: 4.208 | T112: 34.793 | V112: 13.519 | AB112: 0 | AC112: 1 | AD112: 291 | AE112: 699 | AF112: 274 | AG112: 466 | AH112: 3.68 | AJ112: 0.955 | AK112: 3.07 | AL112: 4.1 | AM112: 0 | AN112: 0 | AO112: 25.97 | AP112: 0 | AR112: 0 | AS112: 0.092 | AT112: 0.781 | AU112: 3.665 | AV112: 0.229 | AW112: 0.118 | AX112: 0 | AY112: 27 | BA112: 2.8
A113: Amande (avec peau) | B113: Graines oléagineuses et châtaignes | C113: 15000 | D113: 613 | E113: 30.6 | F113: 53.4 | G113: 1.5 | H113: 1.08 | I113: 0.414 | J113: 12.6 | K113: 4.04 | L113: 0 | M113: 0 | N113: 0 | O113: 0 | P113: 0 | Q113: 0.0506 | R113: 3.29 | S113: 0.649 | T113: 32.4 | U113: 32.4 | V113: 14.8 | W113: 0.0506 | X113: 0 | Y113: 0 | Z113: 0 | AA113: 12.4 | AB113: 1.19 | AC113: 1.61 | AD113: 248 | AE113: 668 | AF113: 232 | AG113: 416 | AH113: 3 | AI113: 5.7 | AJ113: 1.07 | AK113: 3.29 | AL113: 2.2 | AM113: 0.08333333333 | AN113: 0 | AO113: 14.6 | AP113: 0 | AQ113: 0 | AR113: 0.5 | AS113: 0.183 | AT113: 0.906 | AU113: 3.39 | AV113: 0.28 | AW113: 0.127 | AX113: 0 | AY113: 93.1 | AZ113: 0 | BA113: 4.19
A114: AMARANTH GRAIN,CKD | C114: 20002 | D114: 102 | E114: 3.8 | F114: 1.58 | G114: 18.69 | J114: 2.1 | AC114: 6 | AD114: 47 | AE114: 135 | AF114: 65 | AG114: 148 | AH114: 2.1 | AJ114: 0.149 | AK114: 0.86 | AL114: 5.5 | AO114: 0.19 | AS114: 0.015 | AT114: 0.022 | AU114: 0.235 | AW114: 0.113 | AY114: 22 | BA114: 75.16
A115: AMARANTH GRAIN,UNCKD | C115: 20001 | D115: 371 | E115: 13.56 | F115: 7.02 | G115: 65.25 | H115: 1.69 | J115: 6.7 | K115: 1.459 | T115: 1.685 | V115: 2.778 | AB115: 0 | AC115: 4 | AD115: 159 | AE115: 508 | AF115: 248 | AG115: 557 | AH115: 7.61 | AJ115: 0.525 | AK115: 2.87 | AL115: 18.7 | AM115: 0 | AN115: 0 | AO115: 1.19 | AP115: 0 | AR115: 4.2 | AS115: 0.116 | AT115: 0.2 | AU115: 0.923 | AV115: 1.457 | AW115: 0.591 | AX115: 0 | AY115: 82 | BA115: 11.29
A116: AMARANTH LEAVES,CKD,BLD,DRND,W/SALT | C116: 11700 | D116: 21 | E116: 2.11 | F116: 0.18 | G116: 4.11 | K116: 0.05 | T116: 0.041 | V116: 0.08 | AB116: 0 | AC116: 257 | AD116: 209 | AE116: 641 | AF116: 55 | AG116: 72 | AH116: 2.26 | AJ116: 0.158 | AK116: 0.88 | AL116: 0.9 | AM116: 139 | AN116: 0 | AR116: 41.1 | AS116: 0.02 | AT116: 0.134 | AU116: 0.559 | AV116: 0.062 | AW116: 0.177 | AX116: 0 | AY116: 57 | BA116: 91.49
A117: AMARANTH LEAVES,CKD,BLD,DRND,WO/SALT | C117: 11004 | D117: 21 | E117: 2.11 | F117: 0.18 | G117: 4.11 | K117: 0.05 | T117: 0.041 | V117: 0.08 | AB117: 0 | AC117: 21 | AD117: 209 | AE117: 641 | AF117: 55 | AG117: 72 | AH117: 2.26 | AJ117: 0.158 | AK117: 0.88 | AL117: 0.9 | AM117: 139 | AN117: 0 | AR117: 41.1 | AS117: 0.02 | AT117: 0.134 | AU117: 0.559 | AV117: 0.062 | AW117: 0.177 | AX117: 0 | AY117: 57 | BA117: 91.49
A118: AMARANTH LEAVES,RAW | C118: 11003 | D118: 23 | E118: 2.46 | F118: 0.33 | G118: 4.02 | K118: 0.091 | T118: 0.076 | V118: 0.147 | AB118: 0 | AC118: 20 | AD118: 215 | AE118: 611 | AF118: 55 | AG118: 50 | AH118: 2.32 | AJ118: 0.162 | AK118: 0.9 | AL118: 0.9 | AM118: 146 | AN118: 0 | AP118: 1140 | AR118: 43.3 | AS118: 0.027 | AT118: 0.158 | AU118: 0.658 | AV118: 0.064 | AW118: 0.192 | AX118: 0 | AY118: 85 | BA118: 91.69
A119: Amaranth, Red, raw | B119: Rau giền đỏ | D119: 40.7 | E119: 3.3 | F119: 0.3 | G119: 6.2 | J119: 1.6 | AD119: 288 | AH119: 5.4 | AK119: 0.5 | AM119: 340 | AR119: 89 | AS119: 0.08 | AT119: 1.16 | AU119: 1.4 | AW119: 0.192 | AX119: 0 | AY119: 85 | BA119: 86.2
A120: Amaranth, spineless, raw | B120: Rau giền cơm | D120: 19.2 | E120: 3.4 | F120: 0 | G120: 1.4 | J120: 1.6 | AD120: 341 | AH120: 4.1 | AK120: 0.9 | AM120: 441.6666667 | AR120: 63 | AS120: 0.36 | AT120: 1.3 | AU120: 1.3 | AW120: 0.192 | AX120: 0 | AY120: 85 | BA120: 92
A121: Amaranth, White, raw | B121: Rau giền trắng | D121: 41.6 | E121: 3.2 | F121: 0.4 | G121: 6.3 | J121: 1.5 | AD121: 288 | AH121: 6.1 | AK121: 0.9 | AM121: 237.9166667 | AR121: 27 | AS121: 0.08 | AT121: 0.28 | AU121: 0.3 | AW121: 0.192 | AX121: 0 | AY121: 85 | BA121: 86.7
A122: Ananas au sirop, appertisé | B122: Fruits au sirop/au jus, compotes | C122: 13003 | D122: 81.9 | E122: 0.4 | F122: 0 | G122: 19.1 | H122: 17.6 | I122: 0 | J122: 0.85 | K122: 0 | L122: 0 | M122: 0 | N122: 0 | O122: 0 | P122: 0 | Q122: 0 | R122: 0 | S122: 0 | T122: 0 | U122: 0 | V122: 0 | W122: 0 | X122: 0 | Y122: 0 | Z122: 0 | AA122: 0 | AB122: 0 | AC122: 2 | AD122: 14.3 | AE122: 105 | AF122: 11.3 | AG122: 5 | AH122: 0.22 | AI122: 0 | AJ122: 0.0332 | AK122: 0.0646 | AL122: 0.005 | AM122: 6.666666667 | AN122: 0 | AO122: 0.08 | AP122: 0 | AQ122: 0 | AR122: 10.4 | AS122: 0.07 | AT122: 0.1 | AU122: 0.2 | AV122: 0.07 | AW122: 0.07 | AX122: 0 | AY122: 5.5 | AZ122: 0 | BA122: 78.6
A123: Ananas, frais, pulpe | B123: Fruits frais | C123: 13002 | D123: 52.6 | E123: 0.4 | F123: 0.2 | G123: 11 | H123: 9.24 | I123: 0 | J123: 1.52 | K123: 0.0045 | L123: 0 | M123: 0 | N123: 0 | O123: 0 | P123: 0 | Q123: 0 | R123: 0.00281 | S123: 0.00169 | T123: 0.0065 | U123: 0 | V123: 0.02 | W123: 0 | X123: 0 | Y123: 0 | Z123: 0 | AA123: 0 | AB123: 0 | AC123: 2.88 | AD123: 20.3 | AE123: 170 | AF123: 19.8 | AG123: 11 | AH123: 0.225 | AI123: 1.22 | AJ123: 0.076 | AK123: 0.667 | AL123: 0.28 | AM123: 6.416666667 | AN123: 0 | AO123: 0.1 | AP123: 0.7 | AQ123: 0 | AR123: 12 | AS123: 0.08 | AT123: 0.03 | AU123: 0.3 | AV123: 0.16 | AW123: 0.101 | AX123: 0 | AY123: 13.5 | AZ123: 0 | BA123: 85.8
A124: Ananas, jus à base de concentré | B124: Jus et nectars | C124: 2000 | D124: 47.8 | E124: 0.352 | F124: 0.1 | G124: 10.6 | H124: 10.6 | I124: 0 | J124: 0.5 | K124: 0.004 | L124: 0 | M124: 0 | N124: 0 | O124: 0 | P124: 0 | Q124: 0 | R124: 0.0025 | S124: 0.0015 | T124: 0.014 | U124: 0.012 | V124: 0.0425 | W124: 0.018 | X124: 0 | Y124: 0 | Z124: 0 | AA124: 0.024 | AB124: 0 | AC124: 3.33 | AD124: 79.9 | AE124: 145 | AF124: 15.3 | AG124: 9.69 | AH124: 0.155 | AI124: 1 | AJ124: 0.0295 | AK124: 0.0782 | AL124: 10 | AM124: 0.5 | AN124: 0 | AO124: 0.03 | AP124: 0.3 | AQ124: 0 | AR124: 24.9 | AS124: 0.0532 | AT124: 0.0204 | AU124: 0.199 | AV124: 0.056 | AW124: 0.07 | AX124: 0 | AY124: 14 | AZ124: 0 | BA124: 88.3
A125: Ananas, pur jus | B125: Jus et nectars | C125: 2073 | D125: 48.5 | E125: 0.3 | F125: 0.1 | G125: 11.6 | H125: 11.6 | I125: 0 | J125: 0.2 | K125: 0.004 | L125: 0 | M125: 0 | N125: 0 | O125: 0 | P125: 0 | Q125: 0 | R125: 0.0025 | S125: 0.0015 | T125: 0.014 | U125: 0.012 | V125: 0.0425 | W125: 0.018 | X125: 0 | Y125: 0 | Z125: 0 | AA125: 0.024 | AB125: 0 | AC125: 1.1 | AD125: 8.2 | AE125: 133 | AF125: 13.8 | AG125: 7.8 | AH125: 0.225 | AI125: 1 | AJ125: 0.04 | AK125: 0.08 | AL125: 1.1 | AM125: 0 | AN125: 0 | AO125: 0.02 | AP125: 0 | AQ125: 0 | AR125: 9.5 | AS125: 0.055 | AT125: 0.02 | AU125: 0.3 | AV125: 0.15 | AW125: 0.1 | AX125: 0 | AY125: 23 | AZ125: 0 | BA125: 86.3
A126: Anchois commun, cru | B126: Poissons et batraciens non transformés | C126: 26079 | D126: 109 | E126: 19.4 | F126: 3.48 | G126: 0 | H126: 0 | I126: 0 | J126: 0 | K126: 0.935 | L126: 0 | M126: 0 | N126: 0 | O126: 0.000107 | P126: 0.014 | Q126: 0.142 | R126: 0.569 | S126: 0.198 | T126: 0.634 | U126: 0.277 | V126: 0.767 | W126: 0.0384 | X126: 0.228 | Y126: 0.445 | Z126: 0.0287 | AA126: 0.0263 | AB126: 145 | AC126: 73 | AD126: 66.3 | AE126: 349 | AF126: 22.3 | AG126: 204 | AH126: 5.1 | AI126: 55 | AJ126: 0.058 | AK126: 0.62 | AL126: 21.2 | AM126: 65.7 | AN126: 11 | AO126: 0.29 | AP126: 0.1 | AQ126: 0 | AR126: 0 | AS126: 0.0633 | AT126: 0.343 | AU126: 12.2 | AV126: 0.645 | AW126: 0.142 | AX126: 0.62 | AY126: 9 | AZ126: 0 | BA126: 73.1
A127: Anchois commun, mariné | B127: Produits à base de poissons | C127: 26187 | D127: 136 | E127: 23.9 | F127: 3.26 | G127: 2.7 | H127: 2.7 | I127: 0 | J127: 0 | K127: 1.04 | L127: 0.0001 | M127: 0.0001 | N127: 0.0001 | O127: 0.0001 | P127: 0.004 | Q127: 0.113 | R127: 0.673 | S127: 0.121 | T127: 0.691 | U127: 0.568 | V127: 1.36 | W127: 0.0255 | X127: 0.35 | Y127: 0.543 | Z127: 0.0145 | AA127: 0.33 | AB127: 105 | AC127: 2230 | AD127: 120 | AE127: 159 | AF127: 101 | AG127: 148 | AH127: 2.8 | AI127: 8 | AJ127: 0.17 | AK127: 1.95 | AL127: 46 | AM127: 11 | AN127: 2.4 | AO127: 1.1 | AP127: 0 | AQ127: 0 | AR127: 0 | AS127: 0.04 | AT127: 0.2 | AU127: 2.75 | AV127: 0.41 | AW127: 0.18 | AX127: 15.3 | AY127: 37 | AZ127: 0 | BA127: 60.2
A128: Anchois, filets à l'huile, semi0conserve, égoutté | B128: Produits à base de poissons | C128: 26000 | D128: 182 | E128: 26.4 | F128: 8.45 | G128: 0 | H128: 0.2 | I128: 0 | J128: 0 | K128: 3.08 | L128: 0.0001 | M128: 0.0001 | N128: 0.0001 | O128: 0.0001 | P128: 0.0115 | Q128: 0.0705 | R128: 0.788 | S128: 2.07 | T128: 3.54 | U128: 3.42 | V128: 1.4 | W128: 0.0728 | X128: 0.259 | Y128: 0.586 | Z128: 0.0179 | AA128: 0.463 | AB128: 37.8 | AC128: 4450 | AD128: 296 | AE128: 239 | AF128: 144 | AG128: 288 | AH128: 3.4 | AI128: 30 | AJ128: 0.17 | AK128: 2.35 | AL128: 4 | AM128: 31 | AN128: 0.85 | AO128: 0.58 | AP128: 12.1 | AQ128: 0 | AR128: 0 | AS128: 0 | AT128: 0.175 | AU128: 3.85 | AV128: 0.315 | AW128: 0.185 | AX128: 16 | AY128: 18 | AZ128: 0 | BA128: 55.1
A129: ANCHOVY,EUROPEAN,CND IN OIL,DRND SOL | C129: 15002 | D129: 210 | E129: 28.89 | F129: 9.71 | G129: 0 | H129: 0 | J129: 0 | K129: 2.203 | T129: 3.77 | V129: 2.562 | AB129: 85 | AC129: 3668 | AD129: 232 | AE129: 544 | AF129: 69 | AG129: 252 | AH129: 4.63 | AJ129: 0.339 | AK129: 2.44 | AL129: 68.1 | AM129: 12 | AN129: 1.7 | AO129: 3.33 | AP129: 12.1 | AR129: 0 | AS129: 0.078 | AT129: 0.363 | AU129: 19.903 | AV129: 0.909 | AW129: 0.203 | AX129: 0.88 | AY129: 13 | BA129: 50.3
A130: ANCHOVY,EUROPEAN,RAW | C130: 15001 | D130: 131 | E130: 20.35 | F130: 4.84 | G130: 0 | H130: 0 | J130: 0 | K130: 1.282 | T130: 1.182 | V130: 1.637 | AB130: 60 | AC130: 104 | AD130: 147 | AE130: 383 | AF130: 41 | AG130: 174 | AH130: 3.25 | AJ130: 0.211 | AK130: 1.72 | AL130: 36.5 | AM130: 15 | AO130: 0.57 | AP130: 0.1 | AR130: 0 | AS130: 0.055 | AT130: 0.256 | AU130: 14.024 | AV130: 0.645 | AW130: 0.143 | AX130: 0.62 | AY130: 9 | BA130: 73.37
A131: Andouille | B131: Charcuteries et salaisons | C131: 8500 | D131: 221 | E131: 18.4 | F131: 16.2 | G131: 0.3 | H131: 0 | I131: 0 | J131: 0 | K131: 0 | L131: 0 | M131: 0 | N131: 0 | O131: 0 | P131: 0 | Q131: 0 | R131: 0 | S131: 0 | T131: 0 | U131: 0 | V131: 0 | W131: 0 | X131: 0 | Y131: 0 | Z131: 0 | AA131: 0 | AB131: 0 | AC131: 820 | AD131: 0 | AE131: 0 | AF131: 0 | AG131: 0 | AH131: 0 | AI131: 0 | AJ131: 0 | AK131: 0 | AL131: 0 | AM131: 0 | AN131: 0 | AO131: 0 | AP131: 0 | AQ131: 0 | AR131: 0 | AS131: 0 | AT131: 0 | AU131: 0 | AV131: 0 | AW131: 0 | AX131: 0 | AY131: 0 | AZ131: 0 | BA131: 60.5
A132: Andouille, réchauffée à la poêle | B132: Charcuteries et salaisons | C132: 8504 | D132: 270 | E132: 22.5 | F132: 20 | G132: 0 | H132: 0 | I132: 0 | J132: 0 | K132: 9.36 | L132: 0.019 | M132: 0.019 | N132: 0.019 | O132: 0.024 | P132: 0.0295 | Q132: 0.308 | R132: 5.07 | S132: 3.93 | T132: 7.73 | U132: 7.52 | V132: 2.07 | W132: 0.0905 | X132: 0 | Y132: 0 | Z132: 0.448 | AA132: 1.42 | AB132: 330 | AC132: 1130 | AD132: 18 | AE132: 104 | AF132: 12.2 | AG132: 150 | AH132: 2.4 | AI132: 24 | AJ132: 0.2 | AK132: 3.4 | AL132: 24 | AM132: 13.66666667 | AN132: 0.5 | AO132: 0.48 | AP132: 0 | AQ132: 0 | AR132: 1 | AS132: 0.056 | AT132: 0.28 | AU132: 1.55 | AV132: 0.48 | AW132: 0.12 | AX132: 1.35 | AY132: 20 | AZ132: 0 | BA132: 55.5
A133: Andouillette, poêlée | B133: Charcuteries et salaisons | C133: 8551 | D133: 276 | E133: 24.5 | F133: 19.3 | G133: 1 | H133: 0.2 | I133: 1 | J133: 0 | K133: 8.66 | L133: 0.02 | M133: 0.02 | N133: 0.02 | O133: 0.02 | P133: 0.0156 | Q133: 0.451 | R133: 5.78 | S133: 3.42 | T133: 7.36 | U133: 7.01 | V133: 2.5 | W133: 0.168 | X133: 0 | Y133: 0 | Z133: 0.245 | AA133: 1.95 | AB133: 344 | AC133: 1090 | AD133: 35.6 | AE133: 64 | AF133: 9.6 | AG133: 98.3 | AH133: 2.3 | AI133: 15 | AJ133: 0.2 | AK133: 4.3 | AL133: 19 | AM133: 57 | AN133: 0.5 | AO133: 0.41 | AP133: 0 | AQ133: 0 | AR133: 1 | AS133: 0.035 | AT133: 0.15 | AU133: 0.96 | AV133: 0.24 | AW133: 0.09 | AX133: 0.91 | AY133: 20 | AZ133: 0 | BA133: 48.7
A134: ANDREA'S,GLUTEN FREE SOFT DINNER ROLL | C134: 28354 | D134: 257 | E134: 5.65 | F134: 8.2 | G134: 40.24 | H134: 2.98 | J134: 2.9 | AC134: 544 | AD134: 41 | AE134: 165 | AF134: 42 | AG134: 128 | AH134: 0.89 | AJ134: 0.111 | AK134: 0.77 | AL134: 9.2 | AO134: 0.52 | AS134: 0.25 | AW134: 0.14 | AY134: 31 | BA134: 44.6
A135: Anguille, cuite au four | B135: Poissons et batraciens non transformés | C135: 27000 | D135: 230 | E135: 23.7 | F135: 15 | G135: 0 | H135: 0 | I135: 0 | J135: 0 | K135: 3.02 | L135: 0 | M135: 0 | N135: 0 | O135: 0 | P135: 0 | Q135: 0.37 | R135: 2.03 | S135: 0.245 | T135: 9.22 | U135: 0 | V135: 1.21 | W135: 0 | X135: 0.193 | Y135: 0.341 | Z135: 0 | AA135: 0 | AB135: 161 | AC135: 65 | AD135: 26 | AE135: 349 | AF135: 26 | AG135: 277 | AH135: 0.64 | AI135: 8 | AJ135: 0.029 | AK135: 2.08 | AL135: 0 | AM135: 1140 | AN135: 0 | AO135: 0 | AP135: 0 | AQ135: 0 | AR135: 1.8 | AS135: 0.183 | AT135: 0.051 | AU135: 4.49 | AV135: 0.28 | AW135: 0.077 | AX135: 2.89 | AY135: 17 | AZ135: 0 | BA135: 59.3
A136: Anguille, pochée | B136: Poissons et batraciens non transformés | C136: 27001 | D136: 217 | E136: 20.5 | F136: 15 | G136: 0 | H136: 0 | I136: 0 | J136: 0 | K136: 0.542 | L136: 0 | M136: 0 | N136: 0 | O136: 0 | P136: 0.0108 | Q136: 0 | R136: 0 | S136: 0 | T136: 2.85 | U136: 0 | V136: 1.9 | W136: 0 | X136: 0 | Y136: 0 | Z136: 0 | AA136: 0 | AB136: 0 | AC136: 0 | AD136: 0 | AE136: 0 | AF136: 0 | AG136: 0 | AH136: 0 | AI136: 8 | AJ136: 0.029 | AK136: 2.08 | AL136: 28 | AM136: 0 | AN136: 0 | AO136: 5.1 | AP136: 0 | AQ136: 0 | AR136: 0 | AS136: 0 | AT136: 0 | AU136: 0 | AV136: 0 | AW136: 0 | AX136: 0 | AY136: 0 | AZ136: 0 | BA136: 62
A137: ANIMAL FAT,BACON GREASE | C137: 4609 | D137: 897 | E137: 0 | F137: 99.5 | G137: 0 | H137: 0 | J137: 0 | K137: 39.004 | T137: 44.874 | V137: 11.144 | AB137: 95 | AC137: 150 | AD137: 0 | AE137: 0 | AF137: 0 | AG137: 0 | AH137: 0 | AJ137: 0 | AK137: 0.11 | AL137: 0 | AM137: 0 | AN137: 2.5 | AO137: 0.6 | AP137: 0 | AR137: 0 | AS137: 0 | AT137: 0 | AU137: 0 | AV137: 0 | AW137: 0 | AX137: 0 | AY137: 0 | BA137: 0
A138: ANISE SEED | C138: 2002 | D138: 337 | E138: 17.6 | F138: 15.9 | G138: 50.02 | J138: 14.6 | K138: 0.586 | T138: 9.78 | V138: 3.15 | AB138: 0 | AC138: 16 | AD138: 646 | AE138: 1441 | AF138: 170 | AG138: 440 | AH138: 36.96 | AJ138: 0.91 | AK138: 5.3 | AL138: 5 | AM138: 16 | AN138: 0 | AR138: 21 | AS138: 0.34 | AT138: 0.29 | AU138: 3.06 | AV138: 0.797 | AW138: 0.65 | AX138: 0 | AY138: 10 | BA138: 9.54
A139: Apéritif à base de vin ou vermouth | B139: Cocktails | C139: 1007 | D139: 133 | E139: 0 | F139: 0 | G139: 11.4 | H139: 11.4 | I139: 0 | J139: 0 | K139: 0 | L139: 0 | M139: 0 | N139: 0 | O139: 0 | P139: 0 | Q139: 0 | R139: 0 | S139: 0 | T139: 0 | U139: 0 | V139: 0 | W139: 0 | X139: 0 | Y139: 0 | Z139: 0 | AA139: 0 | AB139: 0 | AC139: 12.7 | AD139: 10 | AE139: 75 | AF139: 9 | AG139: 6.25 | AH139: 0.8 | AI139: 1.2 | AJ139: 0.15 | AK139: 0.0175 | AL139: 0 | AM139: 0 | AN139: 0 | AO139: 0 | AP139: 0 | AQ139: 0 | AR139: 0 | AS139: 0 | AT139: 0 | AU139: 0.0433 | AV139: 0 | AW139: 0.00667 | AX139: 0.01 | AY139: 0 | AZ139: 12.5 | BA139: 75.9
A140: Apéritif à la gentiane | B140: Liqueurs et alcools | C140: 1009 | D140: 150 | E140: 0 | F140: 0 | G140: 16.5 | H140: 0 | I140: 0 | J140: 0 | K140: 0 | L140: 0 | M140: 0 | N140: 0 | O140: 0 | P140: 0 | Q140: 0 | R140: 0 | S140: 0 | T140: 0 | U140: 0 | V140: 0 | W140: 0 | X140: 0 | Y140: 0 | Z140: 0 | AA140: 0 | AB140: 0 | AC140: 0 | AD140: 0 | AE140: 0 | AF140: 0 | AG140: 0 | AH140: 0 | AI140: 1.2 | AJ140: 0 | AK140: 0.03 | AL140: 0 | AM140: 0 | AN140: 0 | AO140: 0 | AP140: 0 | AQ140: 0 | AR140: 0 | AS140: 0 | AT140: 0 | AU140: 0 | AV140: 0 | AW140: 0 | AX140: 0 | AY140: 0 | AZ140: 12 | BA140: 71.3
A141: Apéritif anisé sans alcool | B141: Cocktails | C141: 1011 | D141: 0.55 | E141: 0.02 | F141: 0.03 | G141: 0.05 | H141: 0.03 | I141: 0 | J141: 0 | K141: 0 | L141: 0 | M141: 0 | N141: 0 | O141: 0 | P141: 0 | Q141: 0 | R141: 0 | S141: 0 | T141: 0 | U141: 0 | V141: 0 | W141: 0 | X141: 0 | Y141: 0 | Z141: 0 | AA141: 0 | AB141: 0 | AC141: 12.7 | AD141: 1.83 | AE141: 3.9 | AF141: 0.33 | AG141: 0 | AH141: 0 | AI141: 1.2 | AJ141: 0 | AK141: 0.03 | AL141: 0 | AM141: 0 | AN141: 0 | AO141: 0 | AP141: 0 | AQ141: 0 | AR141: 0 | AS141: 0 | AT141: 0 | AU141: 0 | AV141: 0 | AW141: 0 | AX141: 0 | AY141: 0 | AZ141: 0 | BA141: 99.9
A142: APPLE JUC,CND OR BTLD,UNSWTND,W/ ADDED VIT C | C142: 9400 | D142: 46 | E142: 0.1 | F142: 0.13 | G142: 11.3 | H142: 9.62 | J142: 0.2 | K142: 0.022 | T142: 0.006 | V142: 0.039 | AB142: 0 | AC142: 4 | AD142: 8 | AE142: 101 | AF142: 5 | AG142: 7 | AH142: 0.12 | AJ142: 0.012 | AK142: 0.02 | AL142: 0.1 | AM142: 0 | AN142: 0 | AO142: 0.01 | AP142: 0 | AR142: 38.5 | AS142: 0.021 | AT142: 0.017 | AU142: 0.073 | AV142: 0.049 | AW142: 0.018 | AX142: 0 | AY142: 0 | BA142: 88.24
A143: APPLE JUC,CND OR BTLD,UNSWTND,W/ ADDED VIT C,CA,& K | C143: 9517 | D143: 48 | E143: 0.12 | F143: 0.17 | G143: 11.49 | H143: 9.47 | J143: 0.3 | K143: 0.029 | T143: 0.008 | V143: 0.051 | AB143: 0 | AC143: 5 | AD143: 70 | AE143: 184 | AF143: 5 | AG143: 9 | AH143: 0.13 | AJ143: 0.01 | AK143: 0.04 | AL143: 0.1 | AM143: 0 | AN143: 0 | AO143: 0.01 | AP143: 0 | AR143: 30.3 | AS143: 0.004 | AT143: 0.015 | AU143: 0.067 | AV143: 0.049 | AW143: 0.018 | AX143: 0 | AY143: 0 | BA143: 87.92
A144: APPLE JUC,CND OR BTLD,UNSWTND,WO/ ADDED VIT C | C144: 9016 | D144: 46 | E144: 0.1 | F144: 0.13 | G144: 11.3 | H144: 9.62 | J144: 0.2 | K144: 0.022 | T144: 0.006 | V144: 0.039 | AB144: 0 | AC144: 4 | AD144: 8 | AE144: 101 | AF144: 5 | AG144: 7 | AH144: 0.12 | AJ144: 0.012 | AK144: 0.02 | AL144: 0.1 | AM144: 0 | AN144: 0 | AO144: 0.01 | AP144: 0 | AR144: 0.9 | AS144: 0.021 | AT144: 0.017 | AU144: 0.073 | AV144: 0.049 | AW144: 0.018 | AX144: 0 | AY144: 0 | BA144: 88.24
A145: APPLE JUC,FRZ CONC,UNSWTND,DIL W/3 VOLUME H2O WO/ VIT C | C145: 9018 | D145: 47 | E145: 0.14 | F145: 0.1 | G145: 11.54 | H145: 10.93 | J145: 0.1 | K145: 0.018 | T145: 0.002 | V145: 0.031 | AB145: 0 | AC145: 7 | AD145: 6 | AE145: 126 | AF145: 5 | AG145: 7 | AH145: 0.26 | AJ145: 0.014 | AK145: 0.04 | AL145: 0.1 | AM145: 0 | AN145: 0 | AO145: 0.01 | AP145: 0 | AR145: 0.6 | AS145: 0.003 | AT145: 0.015 | AU145: 0.038 | AV145: 0.063 | AW145: 0.033 | AX145: 0 | AY145: 0 | BA145: 87.9
A146: APPLE JUC,FRZ CONC,UNSWTND,DIL W/3 VOLUME H2O,W/ VIT C | C146: 9411 | D146: 47 | E146: 0.14 | F146: 0.1 | G146: 11.54 | J146: 0.1 | K146: 0.018 | T146: 0.002 | V146: 0.031 | AB146: 0 | AC146: 7 | AD146: 6 | AE146: 126 | AF146: 5 | AG146: 7 | AH146: 0.26 | AJ146: 0.014 | AK146: 0.04 | AL146: 0.1 | AM146: 0 | AN146: 0 | AR146: 25 | AS146: 0.003 | AT146: 0.015 | AU146: 0.038 | AV146: 0.063 | AW146: 0.033 | AX146: 0 | AY146: 0 | BA146: 87.9
A147: APPLE JUC,FRZ CONC,UNSWTND,UNDIL,W/ VIT C | C147: 9410 | D147: 166 | E147: 0.51 | F147: 0.37 | G147: 41 | H147: 38.83 | K147: 0.06 | T147: 0.015 | V147: 0.108 | AB147: 0 | AC147: 25 | AD147: 20 | AE147: 448 | AF147: 17 | AG147: 25 | AH147: 0.91 | AJ147: 0.05 | AK147: 0.13 | AL147: 0.4 | AM147: 0 | AN147: 0 | AR147: 88.9 | AS147: 0.011 | AT147: 0.054 | AU147: 0.135 | AV147: 0.223 | AW147: 0.116 | AX147: 0 | AY147: 1 | BA147: 57
A148: APPLE JUC,FRZ CONC,UNSWTND,UNDIL,WO/ VIT C | C148: 9017 | D148: 166 | E148: 0.51 | F148: 0.37 | G148: 41 | H148: 38.83 | J148: 0.4 | K148: 0.06 | T148: 0.015 | V148: 0.108 | AB148: 0 | AC148: 25 | AD148: 20 | AE148: 448 | AF148: 17 | AG148: 25 | AH148: 0.91 | AJ148: 0.05 | AK148: 0.13 | AL148: 0.4 | AM148: 0 | AN148: 0 | AO148: 0.04 | AP148: 0 | AR148: 2.1 | AS148: 0.011 | AT148: 0.054 | AU148: 0.135 | AV148: 0.223 | AW148: 0.116 | AX148: 0 | AY148: 1 | BA148: 57
A149: Apple, common, domestic | B149: Táo tây | D149: 46.8 | E149: 0.5 | F149: 0 | G149: 11.2 | J149: 0.6 | AD149: 19 | AH149: 2.5 | AK149: 0.2 | AM149: 2.708333333 | AR149: 7 | AS149: 0.04 | AT149: 0.03 | AU149: 0.2 | AW149: 0.041 | AX149: 0 | AY149: 3 | BA149: 87.2
A150: APPLEBEE'S,9 OZ HOUSE SIRLOIN STEAK | C150: 36000 | D150: 189 | E150: 26.85 | F150: 9.08 | G150: 0 | H150: 0 | K150: 3.477 | T150: 4.35 | V150: 0.532 | AB150: 79 | AC150: 604 | AD150: 16 | AE150: 350 | AF150: 24 | AG150: 202 | AH150: 2.07 | AJ150: 0.076 | AK150: 5.35 | AL150: 24.7 | AM150: 7 | AO150: 0.37 | AS150: 0.05 | AT150: 0.287 | AU150: 4.903 | AV150: 0.345 | AW150: 0.575 | AX150: 2 | BA150: 61.88
A151: APPLEBEE'S,CHICK TENDERS PLATTER | C151: 36023 | D151: 297 | E151: 19.62 | F151: 16.24 | G151: 17.98 | H151: 0.36 | J151: 1 | K151: 2.849 | T151: 4.385 | V151: 7.042 | AB151: 52 | AC151: 740 | AD151: 23 | AE151: 336 | AF151: 30 | AG151: 298 | AH151: 0.9 | AJ151: 0.069 | AK151: 0.71 | AL151: 16.8 | AM151: 9 | AO151: 1.45 | AS151: 0.103 | AT151: 0.183 | AU151: 7.847 | AV151: 1.67 | AW151: 0.506 | AX151: 0.14 | BA151: 43.38
A152: APPLEBEE'S,CHICK TENDERS,FROM KIDS' MENU | C152: 36005 | D152: 296 | E152: 19.25 | F152: 16.15 | G152: 18.36 | H152: 0.39 | J152: 1.2 | K152: 2.852 | T152: 3.568 | V152: 7.894 | AB152: 51 | AC152: 763 | AD152: 23 | AE152: 337 | AF152: 30 | AG152: 305 | AH152: 0.9 | AJ152: 0.071 | AK152: 0.71 | AL152: 16.9 | AM152: 10 | AO152: 1.28 | AP152: 25.1 | AS152: 0.1 | AT152: 0.177 | AU152: 7.89 | AV152: 1.565 | AW152: 0.484 | AX152: 0.15 | BA152: 43.42
A153: APPLEBEE'S,CHILI | C153: 36019 | D153: 157 | E153: 12.56 | F153: 9.79 | G153: 4.57 | H153: 2.27 | J153: 1.4 | K153: 4.15 | T153: 4.809 | V153: 0.644 | AB153: 45 | AC153: 381 | AD153: 34 | AE153: 320 | AF153: 18 | AG153: 104 | AH153: 1.46 | AJ153: 0.086 | AK153: 2.23 | AL153: 13.1 | AM153: 149 | AO153: 1.15 | AR153: 1.1 | AS153: 0.037 | AT153: 0.207 | AU153: 3.557 | AV153: 0.405 | AW153: 0.321 | AX153: 1.26 | BA153: 71.31
A154: APPLEBEE'S,COLESLAW | C154: 36021 | D154: 120 | E154: 0.79 | F154: 7.09 | G154: 13.17 | H154: 9.33 | J154: 2.8 | K154: 1.061 | T154: 1.404 | V154: 3.819 | AB154: 2 | AC154: 178 | AD154: 36 | AE154: 156 | AF154: 10 | AG154: 23 | AH154: 0.26 | AJ154: 0.017 | AK154: 0.19 | AL154: 0.4 | AM154: 77 | AO154: 0.5 | AP154: 65.1 | AR154: 13.7 | AS154: 0.03 | AT154: 0.063 | AU154: 0.3 | AV154: 0.205 | AW154: 0.129 | BA154: 78.15
A155: APPLEBEE'S,CRUNCHY ONION RINGS | C155: 36022 | D155: 356 | E155: 4.58 | F155: 19.61 | G155: 40.17 | H155: 4.48 | J155: 3.1 | K155: 3.574 | T155: 4.408 | V155: 10.255 | AC155: 833 | AD155: 22 | AE155: 135 | AF155: 17 | AG155: 90 | AH155: 0.67 | AJ155: 0.087 | AK155: 0.43 | AL155: 6 | AM155: 0 | AO155: 1.27 | AP155: 41.1 | AS155: 0.107 | AT155: 0.091 | AU155: 0.73 | AV155: 0.405 | AW155: 0.077 | BA155: 33.09
A156: APPLEBEE'S,DOUBLE CRUNCH SHRIMP | C156: 36001 | D156: 323 | E156: 12.31 | F156: 18.9 | G156: 25.96 | H156: 1.07 | J156: 2.6 | K156: 3.366 | T156: 4.235 | V156: 9.682 | AB156: 86 | AC156: 838 | AD156: 45 | AE156: 97 | AF156: 23 | AG156: 271 | AH156: 1.03 | AJ156: 0.14 | AK156: 0.78 | AL156: 26.6 | AM156: 2 | AO156: 1.97 | AP156: 29.1 | AS156: 0.09 | AT156: 0.089 | AU156: 0.9 | AV156: 0.34 | AW156: 0.055 | AX156: 0.43 | AY156: 14 | BA156: 40.12
A157: APPLEBEE'S,FISH,HAND BATTERED | C157: 36018 | D157: 202 | E157: 13.23 | F157: 9.14 | G157: 16.65 | H157: 0.51 | J157: 0.9 | K157: 1.613 | T157: 2.014 | V157: 4.559 | AB157: 34 | AC157: 607 | AD157: 13 | AE157: 241 | AF157: 20 | AG157: 234 | AH157: 0.35 | AJ157: 0.039 | AK157: 0.34 | AL157: 17.8 | AM157: 3 | AO157: 0.88 | AS157: 0.053 | AT157: 0.093 | AU157: 2.29 | AV157: 0.4 | AW157: 0.201 | AX157: 1.23 | BA157: 58.82
A158: APPLEBEE'S,FRENCH FR | C158: 36002 | D158: 290 | E158: 3.31 | F158: 13.17 | G158: 39.5 | H158: 0 | J158: 3.9 | K158: 2.333 | T158: 3.31 | V158: 5.802 | AB158: 1 | AC158: 618 | AD158: 19 | AE158: 538 | AF158: 29 | AG158: 137 | AH158: 1.01 | AJ158: 0.109 | AK158: 0.49 | AL158: 0.4 | AM158: 0 | AO158: 0.93 | AP158: 33.4 | AR158: 0.7 | AS158: 0.103 | AT158: 0.058 | AU158: 2.18 | AV158: 0.495 | AW158: 0.205 | BA158: 41.29
A159: APPLEBEE'S,KRAFT,MACARONI & CHS,FROM KID'S MENU | C159: 36003 | D159: 143 | E159: 5.01 | F159: 4.34 | G159: 21.08 | H159: 3.7 | J159: 1.3 | K159: 1.312 | T159: 1.951 | V159: 0.952 | AB159: 7 | AC159: 288 | AD159: 79 | AE159: 163 | AF159: 22 | AG159: 104 | AH159: 0.84 | AJ159: 0.061 | AK159: 0.57 | AL159: 23.1 | AM159: 18 | AO159: 0.52 | AS159: 0.103 | AT159: 0.283 | AU159: 0.97 | AV159: 0.55 | AW159: 0.065 | AX159: 0.24 | BA159: 68.28
A160: APPLEBEE'S,MOZZARELLA STKS | C160: 36004 | D160: 316 | E160: 14.87 | F160: 18.37 | G160: 22.87 | H160: 2.8 | J160: 2.1 | K160: 6.73 | T160: 4.217 | V160: 4.58 | AB160: 33 | AC160: 838 | AD160: 319 | AE160: 106 | AF160: 20 | AG160: 307 | AH160: 0.43 | AJ160: 0.059 | AK160: 2 | AL160: 17.6 | AM160: 113 | AO160: 0.71 | AP160: 22.2 | AS160: 0.073 | AT160: 0.26 | AU160: 0.66 | AV160: 0.41 | AW160: 0.067 | AX160: 0.99 | BA160: 40.65
A161: APPLES,CND,SWTND,SLICED,DRND,HTD | C161: 9008 | D161: 67 | E161: 0.18 | F161: 0.43 | G161: 16.84 | H161: 14.84 | J161: 2 | K161: 0.07 | T161: 0.017 | V161: 0.126 | AB161: 0 | AC161: 3 | AD161: 4 | AE161: 70 | AF161: 3 | AG161: 6 | AH161: 0.24 | AJ161: 0.051 | AK161: 0.05 | AL161: 0.3 | AM161: 3 | AN161: 0 | AO161: 0.21 | AP161: 0.6 | AR161: 0.2 | AS161: 0.009 | AT161: 0.01 | AU161: 0.081 | AV161: 0.032 | AW161: 0.044 | AX161: 0 | AY161: 0 | BA161: 82.28
A162: APPLES,CND,SWTND,SLICED,DRND,UNHTD | C162: 9007 | D162: 67 | E162: 0.18 | F162: 0.49 | G162: 16.7 | H162: 15 | J162: 1.7 | K162: 0.08 | T162: 0.02 | V162: 0.144 | AB162: 0 | AC162: 3 | AD162: 4 | AE162: 68 | AF162: 2 | AG162: 5 | AH162: 0.23 | AJ162: 0.053 | AK162: 0.03 | AL162: 0.3 | AM162: 3 | AN162: 0 | AO162: 0.21 | AP162: 0.6 | AR162: 0.4 | AS162: 0.009 | AT162: 0.01 | AU162: 0.073 | AV162: 0.031 | AW162: 0.044 | AX162: 0 | AY162: 0 | BA162: 82.36
A163: APPLES,DEHYD (LO MOIST),SULFURED,STWD | C163: 9010 | D163: 74 | E163: 0.28 | F163: 0.12 | G163: 19.91 | J163: 2.6 | K163: 0.02 | T163: 0.005 | V163: 0.036 | AB163: 0 | AC163: 26 | AD163: 4 | AE163: 136 | AF163: 5 | AG163: 12 | AH163: 0.43 | AJ163: 0.058 | AK163: 0.06 | AL163: 0.4 | AM163: 1 | AN163: 0 | AR163: 0.6 | AS163: 0.008 | AT163: 0.029 | AU163: 0.14 | AV163: 0.08 | AW163: 0.054 | AX163: 0 | AY163: 0 | BA163: 79.36
A164: APPLES,DEHYD (LO MOIST),SULFURED,UNCKD | C164: 9009 | D164: 346 | E164: 1.32 | F164: 0.58 | G164: 93.53 | H164: 81.13 | J164: 12.4 | K164: 0.095 | T164: 0.024 | V164: 0.171 | AB164: 0 | AC164: 124 | AD164: 19 | AE164: 640 | AF164: 22 | AG164: 55 | AH164: 2 | AJ164: 0.271 | AK164: 0.29 | AL164: 1.8 | AM164: 4 | AN164: 0 | AO164: 0.75 | AP164: 4.3 | AR164: 2.2 | AS164: 0.046 | AT164: 0.13 | AU164: 0.68 | AV164: 0.432 | AW164: 0.28 | AX164: 0 | AY164: 1 | BA164: 3
A165: APPLES,DRIED,SULFURED,STWD,W/ SUGAR | C165: 9013 | D165: 83 | E165: 0.2 | F165: 0.07 | G165: 20.73 | J165: 1.9 | K165: 0.011 | T165: 0.003 | V165: 0.02 | AB165: 0 | AC165: 19 | AD165: 3 | AE165: 98 | AF165: 3 | AG165: 8 | AH165: 0.31 | AJ165: 0.042 | AK165: 0.04 | AM165: 1 | AN165: 0 | AR165: 0.9 | AS165: 0.006 | AT165: 0.018 | AU165: 0.121 | AV165: 0.054 | AW165: 0.047 | AX165: 0 | AY165: 0 | BA165: 78.76
A166: APPLES,DRIED,SULFURED,STWD,WO/ SUGAR | C166: 9012 | D166: 57 | E166: 0.22 | F166: 0.07 | G166: 15.32 | H166: 13.32 | J166: 2 | K166: 0.012 | T166: 0.003 | V166: 0.022 | AB166: 0 | AC166: 20 | AD166: 3 | AE166: 105 | AF166: 4 | AG166: 9 | AH166: 0.33 | AJ166: 0.044 | AK166: 0.05 | AL166: 0.3 | AM166: 1 | AN166: 0 | AO166: 0.12 | AP166: 0.7 | AR166: 1 | AS166: 0.006 | AT166: 0.019 | AU166: 0.129 | AV166: 0.057 | AW166: 0.05 | AX166: 0 | AY166: 0 | BA166: 84.13
A167: APPLES,DRIED,SULFURED,UNCKD | C167: 9011 | D167: 243 | E167: 0.93 | F167: 0.32 | G167: 65.89 | H167: 57.19 | J167: 8.7 | K167: 0.052 | T167: 0.013 | V167: 0.093 | AB167: 0 | AC167: 87 | AD167: 14 | AE167: 450 | AF167: 16 | AG167: 38 | AH167: 1.4 | AJ167: 0.191 | AK167: 0.2 | AL167: 1.3 | AM167: 0 | AN167: 0 | AO167: 0.53 | AP167: 3 | AR167: 3.9 | AS167: 0 | AT167: 0.159 | AU167: 0.927 | AV167: 0.245 | AW167: 0.125 | AX167: 0 | AY167: 0 | BA167: 31.76
A168: APPLES,FRZ,UNSWTND,HTD | C168: 9015 | D168: 47 | E168: 0.29 | F168: 0.33 | G168: 12 | J168: 1.3 | K168: 0.053 | T168: 0.013 | V168: 0.095 | AB168: 0 | AC168: 3 | AD168: 5 | AE168: 76 | AF168: 3 | AG168: 8 | AH168: 0.19 | AJ168: 0.065 | AK168: 0.05 | AL168: 0.2 | AN168: 0 | AR168: 0.4 | AS168: 0.014 | AT168: 0.011 | AU168: 0.043 | AV168: 0.057 | AW168: 0.032 | AX168: 0 | AY168: 1 | BA168: 87.16
A169: APPLES,FRZ,UNSWTND,UNHTD | C169: 9014 | D169: 48 | E169: 0.28 | F169: 0.32 | G169: 12.31 | H169: 10.1 | J169: 1.3 | K169: 0.053 | T169: 0.013 | V169: 0.095 | AB169: 0 | AC169: 3 | AD169: 4 | AE169: 77 | AF169: 3 | AG169: 8 | AH169: 0.18 | AJ169: 0.058 | AK169: 0.05 | AL169: 0.2 | AN169: 0 | AR169: 0.1 | AS169: 0.013 | AT169: 0.011 | AU169: 0.042 | AV169: 0.054 | AW169: 0.034 | AX169: 0 | AY169: 1 | BA169: 86.85
A170: APPLES,RAW,FUJI,W/ SKN | C170: 9504 | D170: 63 | E170: 0.2 | F170: 0.18 | G170: 15.22 | H170: 11.68 | J170: 2.1 | AC170: 1 | AD170: 7 | AE170: 109 | AF170: 5 | AG170: 13 | AH170: 0.1 | AJ170: 0.025 | AK170: 0.04 | AL170: 0 | AM170: 2 | AO170: 0.18 | AP170: 1 | AS170: 0.013 | AT170: 0.026 | AU170: 0.07 | AV170: 0.051 | AW170: 0.045 | AY170: 3 | BA170: 84.16
A171: APPLES,RAW,GALA,W/ SKN | C171: 9503 | D171: 57 | E171: 0.25 | F171: 0.12 | G171: 13.68 | H171: 10.37 | J171: 2.3 | AC171: 1 | AD171: 7 | AE171: 108 | AF171: 5 | AG171: 11 | AH171: 0.12 | AJ171: 0.021 | AK171: 0.05 | AL171: 0 | AM171: 1 | AO171: 0.18 | AP171: 1.3 | AS171: 0.017 | AT171: 0.029 | AU171: 0.075 | AV171: 0.055 | AW171: 0.049 | AY171: 3 | BA171: 85.76
A172: APPLES,RAW,GOLDEN DELICIOUS,W/ SKN | C172: 9501 | D172: 57 | E172: 0.28 | F172: 0.15 | G172: 13.6 | H172: 10.04 | J172: 2.4 | AC172: 2 | AD172: 6 | AE172: 100 | AF172: 5 | AG172: 10 | AH172: 0.13 | AJ172: 0.03 | AK172: 0.04 | AL172: 0 | AM172: 3 | AO172: 0.18 | AP172: 1.8 | AS172: 0.018 | AT172: 0.026 | AU172: 0.094 | AV172: 0.074 | AW172: 0.051 | AY172: 3 | BA172: 85.81
A173: APPLES,RAW,GRANNY SMITH,W/ SKN | C173: 9502 | D173: 58 | E173: 0.44 | F173: 0.19 | G173: 13.61 | H173: 9.59 | J173: 2.8 | AC173: 1 | AD173: 5 | AE173: 120 | AF173: 5 | AG173: 12 | AH173: 0.15 | AJ173: 0.031 | AK173: 0.04 | AL173: 0.1 | AM173: 5 | AO173: 0.18 | AP173: 3.2 | AS173: 0.019 | AT173: 0.025 | AU173: 0.126 | AV173: 0.056 | AW173: 0.037 | AY173: 3 | BA173: 85.46
A174: APPLES,RAW,RED DELICIOUS,W/ SKN | C174: 9500 | D174: 59 | E174: 0.27 | F174: 0.2 | G174: 14.06 | H174: 10.48 | J174: 2.3 | AC174: 1 | AD174: 6 | AE174: 104 | AF174: 5 | AG174: 12 | AH174: 0.11 | AJ174: 0.027 | AK174: 0.04 | AL174: 0 | AM174: 3 | AO174: 0.24 | AP174: 2.6 | AS174: 0.015 | AT174: 0.025 | AU174: 0.075 | AV174: 0.051 | AW174: 0.034 | AY174: 3 | BA174: 85.33
A175: APPLES,RAW,WITH SKIN | C175: 9003 | D175: 52 | E175: 0.26 | F175: 0.17 | G175: 13.81 | H175: 10.39 | J175: 2.4 | K175: 0.028 | T175: 0.007 | V175: 0.051 | AB175: 0 | AC175: 1 | AD175: 6 | AE175: 107 | AF175: 5 | AG175: 11 | AH175: 0.12 | AJ175: 0.027 | AK175: 0.04 | AL175: 0 | AM175: 3 | AN175: 0 | AO175: 0.18 | AP175: 2.2 | AR175: 4.6 | AS175: 0.017 | AT175: 0.026 | AU175: 0.091 | AV175: 0.061 | AW175: 0.041 | AX175: 0 | AY175: 3 | BA175: 85.56
A176: APPLES,RAW,WITHOUT SKIN | C176: 9004 | D176: 48 | E176: 0.27 | F176: 0.13 | G176: 12.76 | H176: 10.1 | J176: 1.3 | K176: 0.021 | T176: 0.005 | V176: 0.037 | AB176: 0 | AC176: 0 | AD176: 5 | AE176: 90 | AF176: 4 | AG176: 11 | AH176: 0.07 | AJ176: 0.031 | AK176: 0.05 | AL176: 0 | AM176: 2 | AN176: 0 | AO176: 0.05 | AP176: 0.6 | AR176: 4 | AS176: 0.019 | AT176: 0.028 | AU176: 0.091 | AV176: 0.071 | AW176: 0.037 | AX176: 0 | AY176: 0 | BA176: 86.67
A177: APPLES,RAW,WO/ SKN,CKD,MICROWAVE | C177: 9006 | D177: 56 | E177: 0.28 | F177: 0.42 | G177: 14.41 | H177: 11.61 | J177: 2.8 | K177: 0.068 | T177: 0.017 | V177: 0.122 | AB177: 0 | AC177: 1 | AD177: 5 | AE177: 93 | AF177: 3 | AG177: 8 | AH177: 0.17 | AJ177: 0.046 | AK177: 0.04 | AL177: 0.3 | AM177: 2 | AN177: 0 | AO177: 0.05 | AP177: 0.7 | AR177: 0.3 | AS177: 0.017 | AT177: 0.011 | AU177: 0.061 | AV177: 0.046 | AW177: 0.046 | AX177: 0 | AY177: 1 | BA177: 84.63
A178: APPLES,RAW,WO/SKN,CKD,BLD | C178: 9005 | D178: 53 | E178: 0.26 | F178: 0.36 | G178: 13.64 | H178: 11.01 | J178: 2.4 | K178: 0.058 | T178: 0.014 | V178: 0.104 | AB178: 0 | AC178: 1 | AD178: 5 | AE178: 88 | AF178: 3 | AG178: 8 | AH178: 0.19 | AJ178: 0.035 | AK178: 0.04 | AL178: 0.3 | AM178: 2 | AN178: 0 | AO178: 0.05 | AP178: 0.6 | AR178: 0.2 | AS178: 0.016 | AT178: 0.012 | AU178: 0.095 | AV178: 0.046 | AW178: 0.044 | AX178: 0 | AY178: 1 | BA178: 85.47
A179: APPLESAUCE,CND,SWTND,W/SALT | C179: 9402 | D179: 76 | E179: 0.18 | F179: 0.18 | G179: 19.91 | J179: 1.2 | K179: 0.03 | T179: 0.007 | V179: 0.054 | AB179: 0 | AC179: 28 | AD179: 4 | AE179: 61 | AF179: 3 | AG179: 7 | AH179: 0.35 | AJ179: 0.043 | AK179: 0.04 | AL179: 0.3 | AM179: 1 | AN179: 0 | AR179: 1.7 | AS179: 0.013 | AT179: 0.028 | AU179: 0.188 | AV179: 0.052 | AW179: 0.026 | AX179: 0 | AY179: 1 | BA179: 79.58
A180: APPLESAUCE,CND,SWTND,WO/ SALT (INCLUDES USDA COMMODITY) | C180: 9020 | D180: 68 | E180: 0.16 | F180: 0.17 | G180: 17.49 | H180: 14.67 | J180: 1.2 | K180: 0.03 | T180: 0.007 | V180: 0.054 | AB180: 0 | AC180: 2 | AD180: 3 | AE180: 75 | AF180: 3 | AG180: 6 | AH180: 0.12 | AJ180: 0.032 | AK180: 0.03 | AL180: 0.3 | AM180: 0 | AN180: 0 | AO180: 0.18 | AP180: 0.6 | AR180: 1.7 | AS180: 0.017 | AT180: 0.022 | AU180: 0.072 | AV180: 0.044 | AW180: 0.027 | AX180: 0 | AY180: 1 | BA180: 81.98
A181: APPLESAUCE,CND,UNSWTND,W/ VIT C | C181: 9401 | D181: 42 | E181: 0.17 | F181: 0.1 | G181: 11.27 | H181: 9.39 | J181: 1.1 | K181: 0.008 | T181: 0.002 | V181: 0.014 | AB181: 0 | AC181: 2 | AD181: 4 | AE181: 74 | AF181: 3 | AG181: 5 | AH181: 0.23 | AJ181: 0.027 | AK181: 0.03 | AL181: 0.3 | AM181: 1 | AN181: 0 | AO181: 0.16 | AP181: 0.5 | AR181: 21.2 | AS181: 0.026 | AT181: 0.03 | AU181: 0.084 | AV181: 0.041 | AW181: 0.027 | AX181: 0 | AY181: 3 | BA181: 88.22
A182: APPLESAUCE,CND,UNSWTND,WO/ADDED VIT C (INCLUDES USDA COMMOD) | C182: 9019 | D182: 42 | E182: 0.17 | F182: 0.1 | G182: 11.27 | H182: 9.39 | J182: 1.1 | K182: 0.008 | T182: 0.002 | V182: 0.014 | AB182: 0 | AC182: 2 | AD182: 4 | AE182: 74 | AF182: 3 | AG182: 5 | AH182: 0.23 | AJ182: 0.027 | AK182: 0.03 | AL182: 0.3 | AM182: 1 | AN182: 0 | AO182: 0.16 | AP182: 0.5 | AR182: 1 | AS182: 0.026 | AT182: 0.03 | AU182: 0.084 | AV182: 0.041 | AW182: 0.027 | AX182: 0 | AY182: 3 | BA182: 88.22
A183: APRICOT NECTAR,CND,W/ VIT C | C183: 9403 | D183: 56 | E183: 0.37 | F183: 0.09 | G183: 14.39 | H183: 13.24 | J183: 0.6 | K183: 0.006 | T183: 0.038 | V183: 0.017 | AB183: 0 | AC183: 3 | AD183: 7 | AE183: 114 | AF183: 5 | AG183: 9 | AH183: 0.38 | AJ183: 0.073 | AK183: 0.09 | AL183: 0.2 | AM183: 66 | AN183: 0 | AR183: 17.6 | AS183: 0.009 | AT183: 0.014 | AU183: 0.26 | AV183: 0.096 | AW183: 0.022 | AX183: 0 | AY183: 1 | BA183: 84.87
A184: APRICOT NECTAR,CND,WO/ VIT C | C184: 9036 | D184: 56 | E184: 0.37 | F184: 0.09 | G184: 14.39 | H184: 13.79 | J184: 0.6 | K184: 0.006 | T184: 0.038 | V184: 0.017 | AB184: 0 | AC184: 3 | AD184: 7 | AE184: 114 | AF184: 5 | AG184: 9 | AH184: 0.38 | AJ184: 0.073 | AK184: 0.09 | AL184: 0 | AM184: 66 | AN184: 0 | AO184: 0.31 | AP184: 1.2 | AR184: 0.6 | AS184: 0.009 | AT184: 0.014 | AU184: 0.26 | AV184: 0.096 | AW184: 0.022 | AX184: 0 | AY184: 1 | BA184: 84.87
A185: APRICOTS,CND,EX HVY SYRUP PK,WO/SKN,SOL&LIQUIDS | C185: 9029 | D185: 96 | E185: 0.55 | F185: 0.04 | G185: 24.85 | J185: 1.6 | K185: 0.003 | T185: 0.017 | V185: 0.008 | AB185: 0 | AC185: 13 | AD185: 8 | AE185: 126 | AF185: 8 | AG185: 15 | AH185: 0.62 | AJ185: 0.064 | AK185: 0.1 | AM185: 74 | AN185: 0 | AR185: 2.4 | AS185: 0.016 | AT185: 0.022 | AU185: 0.34 | AV185: 0.092 | AW185: 0.054 | AX185: 0 | AY185: 2 | BA185: 74.33
A186: APRICOTS,CND,EX LT SYRUP PK,W/SKN,SOL&LIQUIDS | C186: 9025 | D186: 49 | E186: 0.6 | F186: 0.1 | G186: 12.5 | J186: 1.6 | K186: 0.007 | T186: 0.043 | V186: 0.02 | AB186: 0 | AC186: 2 | AD186: 10 | AE186: 140 | AF186: 6 | AG186: 12 | AH186: 0.3 | AJ186: 0.04 | AK186: 0.08 | AM186: 64 | AN186: 0 | AR186: 4 | AS186: 0.02 | AT186: 0.02 | AU186: 0.6 | AV186: 0.092 | AW186: 0.054 | AX186: 0 | AY186: 2 | BA186: 86.3
A187: APRICOTS,CND,H2O PK,W/SKN,SOL&LIQUIDS | C187: 9022 | D187: 27 | E187: 0.71 | F187: 0.16 | G187: 6.39 | H187: 4.79 | J187: 1.6 | K187: 0.011 | T187: 0.069 | V187: 0.031 | AB187: 0 | AC187: 3 | AD187: 8 | AE187: 192 | AF187: 7 | AG187: 13 | AH187: 0.32 | AJ187: 0.082 | AK187: 0.11 | AL187: 0.1 | AM187: 98 | AN187: 0 | AO187: 0.6 | AP187: 2.2 | AR187: 3.4 | AS187: 0.021 | AT187: 0.023 | AU187: 0.395 | AV187: 0.092 | AW187: 0.054 | AX187: 0 | AY187: 2 | BA187: 92.36
A188: APRICOTS,CND,H2O PK,WO/SKN,SOL&LIQUIDS | C188: 9023 | D188: 22 | E188: 0.69 | F188: 0.03 | G188: 5.48 | J188: 1.1 | K188: 0.002 | T188: 0.013 | V188: 0.006 | AB188: 0 | AC188: 11 | AD188: 8 | AE188: 154 | AF188: 9 | AG188: 16 | AH188: 0.54 | AJ188: 0.068 | AK188: 0.11 | AM188: 91 | AN188: 0 | AR188: 1.8 | AS188: 0.02 | AT188: 0.024 | AU188: 0.437 | AV188: 0.092 | AW188: 0.054 | AX188: 0 | AY188: 2 | BA188: 93.43
A189: APRICOTS,CND,HVY SYRUP PK,W/SKN,SOL&LIQUIDS | C189: 9027 | D189: 83 | E189: 0.53 | F189: 0.08 | G189: 21.47 | H189: 19.87 | J189: 1.6 | K189: 0.005 | T189: 0.033 | V189: 0.015 | AB189: 0 | AC189: 4 | AD189: 9 | AE189: 140 | AF189: 7 | AG189: 12 | AH189: 0.3 | AJ189: 0.078 | AK189: 0.11 | AL189: 0.1 | AM189: 62 | AN189: 0 | AO189: 0.6 | AP189: 2.2 | AR189: 3.1 | AS189: 0.02 | AT189: 0.022 | AU189: 0.376 | AV189: 0.092 | AW189: 0.054 | AX189: 0 | AY189: 2 | BA189: 77.56
A190: APRICOTS,CND,HVY SYRUP PK,WO/SKN,SOL&LIQUIDS | C190: 9028 | D190: 83 | E190: 0.51 | F190: 0.09 | G190: 21.45 | J190: 1.6 | K190: 0.006 | T190: 0.037 | V190: 0.017 | AB190: 0 | AC190: 11 | AD190: 9 | AE190: 134 | AF190: 8 | AG190: 13 | AH190: 0.43 | AJ190: 0.065 | AK190: 0.1 | AM190: 62 | AN190: 0 | AR190: 2.8 | AS190: 0.019 | AT190: 0.023 | AU190: 0.416 | AV190: 0.092 | AW190: 0.054 | AX190: 0 | AY190: 2 | BA190: 77.66
A191: APRICOTS,CND,HVY SYRUP,DRND | C191: 9357 | D191: 83 | E191: 0.64 | F191: 0.11 | G191: 21.31 | H191: 18.65 | J191: 2.7 | K191: 0.007 | T191: 0.045 | V191: 0.021 | AB191: 0 | AC191: 4 | AD191: 10 | AE191: 143 | AF191: 7 | AG191: 13 | AH191: 0.3 | AJ191: 0.097 | AK191: 0.11 | AL191: 0.1 | AM191: 146 | AN191: 0 | AO191: 0.89 | AP191: 3.3 | AR191: 3.1 | AS191: 0.021 | AT191: 0.024 | AU191: 0.376 | AW191: 0.055 | AX191: 0 | AY191: 2 | BA191: 77.56
A192: APRICOTS,CND,JUC PK,W/SKN,SOL&LIQUIDS | C192: 9024 | D192: 48 | E192: 0.63 | F192: 0.04 | G192: 12.34 | H192: 10.74 | J192: 1.6 | K192: 0.003 | T192: 0.017 | V192: 0.007 | AB192: 0 | AC192: 4 | AD192: 12 | AE192: 165 | AF192: 10 | AG192: 20 | AH192: 0.3 | AJ192: 0.054 | AK192: 0.11 | AL192: 0.1 | AM192: 85 | AN192: 0 | AO192: 0.6 | AP192: 2.2 | AR192: 4.9 | AS192: 0.018 | AT192: 0.019 | AU192: 0.344 | AV192: 0.092 | AW192: 0.054 | AX192: 0 | AY192: 2 | BA192: 86.62
A193: APRICOTS,CND,LT SYRUP PK,W/SKN,SOL&LIQUIDS | C193: 9026 | D193: 63 | E193: 0.53 | F193: 0.05 | G193: 16.49 | H193: 14.89 | J193: 1.6 | K193: 0.003 | T193: 0.021 | V193: 0.01 | AB193: 0 | AC193: 4 | AD193: 11 | AE193: 138 | AF193: 8 | AG193: 13 | AH193: 0.39 | AJ193: 0.079 | AK193: 0.11 | AL193: 0.1 | AM193: 66 | AN193: 0 | AO193: 0.6 | AP193: 2.2 | AR193: 2.7 | AS193: 0.016 | AT193: 0.02 | AU193: 0.304 | AV193: 0.092 | AW193: 0.054 | AX193: 0 | AY193: 2 | BA193: 82.56
A194: APRICOTS,DEHYD (LOW-MOISTURE),SULFURED,STWD | C194: 9031 | D194: 126 | E194: 1.93 | F194: 0.24 | G194: 32.62 | K194: 0.017 | T194: 0.105 | V194: 0.047 | AB194: 0 | AC194: 5 | AD194: 24 | AE194: 728 | AF194: 25 | AG194: 62 | AH194: 2.48 | AJ194: 0.227 | AK194: 0.39 | AM194: 220 | AN194: 0 | AR194: 7.1 | AS194: 0.013 | AT194: 0.067 | AU194: 1.63 | AV194: 0.468 | AW194: 0.161 | AX194: 0 | AY194: 2 | BA194: 63.6
A195: APRICOTS,DEHYD (LOW-MOISTURE),SULFURED,UNCKD | C195: 9030 | D195: 320 | E195: 4.9 | F195: 0.62 | G195: 82.89 | K195: 0.043 | T195: 0.268 | V195: 0.121 | AB195: 0 | AC195: 13 | AD195: 61 | AE195: 1850 | AF195: 63 | AG195: 157 | AH195: 6.31 | AJ195: 0.576 | AK195: 1 | AM195: 633 | AN195: 0 | AR195: 9.5 | AS195: 0.043 | AT195: 0.148 | AU195: 3.58 | AV195: 1.067 | AW195: 0.52 | AX195: 0 | AY195: 4 | BA195: 7.5
A196: APRICOTS,DRIED,SULFURED,STWD,W/ SUGAR | C196: 9034 | D196: 113 | E196: 1.17 | F196: 0.15 | G196: 29.26 | J196: 4.1 | K196: 0.01 | T196: 0.064 | V196: 0.029 | AB196: 0 | AC196: 3 | AD196: 15 | AE196: 443 | AF196: 15 | AG196: 38 | AH196: 1.52 | AJ196: 0.138 | AK196: 0.24 | AM196: 107 | AN196: 0 | AR196: 1.4 | AS196: 0.005 | AT196: 0.027 | AU196: 0.853 | AV196: 0.191 | AW196: 0.103 | AX196: 0 | AY196: 0 | BA196: 68.45
A197: APRICOTS,DRIED,SULFURED,STWD,WO/ SUGAR | C197: 9033 | D197: 85 | E197: 1.2 | F197: 0.18 | G197: 22.15 | H197: 19.57 | J197: 2.6 | K197: 0.006 | T197: 0.026 | V197: 0.026 | AB197: 0 | AC197: 4 | AD197: 19 | AE197: 411 | AF197: 11 | AG197: 25 | AH197: 0.94 | AJ197: 0.121 | AK197: 0.14 | AL197: 0.8 | AM197: 64 | AN197: 0 | AO197: 1.53 | AP197: 1.1 | AR197: 0.3 | AS197: 0.005 | AT197: 0.026 | AU197: 0.915 | AV197: 0.211 | AW197: 0.051 | AX197: 0 | AY197: 3 | BA197: 75.56
A198: APRICOTS,DRIED,SULFURED,UNCKD | C198: 9032 | D198: 241 | E198: 3.39 | F198: 0.51 | G198: 62.64 | H198: 53.44 | J198: 7.3 | K198: 0.017 | T198: 0.074 | V198: 0.074 | AB198: 0 | AC198: 10 | AD198: 55 | AE198: 1162 | AF198: 32 | AG198: 71 | AH198: 2.66 | AJ198: 0.343 | AK198: 0.39 | AL198: 2.2 | AM198: 180 | AN198: 0 | AO198: 4.33 | AP198: 3.1 | AR198: 1 | AS198: 0.015 | AT198: 0.074 | AU198: 2.589 | AV198: 0.516 | AW198: 0.143 | AX198: 0 | AY198: 10 | BA198: 30.89
A199: APRICOTS,FROZEN,SWEETENED | C199: 9035 | D199: 98 | E199: 0.7 | F199: 0.1 | G199: 25.1 | J199: 2.2 | K199: 0.007 | T199: 0.044 | V199: 0.02 | AB199: 0 | AC199: 4 | AD199: 10 | AE199: 229 | AF199: 9 | AG199: 19 | AH199: 0.9 | AJ199: 0.064 | AK199: 0.1 | AL199: 0.4 | AM199: 84 | AN199: 0 | AR199: 9 | AS199: 0.02 | AT199: 0.04 | AU199: 0.8 | AV199: 0.2 | AW199: 0.06 | AX199: 0 | AY199: 2 | BA199: 73.3
A200: APRICOTS,RAW | C200: 9021 | D200: 48 | E200: 1.4 | F200: 0.39 | G200: 11.12 | H200: 9.24 | J200: 2 | K200: 0.027 | T200: 0.17 | V200: 0.077 | AB200: 0 | AC200: 1 | AD200: 13 | AE200: 259 | AF200: 10 | AG200: 23 | AH200: 0.39 | AJ200: 0.078 | AK200: 0.2 | AL200: 0.1 | AM200: 96 | AN200: 0 | AO200: 0.89 | AP200: 3.3 | AR200: 10 | AS200: 0.03 | AT200: 0.04 | AU200: 0.6 | AV200: 0.24 | AW200: 0.054 | AX200: 0 | AY200: 9 | BA200: 86.35
... 925 more rows

Sheet Annexe (hidden)
A2: Vitamine A | B2: Vitamine D | C2: Vitamine E | D2: Vitamine K1 | E2: Vitamine K | F2: Vitamine K2 | G2: Vitamine C | H2: Vitamine B1 | I2: Vitamine B2 | J2: Vitamine B3 | K2: Vitamine B5 | L2: Vitamine B6 | M2: Vitamine B12 | N2: Vitamine B9
A3: 800 | B3: 5 | C3: 12 | E3: 45 | G3: 110 | H3: 1.3 | I3: 1.6 | J3: 14 | K3: 5 | L3: 1.8 | M3: 2.4 | N3: 330
A4: 0.9028263889 | B4: 0.6265 | C4: 0.9868055556 | E4: 0.1191851852 | G4: 0.4803787879 | H4: 0.3772948718 | I4: 0.58571875 | J4: 0.7693095238 | K4: 0.3752333333 | L4: 0.3964722222 | M4: 0.8967361111 | N4: 0.4504444444
A8: Vitamine A | B8: Vitamine D | C8: Vitamine E | D8: Vitamine K1 | E8: Vitamine K | F8: Vitamine K2 | G8: Vitamine C | H8: Vitamine B1 | I8: Vitamine B2 | J8: Vitamine B3 | K8: Vitamine B5 | L8: Vitamine B6 | M8: Vitamine B12 | N8: Vitamine B9
A9: 600 | B9: 5 | C9: 12 | E9: 45 | G9: 110 | H9: 1.1 | I9: 1.5 | J9: 11 | K9: 5 | L9: 1.5 | M9: 2.4 | N9: 300
A10: 1.203768519 | B10: 0.6265 | C10: 0.9868055556 | E10: 0.1191851852 | G10: 0.4803787879 | H10: 0.4458939394 | I10: 0.6247666667 | J10: 0.9791212121 | K10: 0.3752333333 | L10: 0.4757666667 | M10: 0.8967361111 | N10: 0.4954888889
B12: A | C12: D | D12: E | E12: K | F12: C | G12: B1 | H12: B2 | I12: B3 | J12: B5 | K12: B6 | L12: B12 | M12: B9 | U12: Na | V12: Ca | W12: K | X12: Mg | Y12: P | Z12: Fe | AA12: I | AB12: Cu | AC12: Zn | AD12: Se
B13: ='Annexe 2'!AN4 -> 95 | C13: ='Annexe 2'!AO4 -> 0.3 | D13: ='Annexe 2'!AP4 -> 2.0445 | E13: ='Annexe 2'!AR4 -> 0.33 | F13: ='Annexe 2'!AT4 -> 126.39 | G13: ='Annexe 2'!AU4 -> 0.31224 | H13: ='Annexe 2'!AV4 -> 0.2709 | I13: ='Annexe 2'!AW4 -> 1.977 | J13: ='Annexe 2'!AX4 -> 1.4919 | K13: ='Annexe 2'!AY4 -> 0.44904 | L13: ='Annexe 2'!AZ4 -> 1.23 | M13: ='Annexe 2'!BA4 -> 178.56 | U13: ='Annexe 2'!AD4 -> 773.479 | V13: ='Annexe 2'!AE4 -> 215.585 | W13: ='Annexe 2'!AF4 -> 887.75 | X13: ='Annexe 2'!AG4 -> 88.806 | Y13: ='Annexe 2'!AH4 -> 223.1581 | Z13: ='Annexe 2'!AI4 -> 1.84494 | AA13: ='Annexe 2'!AJ4 -> 17.31 | AB13: ='Annexe 2'!AK4 -> 0.256995 | AC13: ='Annexe 2'!AL4 -> 1.4266 | AD13: ='Annexe 2'!AM4 -> 5.625
B14: µg (ER) | C14: µg | D14: mg | E14: µg | F14: mg | G14: mg | H14: mg | I14: mg | J14: mg | K14: mg | L14: µg | M14: µg | U14: mg | V14: mg | W14: mg | X14: mg | Y14: mg | Z14: mg | AA14: µg | AB14: mg | AC14: mg | AD14: µg
B15: ='Annexe 2'!AN5 -> 600 | C15: ='Annexe 2'!AO5 -> 5 | D15: ='Annexe 2'!AP5 -> 12 | E15: ='Annexe 2'!AR5 -> 50 | F15: ='Annexe 2'!AT5 -> 110 | G15: ='Annexe 2'!AU5 -> 1.1 | H15: ='Annexe 2'!AV5 -> 1.5 | I15: ='Annexe 2'!AW5 -> 11 | J15: ='Annexe 2'!AX5 -> 5 | K15: ='Annexe 2'!AY5 -> 1.5 | L15: ='Annexe 2'!AZ5 -> 2.4 | M15: ='Annexe 2'!BA5 -> 300 | N15: ANC | U15: ='Annexe 2'!AD5 -> 2400 | V15: ='Annexe 2'!AE5 -> 900 | W15: ='Annexe 2'!AF5 -> 4700 | X15: ='Annexe 2'!AG5 -> 360 | Y15: ='Annexe 2'!AH5 -> 750 | Z15: ='Annexe 2'!AI5 -> 16 | AA15: ='Annexe 2'!AJ5 -> 150 | AB15: ='Annexe 2'!AK5 -> 1.5 | AC15: ='Annexe 2'!AL5 -> 10 | AD15: ='Annexe 2'!AM5 -> 50 | AE15: ANC
B16: ='Annexe 2'!AN6 -> 0.1583333333 | C16: ='Annexe 2'!AO6 -> 0.06 | D16: ='Annexe 2'!AP6 -> 0.170375 | E16: ='Annexe 2'!AR6 -> 0.0066 | F16: ='Annexe 2'!AT6 -> 1.149 | G16: ='Annexe 2'!AU6 -> 0.2838545455 | H16: ='Annexe 2'!AV6 -> 0.1806 | I16: ='Annexe 2'!AW6 -> 0.1797272727 | J16: ='Annexe 2'!AX6 -> 0.29838 | K16: ='Annexe 2'!AY6 -> 0.29936 | L16: ='Annexe 2'!AZ6 -> 0.5125 | M16: ='Annexe 2'!BA6 -> 0.5952 | U16: ='Annexe 2'!AD6 -> 0.3222829167 | V16: ='Annexe 2'!AE6 -> 0.2395388889 | W16: ='Annexe 2'!AF6 -> 0.1888829787 | X16: ='Annexe 2'!AG6 -> 0.2466833333 | Y16: ='Annexe 2'!AH6 -> 0.2975441333 | Z16: ='Annexe 2'!AI6 -> 0.11530875 | AA16: ='Annexe 2'!AJ6 -> 0.1154 | AB16: ='Annexe 2'!AK6 -> 0.17133 | AC16: ='Annexe 2'!AL6 -> 0.14266 | AD16: ='Annexe 2'!AM6 -> 0.1125 | AE16: %ANC
A17: UL | B17: 3000 | D17: 300 | F17: 2000
R20: =1-R27 -> 0.6805331314
R21: =1-R24 -> 0.3875892171
R22: =1-R30 -> 0.9318776515
Q23: g./j. | S23: %AEA | T23: ANC
P24: AGS | Q24: ='Annexe 2'!L4 -> 16.5 | R24: =IF(Q24=0,"",Q24/(Q24+Q27+Q30)) -> 0.6124107829 | S24: =IF(Q24=0,"",Q24*9/PANDA_Synthèse!H17) -> 0.2103915042 | T24: < 12%
P25: dont Lau/Myr/Pal | Q25: =SUM('Annexe 2'!Q4:S4) -> 9.294 | S25: =IF(Q25=0,"",Q25*9/PANDA_Synthèse!$H$17) -> 0.1185077963 | T25: < 8%
P27: AGM | Q27: ='Annexe 2'!U4 -> 8.6073 | R27: =IF(Q27=0,"",Q27/(Q27+Q24+Q30)) -> 0.3194668686
P28: dont AG Oléique | Q28: =SUM('Annexe 2'!V4) -> 3.0123 | T28: > 15%
P30: AGP | Q30: ='Annexe 2'!W4 -> 1.8354 | R30: =IF(Q30=0,"",Q30/(Q30+Q27+Q24)) -> 0.06812234854
P31: dont Omega 3 | Q31: =SUM(omega3_totaux) -> 0.21294 | T31: > 1 à 2 g | AH31: kcal./kg : | AI31: =IF(ISBLANK('PANDA_Saisie des rations'!G4),"",PANDA_Synthèse!I3/'PANDA_Saisie des rations'!G4) -> 
P32: EPA + DHA | Q32: =SUM('Annexe 2'!Y4:Z4) -> 0.0168 | T32: > 0,5 g | AH32: prot./kg : | AI32: =IF(ISBLANK('PANDA_Saisie des rations'!G4),"",PANDA_Synthèse!H17/'PANDA_Saisie des rations'!G4) -> 
P33: ALA | Q33: =SUM('Annexe 2'!X4) -> 0.19614 | S33: =IF(Q33=0,"",Q33*9/PANDA_Synthèse!$H$17) -> 0.002500981189 | T33: > 0,5 à 1% | AH33: gluc./kg : | AI33: =IF(ISBLANK('PANDA_Saisie des rations'!G6),"",PANDA_Synthèse!H19/'PANDA_Saisie des rations'!G6) -> 
P35: dont Omega 6 | Q35: =SUM(omega6_totaux) -> 0.88176 | S35: =IF(Q33=0,"",(Q35*9)/PANDA_Synthèse!$H$17) -> 0.01124332198 | T35: < 4%
P36: Rapport Ω6/Ω3 | Q36: =IF(Q31=0,"",Q35/Q31) -> 4.140884756 | T36: < 5
P38: Cholestérol (mg) | Q38: ='Annexe 2'!AC4 -> 87 | T38: 300 mg
AN39: g./j. | AP39: %AEA | AQ39: ANC
AM40: AGS | AN40: ='Annexe 2'!AI20 -> 0 | AO40: =IF(AN40=0,"",AN40/(AN40+AN43+AN46)) ->  | AP40: =IF(AN40=0,"",AN40*9/PANDA_Synthèse!AE33) ->  | AQ40: < 12%
AM41: dont Lau/Myr/Pal | AN41: =SUM('Annexe 2'!AN20:AP20) -> 0 | AP41: =IF(AN41=0,"",AN41*9/PANDA_Synthèse!$H$17) ->  | AQ41: < 8%
AM43: AGM | AN43: ='Annexe 2'!AR20 -> 0 | AO43: =IF(AN43=0,"",AN43/(AN43+AN40+AN46)) -> 
AM44: dont AG Oléique | AN44: =SUM('Annexe 2'!AS20) -> 0 | AP44: =IF(AN44=0,"",AN44*9/PANDA_Synthèse!$H$17) ->  | AQ44: > 15%
AM46: AGP | AN46: ='Annexe 2'!AT20 -> 0 | AO46: =IF(AN46=0,"",AN46/(AN46+AN43+AN40)) -> 
AM47: dont Omega 3 | AN47: =SUM(omega3_totaux) -> 0.21294 | AQ47: > 1 à 2 g
AM48: EPA + DHA | AN48: =SUM('Annexe 2'!AV20:AW20) -> 0 | AQ48: > 0,5 g
AM49: ALA | AN49: =SUM('Annexe 2'!AU20) -> 0 | AP49: =IF(AN49=0,"",AN49*9/PANDA_Synthèse!$H$17) ->  | AQ49: > 0,5 à 1%
AM51: dont Omega 6 | AN51: =SUM(omega6_totaux) -> 0.88176 | AP51: =IF(AN49=0,"",(AN51*9)/PANDA_Synthèse!$H$17) ->  | AQ51: < 4%
AM52: Rapport Ω6/Ω3 | AN52: =IF(AN47=0,"",AN51/AN47) -> 4.140884756 | AQ52: < 5
AM54: Cholestérol (mg) | AN54: ='Annexe 2'!AZ20 -> 0 | AQ54: 300 mg
AM75: % AG totaux | AT75: g/j | AV75: %AEA | AY75: ANC
AN77: totaux | AT77: =SUM('Annexe 2'!L4) -> 16.5 | AV77: =IF(AT77=0,"",AT77*9/PANDA_Synthèse!H17) -> 0.2103915042 | AY77: < 12%
AN78: dont
AN79: Lau / Myr / Pal | AT79: =SUM('Annexe 2'!Q4:S4) -> 9.294 | AV79: =IF(AT79=0,"",AT79*9/PANDA_Synthèse!$H$17) -> 0.1185077963 | AY79: < 8%
AN81: dont
AN82: acide oléique | AT82: =SUM('Annexe 2'!V4) -> 3.0123 | AV82: =IF(AT82=0,"",AT82*9/PANDA_Synthèse!$H$17) -> 0.03840983806 | AY82: > 15%
AN85: dont
AN86: Oméga 3 | AT86: =SUM(omega3_totaux) -> 0.21294 | AY86: > 1 à 2 g
AO87: EPA + DHA | AT87: =SUM('Annexe 2'!Y4:Z4) -> 0.0168 | AY87: > 0,50 g
AO88: ALA | AT88: =SUM('Annexe 2'!X4) -> 0.19614 | AV88: =IF(AT88=0,"",AT88*9/PANDA_Synthèse!$H$17) -> 0.002500981189 | AY88: > 0,5 à 1%
AN89: Oméga 6 | AT89: =SUM(omega6_totaux) -> 0.88176 | AV89: =IF(AT89=0,"",(AT89*9)/PANDA_Synthèse!$H$17) -> 0.01124332198 | AY89: < 4%
AN90: Rapport Ω6/Ω3 | AT90: =IF(AT86=0,"",AT89/AT86) -> 4.140884756 | AY90: < 5
AN92: Cholestérol (mg) | AT92: =SUM('Annexe 2'!AC4) -> 87 | AY92: 300 mg

Sheet Annexe 2 (hidden)
AZ1: 2
K2: Besoin restant | AN2: Vitamine A | AO2: Vitamine D | AP2: Vitamine E | AQ2: Vitamine K1 | AR2: Vitamine K | AS2: Vitamine K2 | AT2: Vitamine C | AU2: Vitamine B1 | AV2: Vitamine B2 | AW2: Vitamine B3 | AX2: Vitamine B5 | AY2: Vitamine B6 | AZ2: Vitamine B12 | BA2: Vitamine B9
A3: Quantité | B3: Energie (kcal) | D3: Alcool | E3: Protéines | F3: Lipides | G3: Glucides | H3: Total | I3: Sucres | J3: Amidon | K3: Fibres | L3: AGS | M3: AG 4:0, butyrique | N3: AG 6:0, caproïque | O3: AG 8:0, caprylique | P3: AG 10:0, caprique | Q3: AG 12:0, laurique | R3: AG 14:0, myristique | S3: AG 16:0, palmitique | T3: AG 18:0, stéarique | U3: AGM | V3: AG 18:1 9c (n-9), oléique (g/100g) | W3: AGP | X3: AG 18:3 c9,c12,c15 (n-3), alpha-linolénique | Y3: AG 20:5 5c,8c,11c,14c,17c (n-3) EPA | Z3: AG 22:6 4c,7c,10c,13c,16c,19c (n-3) DHA | AA3: AG 20:4 5c,8c,11c,14c (n-6), arachidonique | AB3: AG 18:2 9c,12c (n-6), linoléique | AC3: Cholestérol (mg/100g) | AD3: Sodium | AE3: Calcium | AF3: Potassium | AG3: Magnésium | AH3: Phosphore | AI3: Fer | AJ3: Iode | AK3: Cuivre | AL3: Zinc | AM3: Sélénium | AN3: Vitamine A (µg/100 ER) | AO3: Vitamine D (µg/100g) | AP3: Vitamine E (mg/100g) | AQ3: Vitamine K1 (µg/100g) | AR3: Vitamine K (µg/100g) | AS3: Vitamine K2 (µg/100g) | AT3: Vitamine C (mg/100g) | AU3: Vitamine B1 (mg/100g) | AV3: Vitamine B2 (mg/100g) | AW3: Vitamine B3 (mg/100g) | AX3: Vitamine B5 (mg/100g) | AY3: Vitamine B6 (mg/100g) | AZ3: Vitamine B12 (µg/100g) | BA3: Vitamine B9 (µg/100g) | BB3: Besoin restant | BC3: Eau absorbée
A4: =IF(ISBLANK('PANDA_Saisie des rations'!E17),"",SUM('PANDA_Saisie des rations'!E17:E31)/nb_de_jour) -> 980 | B4: =IF(ISBLANK('PANDA_Saisie des rations'!F17),"",SUM('PANDA_Saisie des rations'!F17:F31)/nb_de_jour) -> 724.71 | D4: =IF(ISBLANK('PANDA_Saisie des rations'!BB17),"",SUM('PANDA_Saisie des rations'!BB17:BB31)/nb_de_jour) -> 0 | E4: =IF(ISBLANK('PANDA_Saisie des rations'!G17),"",SUM('PANDA_Saisie des rations'!G17:G31)/nb_de_jour) -> 17.6364 | F4: =IF(ISBLANK('PANDA_Saisie des rations'!H17),"",SUM('PANDA_Saisie des rations'!H17:H31)/nb_de_jour) -> 28.21482 | G4: =IF(ISBLANK('PANDA_Saisie des rations'!I17),"",SUM('PANDA_Saisie des rations'!I17:I31)/nb_de_jour) -> 95.337 | I4: =IF(ISBLANK('PANDA_Saisie des rations'!J17),"",SUM('PANDA_Saisie des rations'!J17:J31)/nb_de_jour) -> 32.817 | J4: =IF(ISBLANK('PANDA_Saisie des rations'!K17),"",SUM('PANDA_Saisie des rations'!K17:K31)/nb_de_jour) -> 60.3 | K4: =IF(ISBLANK('PANDA_Saisie des rations'!L17),"",SUM('PANDA_Saisie des rations'!L17:L31)/nb_de_jour) -> 9.5241 | L4: =IF(ISBLANK('PANDA_Saisie des rations'!M17),"",SUM('PANDA_Saisie des rations'!M17:M31)/nb_de_jour) -> 16.5 | M4: =IF(ISBLANK('PANDA_Saisie des rations'!N17),"",SUM('PANDA_Saisie des rations'!N17:N31)/nb_de_jour) -> 0.6765 | N4: =IF(ISBLANK('PANDA_Saisie des rations'!O17),"",SUM('PANDA_Saisie des rations'!O17:O31)/nb_de_jour) -> 0.39 | O4: =IF(ISBLANK('PANDA_Saisie des rations'!P17),"",SUM('PANDA_Saisie des rations'!P17:P31)/nb_de_jour) -> 0.261 | P4: =IF(ISBLANK('PANDA_Saisie des rations'!Q17),"",SUM('PANDA_Saisie des rations'!Q17:Q31)/nb_de_jour) -> 0.537 | Q4: =IF(ISBLANK('PANDA_Saisie des rations'!R17),"",SUM('PANDA_Saisie des rations'!R17:R31)/nb_de_jour) -> 0.744 | R4: =IF(ISBLANK('PANDA_Saisie des rations'!S17),"",SUM('PANDA_Saisie des rations'!S17:S31)/nb_de_jour) -> 2.025 | S4: =IF(ISBLANK('PANDA_Saisie des rations'!T17),"",SUM('PANDA_Saisie des rations'!T17:T31)/nb_de_jour) -> 6.525 | T4: =IF(ISBLANK('PANDA_Saisie des rations'!U17),"",SUM('PANDA_Saisie des rations'!U17:U31)/nb_de_jour) -> 2.145 | U4: =IF(ISBLANK('PANDA_Saisie des rations'!V17),"",SUM('PANDA_Saisie des rations'!V17:V31)/nb_de_jour) -> 8.6073 | V4: =IF(ISBLANK('PANDA_Saisie des rations'!W17),"",SUM('PANDA_Saisie des rations'!W17:W31)/nb_de_jour) -> 3.0123 | W4: =IF(ISBLANK('PANDA_Saisie des rations'!X17),"",SUM('PANDA_Saisie des rations'!X17:X31)/nb_de_jour) -> 1.8354 | X4: =IF(ISBLANK('PANDA_Saisie des rations'!Y17),"",SUM('PANDA_Saisie des rations'!Y17:Y31)/nb_de_jour) -> 0.19614 | Y4: =IF(ISBLANK('PANDA_Saisie des rations'!Z17),"",SUM('PANDA_Saisie des rations'!Z17:Z31)/nb_de_jour) -> 0.0168 | Z4: =IF(ISBLANK('PANDA_Saisie des rations'!AA17),"",SUM('PANDA_Saisie des rations'!AA17:AA31)/nb_de_jour) -> 0 | AA4: =IF(ISBLANK('PANDA_Saisie des rations'!AB17),"",SUM('PANDA_Saisie des rations'!AB17:AB31)/nb_de_jour) -> 0 | AB4: =IF(ISBLANK('PANDA_Saisie des rations'!AC17),"",SUM('PANDA_Saisie des rations'!AC17:AC31)/nb_de_jour) -> 0.88176 | AC4: =IF(ISBLANK('PANDA_Saisie des rations'!AD17),"",SUM('PANDA_Saisie des rations'!AD17:AD31)/nb_de_jour) -> 87 | AD4: =IF(ISBLANK('PANDA_Saisie des rations'!AE17),"",SUM('PANDA_Saisie des rations'!AE17:AE31)/nb_de_jour) -> 773.479 | AE4: =IF(ISBLANK('PANDA_Saisie des rations'!AF17),"",SUM('PANDA_Saisie des rations'!AF17:AF31)/nb_de_jour) -> 215.585 | AF4: =IF(ISBLANK('PANDA_Saisie des rations'!AG17),"",SUM('PANDA_Saisie des rations'!AG17:AG31)/nb_de_jour) -> 887.75 | AG4: =IF(ISBLANK('PANDA_Saisie des rations'!AH17),"",SUM('PANDA_Saisie des rations'!AH17:AH31)/nb_de_jour) -> 88.806 | AH4: =IF(ISBLANK('PANDA_Saisie des rations'!AI17),"",SUM('PANDA_Saisie des rations'!AI17:AI31)/nb_de_jour) -> 223.1581 | AI4: =IF(ISBLANK('PANDA_Saisie des rations'!AJ17),"",SUM('PANDA_Saisie des rations'!AJ17:AJ31)/nb_de_jour) -> 1.84494 | AJ4: =IF(ISBLANK('PANDA_Saisie des rations'!AK17),"",SUM('PANDA_Saisie des rations'!AK17:AK31)/nb_de_jour) -> 17.31 | AK4: =IF(ISBLANK('PANDA_Saisie des rations'!AL17),"",SUM('PANDA_Saisie des rations'!AL17:AL31)/nb_de_jour) -> 0.256995 | AL4: =IF(ISBLANK('PANDA_Saisie des rations'!AM17),"",SUM('PANDA_Saisie des rations'!AM17:AM31)/nb_de_jour) -> 1.4266 | AM4: =IF(ISBLANK('PANDA_Saisie des rations'!AN17),"",SUM('PANDA_Saisie des rations'!AN17:AN31)/nb_de_jour) -> 5.625 | AN4: =IF(ISBLANK('PANDA_Saisie des rations'!AO17),"",SUM('PANDA_Saisie des rations'!AO17:AO31)/nb_de_jour) -> 95 | AO4: =IF(ISBLANK('PANDA_Saisie des rations'!AP17),"",SUM('PANDA_Saisie des rations'!AP17:AP31)/nb_de_jour) -> 0.3 | AP4: =IF(ISBLANK('PANDA_Saisie des rations'!AQ17),"",SUM('PANDA_Saisie des rations'!AQ17:AQ31)/nb_de_jour) -> 2.0445 | AQ4: =IF(ISBLANK('PANDA_Saisie des rations'!AR17),"",SUM('PANDA_Saisie des rations'!AR17:AR31)/nb_de_jour) -> 0.33 | AR4: =SUM(AQ4+AS4) -> 0.33 | AS4: =IF(ISBLANK('PANDA_Saisie des rations'!AS17),"",SUM('PANDA_Saisie des rations'!AS17:AS31)/nb_de_jour) -> 0 | AT4: =IF(ISBLANK('PANDA_Saisie des rations'!AT17),"",SUM('PANDA_Saisie des rations'!AT17:AT31)/nb_de_jour) -> 126.39 | AU4: =IF(ISBLANK('PANDA_Saisie des rations'!AU17),"",SUM('PANDA_Saisie des rations'!AU17:AU31)/nb_de_jour) -> 0.31224 | AV4: =IF(ISBLANK('PANDA_Saisie des rations'!AV17),"",SUM('PANDA_Saisie des rations'!AV17:AV31)/nb_de_jour) -> 0.2709 | AW4: =IF(ISBLANK('PANDA_Saisie des rations'!AW17),"",SUM('PANDA_Saisie des rations'!AW17:AW31)/nb_de_jour) -> 1.977 | AX4: =IF(ISBLANK('PANDA_Saisie des rations'!AX17),"",SUM('PANDA_Saisie des rations'!AX17:AX31)/nb_de_jour) -> 1.4919 | AY4: =IF(ISBLANK('PANDA_Saisie des rations'!AY17),"",SUM('PANDA_Saisie des rations'!AY17:AY31)/nb_de_jour) -> 0.44904 | AZ4: =IF(ISBLANK('PANDA_Saisie des rations'!AZ17),"",SUM('PANDA_Saisie des rations'!AZ17:AZ31)/nb_de_jour) -> 1.23 | BA4: =IF(ISBLANK('PANDA_Saisie des rations'!BA17),"",SUM('PANDA_Saisie des rations'!BA17:BA31)/nb_de_jour) -> 178.56 | BC4: =IF(ISBLANK('PANDA_Saisie des rations'!BC17),"",SUM('PANDA_Saisie des rations'!BC17:BC31)/nb_de_jour) -> 823.71 | BD4: =IF(ISBLANK(Pat!T12),"",Pat!T12/1000) -> 2.361842849
D5: =7*D4 -> 0 | E5: =4*E4 -> 70.5456 | F5: =F4*9 -> 253.93338 | G5: =4*G4 -> 381.348 | H5: =SUM(D5:G5) -> 705.82698 | K5: 30 | AD5: =IF(ISBLANK(AD4),"",IF($AZ$1=1,AD17,AD16)) -> 2400 | AE5: 900 | AF5: 4700 | AG5: 360 | AH5: 750 | AI5: 16 | AJ5: 150 | AK5: 1.5 | AL5: 10 | AM5: 50 | AN5: 600 | AO5: =IF(ISBLANK(AO4),"",IF($AZ$1=1,AO17,AO16)) -> 5 | AP5: =IF(ISBLANK(AP4),"",IF($AZ$1=1,AP17,AP16)) -> 12 | AR5: =IF(ISBLANK(AR4),"",IF($AZ$1=1,AR17,AR16)) -> 50 | AT5: =IF(ISBLANK(AT4),"",IF($AZ$1=1,AT17,AT16)) -> 110 | AU5: 1.1 | AV5: 1.5 | AW5: 11 | AX5: 5 | AY5: 1.5 | AZ5: 2.4 | BA5: 300 | BB5: anc h | BC5: =BC4/1000 -> 0.82371 | BD5: =IF(ISBLANK(Pat!T12),"",BD4-BC5) -> 1.538132849
K6: =IF(K4>K5,0,K5-K4) -> 20.4759 | AD6: =AD4/AD5 -> 0.3222829167 | AE6: 0.2395388889 | AF6: 0.1888829787 | AG6: 0.2466833333 | AH6: 0.2975441333 | AI6: 0.11530875 | AJ6: 0.1154 | AK6: 0.17133 | AL6: 0.14266 | AM6: 0.1125 | AN6: =AN4/AN5 -> 0.1583333333 | AO6: =AO4/AO5 -> 0.06 | AP6: 0.170375 | AR6: 0.0066 | AT6: 1.149 | AU6: 0.2838545455 | AV6: 0.1806 | AW6: 0.1797272727 | AX6: 0.29838 | AY6: 0.29936 | AZ6: 0.5125 | BA6: 0.5952 | BB6: %couvanc
BB8: anc f
AD16: 2400 | AE16: 900 | AF16: 4700 | AG16: 360 | AH16: 750 | AI16: 16 | AJ16: 150 | AK16: 1.5 | AL16: 10 | AM16: 50 | AN16: 600 | AO16: 5 | AP16: 12 | AR16: 50 | AT16: 110 | AU16: 1.1 | AV16: 1.5 | AW16: 11 | AX16: 5 | AY16: 1.5 | AZ16: 2.4 | BA16: 300 | BB16: F
AD17: 2400 | AE17: 900 | AF17: 4700 | AG17: 420 | AH17: 750 | AI17: 9 | AJ17: 150 | AK17: 2 | AL17: 12 | AM17: 60 | AN17: 800 | AO17: 5 | AP17: 12 | AR17: 50 | AT17: 110 | AU17: 1.3 | AV17: 1.6 | AW17: 14 | AX17: 5 | AY17: 1.8 | AZ17: 2.4 | BA17: 330 | BB17: H
AE26: 1
AE28: 1
D34: gluc. simples/complexes :
I35: =IF(ISBLANK(G4),"",H37/H38) -> 0.4230995025
G37: Glu. simples | H37: =G4-J4-K4 -> 25.5129 | I37: =H37/H41 -> 0.2676075396
G38: Glu. complexes | H38: =J4 -> 60.3 | I38: =H38/H41 -> 0.6324931559
G39: Fibres | H39: =K4 -> 9.5241 | I39: =H39/H41 -> 0.09989930457
G41: somme | H41: =SUM(H37:H39) -> 95.337

Sheet Résultats (hidden)

Sheet PANDA_Synthèse
E3: =IF(ISBLANK('PANDA_Saisie des rations'!G2),"",'PANDA_Saisie des rations'!G2) ->  | I3: =SUM($H$11:$H$16) -> 705.82698
I4: kcal/j
I7: =CONCATENATE("Moyenne sur " & 'Annexe 2'!$AE$26 & " jour(s)") -> Moyenne sur 1 jour(s)
C9: Protéines | D9: Lipides | E9: Glucides | F9: % Glu. | G9: Alcool | H9: Kcal | I9: % Kcal
B10: g/kg | C10: =IF(ISBLANK(Pat!G3),"",PANDA_Synthèse!C17/poids_1) -> 0.220455 | D10: =IF(ISBLANK(Pat!G3),"",PANDA_Synthèse!D17/poids_1) -> 0.35268525 | E10: =IF(ISBLANK(Pat!G3),"",PANDA_Synthèse!E17/poids_1) -> 1.1917125 | H10: =IF(ISBLANK(Pat!G3),"",kcal/poids_1) -> 8.82283725
B11: Petit-déjeuner | C11: =SUM(protpdj)/nb_de_jour -> 17.6364 | D11: =SUM(lippdj)/nb_de_jour -> 28.21482 | E11: =SUM(glupdj)/nb_de_jour -> 95.337 | F11: =IF(E11=0,"",E11/$E$17) -> 1 | G11: =SUM(alcpdj)/nb_de_jour -> 0 | H11: =C11*4+D11*9+E11*4+G11*7 -> 705.82698 | I11: =IF(H11=0,"",H11/kcal) -> 1
B12: Collation 1
B13: Déjeuner | C13: =SUM(protdej)/nb_de_jour -> 0 | D13: =SUM(lipdej)/nb_de_jour -> 0 | E13: =SUM(gludej)/nb_de_jour -> 0 | G13: =SUM(aldej)/nb_de_jour -> 0 | H13: 0
B14: Collation 2
B15: Dîner | C15: =SUM(protdin)/nb_de_jour -> 0 | D15: =SUM(lipdin)/nb_de_jour -> 0 | E15: =SUM(gludin)/nb_de_jour -> 0 | G15: =SUM(aldin)/nb_de_jour -> 0 | H15: 0
B16: Collation 3
B17: Totaux g/j | C17: =SUM(C11:C16) -> 17.6364 | D17: =SUM(D11:D16) -> 28.21482 | E17: =SUM(E11:E16) -> 95.337 | G17: =SUM(G11:G16) -> 0 | H17: =C17*4+D17*9+E17*4 -> 705.82698 | I17: kcal. sans alcool
C18: =IF(kcal=0,"",C17*4/kcal) -> 0.09994744038 | D18: =IF(kcal=0,"",D17*9/kcal) -> 0.3597671769 | E18: =IF(kcal=0,"",E17*4/kcal) -> 0.5402853827 | G18: =IF(kcal=0,"",G17*7/kcal) -> 0
I41: ="score = "& Feuil3!L18& "/10" -> score = 5,4/10

Sheet Aide
A7: Liste des abrévations utilisées dans la base de données américaine USDA
A9: Abréviation | B9: Signification - US | C9: Traduction - FR
A11: APPL | B11: Apple | C11: Pomme
A12: APPLSAUC | B12: Applesauce | C12: Compote de pomme
A13: ART | B13: Artificial | C13: Artificiel
A14: VIT C | B14: Ascorbic acid | C14: Vitamine C
A15: ASPRT | B15: Aspartame | C15: Aspartame
A16: ASPRT-SWTND | B16: Aspartame-sweetened | C16: Edulcoré à l'aspartame
A17: BABYFD | B17: Baby food | C17: Aliment pour nourisson
A18: BKD | B18: Baked | C18: Cuit au four
A19: BBQ | B19: Barbequed | C19: Cuit au barbecue
A20: BSD | B20: Based | C20: Basé sur
A21: BNS | B21: Beans | C21: Haricots
A22: BF | B22: Beef | C22: Bœuf
A23: BEV | B23: Beverage | C23: Boissons
A24: BLD | B24: Boiled | C24: Bouilli
A25: BNLESS | B25: Boneless | C25: Sans os
A26: BTLD | B26: Bottled | C26: Embouteillé
A27: BTTM | B27: Bottom | C27: Arrière/bas/pied
A28: BRSD | B28: Braised | C28: Braisé
A29: BRKFST | B29: Breakfast | C29: Petit-déjeuner
A30: BRLD | B30: Broiled | C30: Brouillé/Grillé
A31: BTTRMLK | B31: Buttermilk | C31: Babeurre
A32: CA | B32: Calcium | C32: Calcium
A33: CAL | B33: Calorie calories | C33: Calorie
A34: CND | B34: Canned | C34: En conserve/boite
A35: CARB | B35: Carbonated | C35: Gazéifié
A36: CNTR | B36: Center | C36: Milieu
A37: CRL | B37: Cereal | C37: Céréale
A38: CHS | B38: Cheese | C38: Fromage
A39: CHICK | B39: Chicken | C39: Poulet
A40: CHOC | B40: Chocolate | C40: Chocolat
A41: CHOIC | B41: Choice | C41: Choix
A42: CHOL | B42: Cholesterol | C42: Cholesterol
A43: CHOL-FREE | B43: Cholesterol-free | C43: Sans cholesterol
A44: CHOPD | B44: Chopped | C44: Haché
A45: CINN | B45: Cinnamon | C45: Cannelle
A46: COATD | B46: Coated | C46: Enrobé
A47: COCNT | B47: Coconut | C47: Noix de coco
A48: COMP | B48: Composite | C48: Composé
A49: CONCD | B49: Concentrated | C49: Concentré
A50: COND | B50: Condensed | C50: Condensé / Concentré
A51: CONDMNT | B51: Condiment condiments | C51: Condiments
A52: CKD | B52: Cooked | C52: Cuit / cuisiné
A53: CRM | B53: Cream | C53: Crème
A54: CRMD | B54: Creamed | C54: Ecrémé / Sans crème
A55: DK | B55: Dark | C55: Noir
A56: DECORT | B56: Decorticated | C56: Pelé
A57: DEHYD | B57: Dehydrated | C57: Déshydraté
A58: DSSRT | B58: Dessert desserts | C58: Dessert
A59: DIL | B59: Diluted | C59: Dilué
A60: DOM | B60: Domestic | C60: Fait-maison
A61: DRND | B61: Drained | C61: Déshydraté / Séché
A62: DRSNG | B62: Dressing | C62: Assaisonnement
A63: DRK | B63: Drink | C63: Boissons
A64: ENR | B64: Enriched | C64: Enrichi
A65: FLANKSTK | B65: Flank steak | C65: Flanchet
A66: FLAV | B66: Flavored | C66: Aromatisé
A67: FLR | B67: Flour | C67: Farine
A68: FD | B68: Food | C68: Aliment
A69: FORT | B69: Fortified | C69: Fortifié
A70: FRENCH FR | B70: French fries | C70: Frites
A71: FRSH | B71: Fresh | C71: Frais
A72: FRSTD | B72: Frosted | C72: Givré
A73: FRSTNG | B73: Frosting | C73: Glaçage
A74: FRZ | B74: Frozen | C74: Surgelé
A75: GRDS | B75: Grades | C75: Catégories
A76: GM | B76: Gram | C76: Grammes
A77: GRNS | B77: Greens | C77: Légumes verts / Crudités
A78: HTD | B78: Heated | C78: Chauffé
A79: HVY | B79: Heavy | C79: Lourd
A80: HI | B80: High | C80: Haut
A81: HR | B81: Hour | C81: Heure
A82: HYDR | B82: Hydrogenated | C82: Hydrogéné
A83: IMITN | B83: Imitation | C83: Façon / Type
A84: IMP | B84: Imported | C84: Importé
A85: INCL | B85: Including | C85: Incluant
A86: INF FORMUKA | B86: Infant formula | C86: Formule infantile
A87: ING | B87: Ingredient | C87: Ingrédient
A88: INST | B88: Instant | C88: Instantané
A89: JUC | B89: Juice | C89: Jus
A90: KRNLS | B90: Kernels | C90: Graines
A91: LRG | B91: Large | C91: Large
A92: LN | B92: Lean | C92: Maigre
A93: LN | B93: Lean only | C93: Maigre seulement
A94: LVND | B94: Leavened | C94: Levé
A95: LT | B95: Light | C95: Léger / Allégé
A96: LIQ | B96: Liquid | C96: Liquide
A97: LO | B97: Low | C97: Pauvre en
A98: LOFAT | B98: Low fat | C98: Pauvre en graisse
A99: MSHD | B99: Mashed | C99: En purée
A100: MAYO | B100: Mayonnaise | C100: Mayonnaise
A101: MED | B101: Medium | C101: Moyen
A102: MIN | B102: Minutes | C102: Minutes
A103: MXD | B103: Mixed | C103: Mélangé
A104: NAT | B104: Natural | C104: Naturel
A105: NFDM | B105: Nonfat dry milk | C105: Lait en poudre dégraissée
A106: NUTR | B106: Nutrients | C106: Nutriments
A107: OZ | B107: Ounce | C107: Once (1oz = 28g)
A108: PAR FR | B108: Par fried | C108: Pré-frit
A109: PARBLD | B109: Parboiled | C109: A l'étuvé / pré-bouille
A110: PART | B110: Partially | C110: Partiellement
A111: PAR FR | B111: Partially fried | C111: Partiellement frit
A112: PAST | B112: Pasteurized | C112: Pasteurisé
A113: PNUT | B113: Peanut | C113: Cacahuète
A114: PO4 | B114: Phosphate | C114: Phosphate
A115: P | B115: Phosphorus | C115: Phosphore
A116: PNAPPL | B116: Pineapple | C116: Ananas
A117: PLN | B117: Plain | C117: Uni / pur
A118: K | B118: Potassium | C118: Potassium
A119: PDR | B119: Powder | C119: Poudre
A120: PDR | B120: Powdered | C120: En poudre
A121: PRECKD | B121: Precooked | C121: Précuit
A122: PREHTD | B122: Preheated | C122: Préchauffé
A123: PREP | B123: Prepared | C123: Préparé
A124: PROC | B124: Processed | C124: Industriel / Préparé
A125: PROT | B125: Protein | C125: Protéines
A126: PUDD | B126: Pudding Puddings | C126: Pudding / Gâteau
A127: RTB | B127: Ready-to-bake | C127: Prêt-à-cuir
A128: RTC | B128: Ready-to-cook | C128: Prêt-à-cuisiner
A129: RTD | B129: Ready-to-drink | C129: Prêt-à-boire
A130: RTE | B130: Ready-to-eat | C130: Prêt-à-manger
A131: RTH | B131: Ready-to-heat | C131: Prêt-à-réchauffer
A132: RTS | B132: Ready-to-serve | C132: Prêt-à-servir
A133: RTU | B133: Ready-to-use | C133: Prêt-à-préparer
A134: RECON | B134: Reconstituted | C134: Reconstitué
A135: RED | B135: Reduced | C135: Allégé en
A136: RED-CAL | B136: Reduced-calorie | C136: Allégé en calories
A137: REFR | B137: Refrigerated | C137: Réfrigéré
A138: REG | B138: Regular | C138: Habituel/Classique
A139: REHTD | B139: Reheated | C139: Réchauffé
A140: REPLCMNT | B140: Replacement | C140: De substitution
A141: REST-PREP | B141: Restaurant-prepared | C141: Fait au restaurant
A142: RST | B142: Roast | C142: Rôtir
A143: RSTD | B143: Roasted | C143: Rôti
A144: RND | B144: Round | C144: Arrondi
A145: SNDWCH | B145: Sandwich | C145: Sandwich
A146: SAU | B146: Sauce | C146: Sauce
A147: SCALLPD | B147: Scalloped | C147: Festonné
A148: SCRMBLD | B148: Scrambled | C148: Brouillé
A149: SD | B149: Seed | C149: Graines
A150: SHK&SIRL | B150: Shank and sirloin | C150: Jaret et aloyau
A151: SHRT | B151: Short | C151: Court
A152: SHLDR | B152: Shoulder | C152: Epaule
A153: SIMMRD | B153: Simmered | C153: Frémi / Cuit à feu doux
A154: SKN | B154: Skin | C154: Peau
A155: SML | B155: Small | C155: Petit
A156: NA | B156: Sodium | C156: Sodium
A157: SOL | B157: Solids | C157: Solides
A158: SOYBN | B158: Soybean | C158: Soja
A159: SPL | B159: Special | C159: Spécial
A160: SP | B160: Species | C160: Espèces
A161: SPRD | B161: Spread | C161: Etiré/Etalé
A162: STD | B162: Standard | C162: Standart/classique
A163: STMD | B163: Steamed | C163: Cuit à la vapeur
A164: STWD | B164: Stewed | C164: Mijoté
A165: STK | B165: Stick | C165: Batonnet
A166: STR | B166: Strained | C166: Tendu
A167: SUB | B167: Substitute | C167: Substitut
A168: SMMR | B168: Summer | C168: D'été
A169: SUPP | B169: Supplement | C169: Supplément
A170: SWT | B170: Sweet | C170: Sucré
A171: SWTND | B171: Sweetened | C171: Edulcoré
A172: SWTNR | B172: Sweetener | C172: Edulcorant
A173: TSP | B173: Teaspoon | C173: Cuillère à café
A174: TSTD | B174: Toasted | C174: Toasté
A175: TODD | B175: Toddler | C175: Nourisson
A176: UNCKD | B176: Uncooked | C176: Non cuit
A177: UNCRMD | B177: Uncreamed | C177: Non écrémé (entier)
A178: UNDIL | B178: Undiluted | C178: Non dilué
A179: UNENR | B179: Unenriched | C179: Non enrichi
A180: UNHTD | B180: Unheated | C180: Non chauffé
A181: UNPREP | B181: Unprepared | C181: Non préparé
A182: UNSWTND | B182: Unsweetened | C182: Non sucré
A183: VAR | B183: Variety Varieties | C183: Variété
A184: VEG | B184: Vegetable vegetables | C184: Légumes
A185: VIT A | B185: Vitamin A | C185: Vitamine A
A186: VIT C | B186: Vitamin C | C186: Vitamine C
A187: H20 | B187: Water | C187: Eau
A188: WHTNR | B188: Whitener | C188: Blanchissant
A189: WHL | B189: Whole | C189: Entier
A190: WNTR | B190: Winter | C190: D'hiver
A191: W/ | B191: With | C191: Avec
A192: WO/ | B192: Without | C192: Sans
A193: YEL | B193: Yellow | C193: Jaune

Sheet Crédits
A6: PANDA : Programme d'Analyse Nutritionnelle Diététique et Alimentaire
A7: Version : 3.0
A8: Tracker copie-web n° ##### : activé
A9: Bases de données alimentaires (10 450 aliments) : CIQUAL 2013 / USDA 2015
A11: Avertissement : Vous êtes autorisé à utiliser cette version de PANDA 3.0 pour un usage personnel ou professionnel uniquement. Seules les copies réalisées sur votre ordinateur sont autorisées. Toute copie sur un autre dispositif, ou tentative de modification des données internes, sont strictement interdites et passibles de poursuites judiciaires. Un tracker web anonyme permet de connaître si des copies illégales ont été réalisées.
